Ref No,Fund Type,Dept,Cost Centre Description    ,Description    ,Creditor Name    ,GL Code Net Amount,Payment date        
2,Revenue,CAHD,EARLY YEARS DEPRIVATION PAYMENT,Preventative Assistance,Abacus @ Baileys Court Activity Centre,535.87, 04-Jul-2017
3,Revenue,CAHD,EARLY YEARS DEPRIVATION PAYMENT,Preventative Assistance,Abacus @ Filton Hill,505.12, 04-Jul-2017
4,Revenue,CAHD,EARLY YEARS DEPRIVATION PAYMENT,Preventative Assistance,Abacus Pre School @ Mangotsfield,757.68, 04-Jul-2017
5,Revenue,CAHD,EARLY YEARS DEPRIVATION PAYMENT,Preventative Assistance,Ambourne House Day Nursery,707.17, 04-Jul-2017
6,Revenue,CAHD,EARLY YEARS DEPRIVATION PAYMENT,Preventative Assistance,Banana Moon Day Nursery,1232.04, 04-Jul-2017
7,Revenue,CAHD,EARLY YEARS DEPRIVATION PAYMENT,Preventative Assistance,Bluebells Pre School,757.68, 04-Jul-2017
8,Revenue,CAHD,EARLY YEARS DEPRIVATION PAYMENT,Preventative Assistance,Bright Sparks Pre School Limited,2222.52, 04-Jul-2017
9,Revenue,CAHD,EARLY YEARS DEPRIVATION PAYMENT,Preventative Assistance,Bright Sparks Pre School Ltd,757.68, 04-Jul-2017
10,Revenue,CAHD,Grange School Holding Account,Street Care - Grounds Maintenance,C P S (Grounds) Limited,1648.77, 31-Jul-2017
11,Revenue,CAHD,EARLY YEARS DEPRIVATION PAYMENT,Preventative Assistance,Cadbury Heath Preschool,1010.24, 04-Jul-2017
12,Revenue,CAHD,EARLY YEARS DEPRIVATION PAYMENT,Preventative Assistance,Chipping Sodbury Pre School,942.89, 04-Jul-2017
13,Revenue,CAHD,EARLY YEARS DISABILITY  ACCES FUND,Preventative Assistance,Christchurch Pre School,615.00, 28-Jul-2017
14,Revenue,CAHD,EARLY YEARS DEPRIVATION PAYMENT,Preventative Assistance,Courtney Ladybirds Pre-School,1262.80, 04-Jul-2017
15,Revenue,CAHD,EARLY YEARS DEPRIVATION PAYMENT,Preventative Assistance,Filton Park Pre-School,757.68, 04-Jul-2017
16,Revenue,CAHD,EARLY YEARS DEPRIVATION PAYMENT,Preventative Assistance,Happy Days Day Nursery - Cheswick Village,505.12, 04-Jul-2017
17,Revenue,CAHD,EARLY YEARS DEPRIVATION PAYMENT,Preventative Assistance,Hawkesbury Playgroup & Toddlers,505.13, 04-Jul-2017
18,Revenue,CAHD,EARLY YEARS DEPRIVATION PAYMENT,Preventative Assistance,Hillsides Secret Garden Day Nursery,2020.47, 04-Jul-2017
19,Revenue,CAHD,Grange School Holding Account,Cleaning & Domestic Services,Kingdom Security Ltd,3133.75, 19-Jul-2017
20,Revenue,CAHD,Grange School Holding Account,Security Systems,Kingdom Security Ltd,548.15, 20-Jul-2017
21,Revenue,CAHD,EARLY YEARS DISABILITY  ACCES FUND,Preventative Assistance,L A Childcare,615.00, 28-Jul-2017
22,Revenue,CAHD,EARLY YEARS DEPRIVATION PAYMENT,Preventative Assistance,L A Childcare,505.13, 04-Jul-2017
23,Revenue,CAHD,EARLY YEARS DISABILITY  ACCES FUND,Preventative Assistance,Little Acorns,615.00, 28-Jul-2017
24,Revenue,CAHD,EARLY YEARS DEPRIVATION PAYMENT,Preventative Assistance,Little Acorns Day Nursery Limited,757.69, 04-Jul-2017
25,Revenue,CAHD,EARLY YEARS DEPRIVATION PAYMENT,Preventative Assistance,Little Explorers Pre-school,808.18, 04-Jul-2017
26,Revenue,CAHD,EARLY YEARS DEPRIVATION PAYMENT,Preventative Assistance,Little Gems PreSchool Limited,1010.24, 04-Jul-2017
27,Revenue,CAHD,EARLY YEARS DEPRIVATION PAYMENT,Preventative Assistance,Little Sheep Preschool,505.17, 04-Jul-2017
28,Revenue,CAHD,EARLY YEARS DEPRIVATION PAYMENT,Preventative Assistance,Longwell Green Pre-School,505.12, 04-Jul-2017
29,Revenue,CAHD,EARLY YEARS DEPRIVATION PAYMENT,Preventative Assistance,Mama Bear`s Day Nursery,505.12, 04-Jul-2017
30,Revenue,CAHD,EARLY YEARS DEPRIVATION PAYMENT,Preventative Assistance,Mama Bears Day Nursery Ltd,1010.24, 04-Jul-2017
31,Revenue,CAHD,EARLY YEARS DEPRIVATION PAYMENT,Preventative Assistance,Mandys Day Care,757.69, 04-Jul-2017
32,Revenue,CAHD,EARLY YEARS DEPRIVATION PAYMENT,Preventative Assistance,North Common Pre-School,505.12, 04-Jul-2017
33,Revenue,CAHD,EARLY YEARS DEPRIVATION PAYMENT,Preventative Assistance,Oldland Pre School,891.09, 04-Jul-2017
34,Revenue,CAHD,EARLY YEARS DEPRIVATION PAYMENT,Preventative Assistance,Our Lady of Lourdes Playgroup,505.12, 04-Jul-2017
35,Revenue,CAHD,EARLY YEARS DEPRIVATION PAYMENT,Preventative Assistance,Parkwall Pre-School,505.12, 04-Jul-2017
36,Revenue,CAHD,EARLY YEARS DEPRIVATION PAYMENT,Preventative Assistance,Patchway Centre Pre-School,505.12, 04-Jul-2017
37,Revenue,CAHD,EARLY YEARS DEPRIVATION PAYMENT,Preventative Assistance,Phase Five Pre-School Playgroup,1196.73, 04-Jul-2017
38,Revenue,CAHD,EARLY YEARS DEPRIVATION PAYMENT,Preventative Assistance,Play Station Nursery,1010.23, 04-Jul-2017
39,Revenue,CAHD,EARLY YEARS DEPRIVATION PAYMENT,Preventative Assistance,Playmates Day Nursery,1565.86, 04-Jul-2017
40,Revenue,CAHD,EARLY YEARS DEPRIVATION PAYMENT,Preventative Assistance,Ridgewood Pre-School,757.68, 04-Jul-2017
41,Revenue,CAHD,EARLY YEARS DEPRIVATION PAYMENT,Preventative Assistance,Severn Beach Pre-School,909.21, 04-Jul-2017
42,Revenue,CAHD,A & CL - Pre-Employability 16/17,Subsistence,Southern Brooks Community Partnership,706.32, 04-Jul-2017
43,Revenue,CAHD,EARLY YEARS DISABILITY  ACCES FUND,Preventative Assistance,St Chads Pre School,615.00, 28-Jul-2017
44,Revenue,CAHD,EARLY YEARS DEPRIVATION PAYMENT,Preventative Assistance,St Chads Pre-School,505.12, 04-Jul-2017
45,Revenue,CAHD,EARLY YEARS DEPRIVATION PAYMENT,Preventative Assistance,St Mary`s Pre-School Ltd,1060.75, 04-Jul-2017
46,Revenue,CAHD,EARLY YEARS DEPRIVATION PAYMENT,Preventative Assistance,St Michaels Church Pre-School & Nursery,505.12, 04-Jul-2017
47,Revenue,CAHD,EARLY YEARS DEPRIVATION PAYMENT,Preventative Assistance,Staple Hill Stars LLP,2273.03, 04-Jul-2017
48,Revenue,CAHD,EARLY YEARS DEPRIVATION PAYMENT,Preventative Assistance,Tick Tock Day Nursery,505.12, 04-Jul-2017
49,Revenue,CAHD,Grange School Holding Account,Security Systems,Veolia ES Cleanaway (UK) Limited,995.40, 26-Jul-2017
50,Revenue,CAHD,Internship Programme,Consultants Fees,Individual ,585.00, 10-Jul-2017
51,Revenue,CAHD,Grange School Holding Account,Water Charges,Water2business Limited,1390.71, 28-Jul-2017
52,Revenue,CAHD,Grange School Holding Account,Electricity,West Mercia Energy,1928.22, 05-Jul-2017
53,Revenue,CAHD,EARLY YEARS DEPRIVATION PAYMENT,Preventative Assistance,Wick Pre School,505.13, 04-Jul-2017
54,Revenue,CAHD,NHS Health Checks & Tobacco Control,Other Small Contracts,Almondsbury Surgery,943.00, 26-Jul-2017
55,Revenue,CAHD,Mental Health and Emotional Wellbeing,Other Supplies & Services,Amanda Harman Photography,500.00, 18-Jul-2017
56,Revenue,CAHD,Children & Young People�s Health,Other Small Contracts,Barnardos,8377.00, 20-Jul-2017
57,Revenue,CAHD,NHS Health Checks & Tobacco Control,Other Small Contracts,Bradley Stoke Surgery,2323.00, 26-Jul-2017
58,Revenue,CAHD,NHS Health Checks & Tobacco Control,Other Small Contracts,Christchurch Family Medical  Centre,2231.00, 26-Jul-2017
59,Revenue,CAHD,NHS Health Checks & Tobacco Control,Other Small Contracts,Close Farm Surgery,1702.00, 26-Jul-2017
60,Revenue,CAHD,NHS Health Checks & Tobacco Control,Other Small Contracts,Concord Medical Centre,1771.00, 26-Jul-2017
61,Revenue,CAHD,Health Inequalities,Other Small Contracts,Coniston Community Association,800.00, 17-Jul-2017
62,Revenue,CAHD,NHS Health Checks & Tobacco Control,Other Small Contracts,Coniston Medical Practice,782.00, 26-Jul-2017
63,Revenue,CAHD,NHS Health Checks & Tobacco Control,Other Small Contracts,Courtside Surgery,1564.00, 26-Jul-2017
64,Revenue,CAHD,NHS Health Checks & Tobacco Control,Other Small Contracts,Courtside Surgery,605.00, 10-Jul-2017
65,Revenue,CAHD,NHS Health Checks & Tobacco Control,Drugs & Medical Supplies,D R Rosser Ltd,578.86, 10-Jul-2017
66,Revenue,CAHD,NHS Health Checks & Tobacco Control,Other Small Contracts,Dr W J Foubister & Partners,989.00, 26-Jul-2017
67,Revenue,CAHD,NHS Health Checks & Tobacco Control,Other Small Contracts,Drs Male Thompson & Lewis,1449.00, 26-Jul-2017
68,Revenue,CAHD,NHS Health Checks & Tobacco Control,Other Small Contracts,Emersons Green Medical Centre,3174.00, 26-Jul-2017
69,Revenue,CAHD,NHS Health Checks & Tobacco Control,Other Small Contracts,Frome Valley Medical Centre,2461.00, 26-Jul-2017
70,Revenue,CAHD,NHS Health Checks & Tobacco Control,Other Small Contracts,Hanham Health,3726.00, 26-Jul-2017
71,Revenue,CAHD,SW HAWB Support,Other Supplies & Services,Holiday Inn Taunton,2636.67, 05-Jul-2017
72,Revenue,CAHD,ASSIST - Health Promotion in Schools,Other Supplies & Services,Jigsaw PSHE Ltd,5000.00, 04-Jul-2017
73,Revenue,CAHD,Health Inequalities,Other Small Contracts,Juice Community Project CIC,651.00, 17-Jul-2017
74,Revenue,CAHD,NHS Health Checks & Tobacco Control,Other Small Contracts,Kennedy Way Surgery,943.00, 26-Jul-2017
75,Revenue,CAHD,NHS Health Checks & Tobacco Control,Other Small Contracts,Kingswood Health Centre,897.00, 26-Jul-2017
76,Revenue,CAHD,NHS Health Checks & Tobacco Control,Other Small Contracts,Kingswood Health Centre,520.00, 10-Jul-2017
77,Revenue,CAHD,Health Inequalities,Other Small Contracts,Krunch UK,800.00, 17-Jul-2017
78,Revenue,CAHD,Mental Health and Emotional Wellbeing,Educational Supplies & Equipment,Mental Health First Aid England CIC,2000.00, 07-Jul-2017
79,Revenue,CAHD,NHS Health Checks & Tobacco Control,Other Small Contracts,Montpelier Health Pilning Surgery,1288.00, 26-Jul-2017
80,Revenue,CAHD,Drug/Alcohol Residential Rehab,Security Systems,National Security Group,21.67, 21-Jul-2017
81,Revenue,CAHD,Children & Young People�s Health,Other Small Contracts,NHS Bristol CCG,271828.00, 07-Jul-2017
82,Revenue,CAHD,Children & Young People�s Health,Other Small Contracts,NHS Bristol CCG,271828.08, 19-Jul-2017
83,Revenue,CAHD,Health Inequalities,Other Small Contracts,Off The Record Bristol,1000.00, 17-Jul-2017
84,Revenue,CAHD,Health Inequalities,Other Small Contracts,Our Place Community Flat,500.00, 17-Jul-2017
85,Revenue,CAHD,Health Inequalities,Other Small Contracts,Page Park Pre-School,700.00, 17-Jul-2017
86,Revenue,CAHD,Sexual Health,Other Supplies & Services,Preventx Limited,7078.00, 17-Jul-2017
87,Revenue,CAHD,Health Inequalities,Other Small Contracts,Ridgewood Pre-School,850.00, 17-Jul-2017
88,Revenue,CAHD,Sexual Health,Other Small Contracts,Royal United Hospitals Bath : NHS Foundation,772.62, 17-Jul-2017
89,Revenue,CAHD,Sexual Health,Other Small Contracts,Royal United Hospitals Bath : NHS Foundation,1235.78, 21-Jul-2017
90,Revenue,CAHD,Public Health Project Funding - OffSH,Consultants Fees,Ruth Woolley Ltd,1831.37, 19-Jul-2017
91,Revenue,CAHD,Health Inequalities,Other Small Contracts,Shopmobility South Gloucestershire,600.00, 17-Jul-2017
92,Revenue,CAHD,Children & Young People�s Health,Computer Equipment - Purchase,Sirona Care & Health CIC,70450.00, 04-Jul-2017
93,Revenue,CAHD,Leadership and Business Support,Training Expenses,South Gloucestershire and Stroud College,2065.50, 07-Jul-2017
94,Revenue,CAHD,Health Inequalities,Other Small Contracts,South Gloucestershire Chinese Association,700.00, 17-Jul-2017
95,Revenue,CAHD,Health Inequalities,Other Small Contracts,South Gloucestershire Citizens Advice Bureau,1000.00, 17-Jul-2017
96,Revenue,CAHD,Health Inequalities,Other Small Contracts,South Gloucestershire Parents and Carers,900.00, 17-Jul-2017
97,Revenue,CAHD,Health Inequalities,Other Small Contracts,Southern Brooks Community Partnership,700.00, 17-Jul-2017
98,Revenue,CAHD,Health Inequalities,Other Small Contracts,Southern Brooks Community Partnership,931.50, 17-Jul-2017
99,Revenue,CAHD,Health Inequalities,Other Small Contracts,Southern Brooks Community Partnership,800.00, 17-Jul-2017
100,Revenue,CAHD,Health Inequalities,Other Small Contracts,Southern Brooks Community Partnership,34000.00, 25-Jul-2017
101,Revenue,CAHD,NHS Health Checks & Tobacco Control,Other Small Contracts,St Mary Street Surgery,2714.00, 26-Jul-2017
102,Revenue,CAHD,Health Inequalities,Other Small Contracts,Staple Hill Regeneration Partnership,500.00, 17-Jul-2017
103,Revenue,CAHD,NHS Health Checks & Tobacco Control,Other Small Contracts,Stoke Gifford Medical Centre,1173.00, 26-Jul-2017
104,Revenue,CAHD,Leadership and Business Support,Membership Fees,The Association of Directors of Public Health (UK),2200.00, 28-Jul-2017
105,Revenue,CAHD,Health Inequalities,Other Small Contracts,The Conservation Volunteers,1000.00, 14-Jul-2017
106,Revenue,CAHD,Public Health Project Funding - OffSH,Other Supplies & Services,The Eddystone Trust,1350.00, 03-Jul-2017
107,Revenue,CAHD,NHS Health Checks & Tobacco Control,Other Small Contracts,The Willow Surgery,2070.00, 26-Jul-2017
108,Revenue,CAHD,Health Inequalities,Other Small Contracts,Third Sector Solutions,500.00, 06-Jul-2017
109,Revenue,CAHD,Health Inequalities,Other Small Contracts,Third Sector Solutions,500.00, 06-Jul-2017
110,Revenue,CAHD,Health Inequalities,Other Small Contracts,Third Sector Solutions,500.00, 06-Jul-2017
111,Revenue,CAHD,NHS Health Checks & Tobacco Control,Other Small Contracts,Three Shires Medical Practice,1909.00, 26-Jul-2017
112,Revenue,CAHD,NHS Health Checks & Tobacco Control,Other Small Contracts,Wellington Road Family Practice L81642,690.00,[] 26-Jul-2017
113,Revenue,CAHD,NHS Health Checks & Tobacco Control,Other Small Contracts,West Walk Surgery,1104.00, 26-Jul-2017
114,Revenue,CAHD,Health Inequalities,Other Small Contracts,Wickwar Youth Centre,680.00, 17-Jul-2017
115,Revenue,CAHD,Health Inequalities,Other Small Contracts,Willsbridge Mill Community Refresh,1000.00, 17-Jul-2017
116,Revenue,CAHD,Health Inequalities,Other Small Contracts,Yate Carers Group,500.00, 03-Jul-2017
117,Revenue,CAHD,Health Inequalities,Other Small Contracts,Yate Carers Group,500.00, 03-Jul-2017
118,Revenue,CAHD,CSC - Asylum Seekers - Unaccompanied,Client Transport,1625 Independent People,66.25, 31-Jul-2017
119,Revenue,CAHD,CSC - Asylum Seekers - Unaccompanied,Furniture & Fittings Loose,1625 Independent People,60.00, 31-Jul-2017
120,Revenue,CAHD,CSC - Asylum Seekers - Unaccompanied,Personal Needs of Clients,1625 Independent People,500.00, 31-Jul-2017
121,Revenue,CAHD,CSC - Asylum Seekers - Unaccompanied,Radio Pager/Mobile Phones,1625 Independent People,40.00, 31-Jul-2017
122,Revenue,CAHD,Early Years Team,Training Expenses,A T Direct Limited,495.00, 20-Jul-2017
123,Revenue,CAHD,Training Budget - Children`s Social Serv,Training Expenses,Acorn Health & Safety Limited,449.00, 12-Jul-2017
124,Revenue,CAHD,CSC - Agency Fostering,Foster Parent Allowances,Action for Children,3244.20, 28-Jul-2017
125,Revenue,CAHD,CSC - Agency Fostering,Foster Parent Allowances,Action for Children,3352.34, 28-Jul-2017
126,Revenue,CAHD,CSC - Agency Fostering,Foster Parent Allowances,Action for Children,3244.20, 28-Jul-2017
127,Revenue,CAHD,CSC - Agency Fostering,Foster Parent Allowances,Amicus Foster Care Ltd,5408.14, 26-Jul-2017
128,Revenue,CAHD,CSC - Agency Fostering,Foster Parent Allowances,Amicus Foster Care Ltd,4915.98, 26-Jul-2017
129,Revenue,CAHD,CSC - Special Guardianship Orders,Special Payments,Individual ,1249.64, 07-Jul-2017
130,Revenue,CAHD,CSC - Adoption Support Fund,Post Adoption,Individual ,321.00, 28-Jul-2017
131,Revenue,CAHD,CSC - Adoption Support Fund,Post Adoption,Individual ,399.00, 28-Jul-2017
132,Revenue,CAHD,CSC - Safeguarding Board,Training Expenses,Individual ,820.00, 04-Jul-2017
133,Revenue,CAHD,CSC - Safeguarding Board,Training Expenses,Individual ,900.00, 26-Jul-2017
134,Revenue,CAHD,Schools Specific Grant Income,Other Supplies & Services,Aquaterra Leisure,720.00, 11-Jul-2017
135,Revenue,CAHD,Independent Special Placements - Pre 16,Other Private Contractors,Aurora Hedgeway School,15154.33, 31-Jul-2017
136,Revenue,CAHD,Independent Special Placements - Pre 16,Other Private Contractors,Aurora Hedgeway School,22178.67, 31-Jul-2017
137,Revenue,CAHD,"Education, Learning and Skills",Agency Staff (Admin/Support Staff) Pay,Baltimore Consulting Group,2070.00, 19-Jul-2017
138,Revenue,CAHD,"Education, Learning and Skills",Agency Staff (Admin/Support Staff) Pay,Baltimore Consulting Group,2070.00, 27-Jul-2017
139,Revenue,CAHD,CSC - Safeguarding Board,Training Expenses,Barnardo Services Limited,1000.00, 20-Jul-2017
140,Revenue,CAHD,Pensions - Non DSG,Annual Pension,Bath & North East Somerset Council,5908.15, 31-Jul-2017
141,Revenue,CAHD,Pensions - Non DSG,Annual Pension,Bath & North East Somerset Council,111545.16, 31-Jul-2017
142,Revenue,CAHD,"Education, Learning and Skills",Catering,Bawa Healthcare & Leisure,193.96, 26-Jul-2017
143,Revenue,CAHD,"Education, Learning and Skills",Premises Hire,Bawa Healthcare & Leisure,575.00, 26-Jul-2017
144,Revenue,CAHD,Statemented Support Payments to OLAs,Other L.A.'s - General,Beechen Cliff School,715.65, 27-Jul-2017
145,Revenue,CAHD,Post 16 High Needs Placements,Other Private Contractors,Beechwood Court Ltd,11331.98, 19-Jul-2017
146,Revenue,CAHD,CSC - Residential Placements,Permanent Residential,Beechwood Court Ltd,13916.32, 18-Jul-2017
147,Revenue,CAHD,Independent Special Placements - Pre 16,Other Private Contractors,Belgrave School,8252.30, 25-Jul-2017
148,Revenue,CAHD,Independent Special Placements - Pre 16,Other Private Contractors,Belgrave School,837.00, 17-Jul-2017
149,Revenue,CAHD,CSC - OT Equipment - Children,Daily Living Equipment,BES Rehab Limited,595.00, 14-Jul-2017
150,Revenue,CAHD,Implementation of Education Commission,Consultants Fees,Best Practice Network,965.00, 05-Jul-2017
151,Revenue,CAHD,CSC - Care Leavers Support Costs,"Provisions (Food, etc)",Big Yellow Self Storage Company Limited,1681.01, 13-Jul-2017
152,Revenue,CAHD,CSC - Vinney Green Secure Unit,Premises Maintenance by Contractor,Binns Fencing Limited,6840.00, 28-Jul-2017
153,Revenue,CAHD,CSC - Vinney Green Secure Unit,"Provisions (Food, etc)",Booker Cash & Carry,441.59, 03-Jul-2017
154,Revenue,CAHD,CSC - Vinney Green Secure Unit,"Provisions (Food, etc)",Booker Cash & Carry,89.52, 03-Jul-2017
155,Revenue,CAHD,CSC - Vinney Green Secure Unit,"Provisions (Food, etc)",Booker Cash & Carry,363.75, 27-Jul-2017
156,Revenue,CAHD,CSC - Vinney Green Secure Unit,"Provisions (Food, etc)",Booker Cash & Carry,123.24, 27-Jul-2017
157,Revenue,CAHD,Yate Detached,Rent,Brimsham Green School,407.32, 24-Jul-2017
158,Revenue,CAHD,Statemented Support Academies,Schools Funding,Bristol & South Gloucestershire UTC,627.19, 27-Jul-2017
159,Revenue,CAHD,Schools Specific Grant Income,Other Public Bodies,Bristol City Council,500.00, 14-Jul-2017
160,Revenue,CAHD,Schools Specific Grant Income,Other Public Bodies,Bristol City Council - Schools,500.00, 18-Jul-2017
161,Revenue,CAHD,Placements OLA Special Schools and RB,Other L.A.'s - General,Bristol City Council - Schools,2040.58, 31-Jul-2017
162,Revenue,CAHD,Placements OLA Special Schools and RB,Other L.A.'s - General,Bristol City Council - Schools,2613.00, 31-Jul-2017
163,Revenue,CAHD,Placements OLA Special Schools and RB,Other L.A.'s - General,Bristol City Council - Schools,1372.67, 31-Jul-2017
164,Revenue,CAHD,Statemented Support Payments to OLAs,Other L.A.'s - General,Bristol City Council - Schools,1375.07, 27-Jul-2017
165,Revenue,CAHD,Schools Specific Grant Income,Other Public Bodies,Bristol City Council - Schools,500.00, 18-Jul-2017
166,Revenue,CAHD,Statemented Support Payments to OLAs,Other L.A.'s - General,Bristol City Council - Schools,1093.61, 27-Jul-2017
167,Revenue,CAHD,Placements OLA Special Schools and RB,Other L.A.'s - General,Bristol City Council - Schools,2613.00, 31-Jul-2017
168,Revenue,CAHD,Placements OLA Special Schools and RB,Other L.A.'s - General,Bristol City Council - Schools,1328.08, 31-Jul-2017
169,Revenue,CAHD,Placements OLA Special Schools and RB,Other L.A.'s - General,Bristol City Council - Schools,791.67, 31-Jul-2017
170,Revenue,CAHD,Placements OLA Special Schools and RB,Other L.A.'s - General,Bristol City Council - Schools,1266.67, 31-Jul-2017
171,Revenue,CAHD,Placements OLA Special Schools and RB,Other L.A.'s - General,Bristol City Council - Schools,3404.67, 31-Jul-2017
172,Revenue,CAHD,Placements OLA Special Schools and RB,Other L.A.'s - General,Bristol City Council - Schools,2613.00, 31-Jul-2017
173,Revenue,CAHD,Placements OLA Special Schools and RB,Other L.A.'s - General,Bristol City Council - Schools,2613.00, 31-Jul-2017
174,Revenue,CAHD,Placements OLA Special Schools and RB,Other L.A.'s - General,Bristol City Council - Schools,1403.50, 31-Jul-2017
175,Revenue,CAHD,Placements OLA Special Schools and RB,Other L.A.'s - General,Bristol City Council - Schools,928.50, 31-Jul-2017
176,Revenue,CAHD,Placements OLA Special Schools and RB,Other L.A.'s - General,Bristol City Council - Schools,1403.50, 31-Jul-2017
177,Revenue,CAHD,Placements OLA Special Schools and RB,Other L.A.'s - General,Bristol City Council - Schools,2085.17, 31-Jul-2017
178,Revenue,CAHD,Placements OLA Special Schools and RB,Other L.A.'s - General,Bristol City Council - Schools,791.67, 31-Jul-2017
179,Revenue,CAHD,Placements OLA Special Schools and RB,Other L.A.'s - General,Bristol City Council - Schools,2613.00, 31-Jul-2017
180,Revenue,CAHD,Statemented Support Payments to OLAs,Other L.A.'s - General,Bristol City Council - Schools,643.28, 27-Jul-2017
181,Revenue,CAHD,Placements OLA Special Schools and RB,Other L.A.'s - General,Bristol City Council - Schools,823.17, 31-Jul-2017
182,Revenue,CAHD,Placements OLA Special Schools and RB,Other L.A.'s - General,Bristol City Council - Schools,4155.88, 31-Jul-2017
183,Revenue,CAHD,Placements OLA Special Schools and RB,Other L.A.'s - General,Bristol City Council - Schools,2613.00, 31-Jul-2017
184,Revenue,CAHD,Placements OLA Special Schools and RB,Other L.A.'s - General,Bristol City Council - Schools,823.17, 31-Jul-2017
185,Revenue,CAHD,Placements OLA Special Schools and RB,Other L.A.'s - General,Bristol City Council - Schools,1328.08, 31-Jul-2017
186,Revenue,CAHD,Placements OLA Special Schools and RB,Other L.A.'s - General,Bristol City Council - Schools,2613.00, 31-Jul-2017
187,Revenue,CAHD,Placements OLA Special Schools and RB,Other L.A.'s - General,Bristol City Council - Schools,2090.40, 31-Jul-2017
188,Revenue,CAHD,Placements OLA Special Schools and RB,Other L.A.'s - General,Bristol City Council - Schools,2116.00, 31-Jul-2017
189,Revenue,CAHD,Placements OLA Special Schools and RB,Other L.A.'s - General,Bristol City Council - Schools,2613.00, 31-Jul-2017
190,Revenue,CAHD,Placements OLA Special Schools and RB,Other L.A.'s - General,Bristol City Council - Schools,2907.67, 31-Jul-2017
191,Revenue,CAHD,Placements OLA Special Schools and RB,Other L.A.'s - General,Bristol City Council - Schools,897.67, 31-Jul-2017
192,Revenue,CAHD,Statemented Support Payments to OLAs,Other L.A.'s - General,Bristol Free School,932.78, 27-Jul-2017
193,Revenue,CAHD,CSC - Vinney Green Secure Unit,R & M by Departments,BWS Security Systems Limited,595.00, 21-Jul-2017
194,Revenue,CAHD,CSC - Vinney Green Secure Unit,R & M by Departments,BWS Security Systems Limited,4353.01, 21-Jul-2017
195,Revenue,CAHD,Statemented Support Payments to OLAs,Other L.A.'s - General,Cabot Learning Federation,1101.65, 27-Jul-2017
196,Revenue,CAHD,Schools Specific Grant Income,Other Public Bodies,Cabot Learning Federation,500.00, 18-Jul-2017
197,Revenue,CAHD,Schools Specific Grant Income,Other Public Bodies,Cabot Learning Federation,500.00, 18-Jul-2017
198,Revenue,CAHD,Academy Resource Base Funding,Other Public Bodies,Cabot Learning Federation,1575.48, 24-Jul-2017
199,Revenue,CAHD,Academy Resource Base Funding,Other Public Bodies,Cabot Learning Federation,1202.29, 24-Jul-2017
200,Revenue,CAHD,Academy Resource Base Funding,Other Public Bodies,Cabot Learning Federation,1741.27, 24-Jul-2017
201,Revenue,CAHD,Academy Resource Base Funding,Other Public Bodies,Cabot Learning Federation,1741.27, 24-Jul-2017
202,Revenue,CAHD,Academy Resource Base Funding,Other Public Bodies,Cabot Learning Federation,1575.48, 24-Jul-2017
203,Revenue,CAHD,Academy Resource Base Funding,Other Public Bodies,Cabot Learning Federation,1202.29, 24-Jul-2017
204,Revenue,CAHD,Academy Resource Base Funding,Other Public Bodies,Cabot Learning Federation,1575.48, 24-Jul-2017
205,Revenue,CAHD,Academy Resource Base Funding,Other Public Bodies,Cabot Learning Federation,663.32, 24-Jul-2017
206,Revenue,CAHD,Academy Resource Base Funding,Other Public Bodies,Cabot Learning Federation,1575.48, 24-Jul-2017
207,Revenue,CAHD,Academy Resource Base Funding,Other Public Bodies,Cabot Learning Federation,1575.48, 24-Jul-2017
208,Revenue,CAHD,Academy Resource Base Funding,Other Public Bodies,Cabot Learning Federation,1575.48, 24-Jul-2017
209,Revenue,CAHD,Schools Specific Grant Income,Other Public Bodies,Cabot Learning Federation,500.00, 18-Jul-2017
210,Revenue,CAHD,Schools Specific Grant Income,Other Public Bodies,Cabot Learning Federation,500.00, 18-Jul-2017
211,Revenue,CAHD,Schools Specific Grant Income,Other Public Bodies,Cabot Learning Federation,500.00, 18-Jul-2017
212,Revenue,CAHD,Schools Specific Grant Income,Other Public Bodies,Cabot Learning Federation,500.00, 18-Jul-2017
213,Revenue,CAHD,Schools Specific Grant Income,Other Public Bodies,Cabot Learning Federation,500.00, 18-Jul-2017
214,Revenue,CAHD,Schools Specific Grant Income,Other Public Bodies,Cabot Learning Federation,500.00, 18-Jul-2017
215,Revenue,CAHD,Schools Specific Grant Income - from OLA,Other Public Bodies,Cabot Learning Federation,1266.66, 18-Jul-2017
216,Revenue,CAHD,Schools Specific Grant Income,Other Public Bodies,Cabot Learning Federation,500.00, 18-Jul-2017
217,Revenue,CAHD,Schools Specific Grant Income,Other Public Bodies,Cabot Learning Federation,500.00, 18-Jul-2017
218,Revenue,CAHD,Schools Specific Grant Income - from OLA,Other Public Bodies,Cabot Learning Federation,2533.32, 18-Jul-2017
219,Revenue,CAHD,Schools Specific Grant Income - from OLA,Other Public Bodies,Cabot Learning Federation,633.33, 18-Jul-2017
220,Revenue,CAHD,Schools Specific Grant Income - from OLA,Other Public Bodies,Cabot Learning Federation,9499.95, 18-Jul-2017
221,Revenue,CAHD,Schools Specific Grant Income - from OLA,Other Public Bodies,Cabot Learning Federation,633.33, 18-Jul-2017
222,Revenue,CAHD,Schools Specific Grant Income,Other Public Bodies,Cabot Learning Federation,500.00, 18-Jul-2017
223,Revenue,CAHD,Statemented Support Payments to OLAs,Other L.A.'s - General,Cabot Learning Federation,522.65, 27-Jul-2017
224,Revenue,CAHD,Statemented Support Academies,Schools Funding,Cabot Learning Federation,667.40, 27-Jul-2017
225,Revenue,CAHD,Statemented Support Academies,Schools Funding,Cabot Learning Federation,667.40, 27-Jul-2017
226,Revenue,CAHD,Statemented Support Academies,Schools Funding,Cabot Learning Federation,603.07, 27-Jul-2017
227,Revenue,CAHD,Statemented Support Academies,Schools Funding,Cabot Learning Federation,538.73, 27-Jul-2017
228,Revenue,CAHD,Statemented Support Academies,Schools Funding,Cabot Learning Federation,562.86, 27-Jul-2017
229,Revenue,CAHD,Statemented Support Academies,Schools Funding,Cabot Learning Federation,562.86, 27-Jul-2017
230,Revenue,CAHD,Statemented Support Academies,Schools Funding,Cabot Learning Federation,1358.98, 27-Jul-2017
231,Revenue,CAHD,Statemented Support Academies,Schools Funding,Cabot Learning Federation,578.94, 27-Jul-2017
232,Revenue,CAHD,Statemented Support Academies,Schools Funding,Cabot Learning Federation,699.57, 27-Jul-2017
233,Revenue,CAHD,Statemented Support Academies,Schools Funding,Cabot Learning Federation,667.40, 27-Jul-2017
234,Revenue,CAHD,Statemented Support Academies,Schools Funding,Cabot Learning Federation,562.86, 27-Jul-2017
235,Revenue,CAHD,Statemented Support Academies,Schools Funding,Cabot Learning Federation,1270.53, 27-Jul-2017
236,Revenue,CAHD,Statemented Support Academies,Schools Funding,Cabot Learning Federation,546.78, 27-Jul-2017
237,Revenue,CAHD,Statemented Support Academies,Schools Funding,Cabot Learning Federation,868.44, 27-Jul-2017
238,Revenue,CAHD,Statemented Support Academies,Schools Funding,Cabot Learning Federation,659.36, 27-Jul-2017
239,Revenue,CAHD,Statemented Support Academies,Schools Funding,Cabot Learning Federation,924.73, 27-Jul-2017
240,Revenue,CAHD,Statemented Support Academies,Schools Funding,Cabot Learning Federation,723.69, 27-Jul-2017
241,Revenue,CAHD,Statemented Support Academies,Schools Funding,Cabot Learning Federation,900.61, 27-Jul-2017
242,Revenue,CAHD,Statemented Support Academies,Schools Funding,Cabot Learning Federation,530.69, 27-Jul-2017
243,Revenue,CAHD,Statemented Support Academies,Schools Funding,Cabot Learning Federation,900.61, 27-Jul-2017
244,Revenue,CAHD,Statemented Support Payments to OLAs,Other L.A.'s - General,Cabot Learning Federation,586.98, 27-Jul-2017
245,Revenue,CAHD,Statemented Support Academies,Schools Funding,Cabot Learning Federation,812.15, 27-Jul-2017
246,Revenue,CAHD,Statemented Support Academies,Schools Funding,Cabot Learning Federation,1262.48, 27-Jul-2017
247,Revenue,CAHD,Early Years Development,Membership Fees,Cambium Sustainable Landscapes & Training,594.00, 07-Jul-2017
248,Revenue,CAHD,CSC - Adoption Support Fund,Post Adoption,Individual ,700.00, 11-Jul-2017
249,Revenue,CAHD,Statemented Support Academies,Schools Funding,Castle School Education Trust,916.69, 27-Jul-2017
250,Revenue,CAHD,Statemented Support Academies,Schools Funding,Castle School Education Trust,651.32, 27-Jul-2017
251,Revenue,CAHD,Statemented Support Academies,Schools Funding,Castle School Education Trust,755.86, 27-Jul-2017
252,Revenue,CAHD,Statemented Support Academies,Schools Funding,Castle School Education Trust,562.86, 27-Jul-2017
253,Revenue,CAHD,Statemented Support Academies,Schools Funding,Castle School Education Trust,506.57, 27-Jul-2017
254,Revenue,CAHD,Statemented Support Academies,Schools Funding,Castle School Education Trust,1278.57, 27-Jul-2017
255,Revenue,CAHD,Statemented Support Academies,Schools Funding,Castle School Education Trust,570.90, 27-Jul-2017
256,Revenue,CAHD,Statemented Support Academies,Schools Funding,Castle School Education Trust,1013.19, 27-Jul-2017
257,Revenue,CAHD,Statemented Support Academies,Schools Funding,Castle School Education Trust,1045.36, 27-Jul-2017
258,Revenue,CAHD,Statemented Support Academies,Schools Funding,Castle School Education Trust,627.19, 27-Jul-2017
259,Revenue,CAHD,Statemented Support Academies,Schools Funding,Castle School Education Trust,1423.32, 27-Jul-2017
260,Revenue,CAHD,Statemented Support Academies,Schools Funding,Castle School Education Trust,683.48, 27-Jul-2017
261,Revenue,CAHD,Statemented Support Academies,Schools Funding,Castle School Education Trust,932.78, 27-Jul-2017
262,Revenue,CAHD,Statemented Support Academies,Schools Funding,Castle School Education Trust,739.78, 27-Jul-2017
263,Revenue,CAHD,Statemented Support Academies,Schools Funding,Castle School Education Trust,562.86, 27-Jul-2017
264,Revenue,CAHD,Statemented Support Academies,Schools Funding,Castle School Education Trust,844.32, 27-Jul-2017
265,Revenue,CAHD,Statemented Support Academies,Schools Funding,Castle School Education Trust,707.61, 27-Jul-2017
266,Revenue,CAHD,Statemented Support Academies,Schools Funding,Castle School Education Trust,844.32, 27-Jul-2017
267,Revenue,CAHD,Statemented Support Academies,Schools Funding,Castle School Education Trust,852.36, 27-Jul-2017
268,Revenue,CAHD,Statemented Support Academies,Schools Funding,Castle School Education Trust,860.40, 27-Jul-2017
269,Revenue,CAHD,Statemented Support Academies,Schools Funding,Castle School Education Trust,578.94, 27-Jul-2017
270,Revenue,CAHD,Statemented Support Academies,Schools Funding,Castle School Education Trust,1125.78, 27-Jul-2017
271,Revenue,CAHD,Statemented Support Academies,Schools Funding,Castle School Education Trust,635.23, 27-Jul-2017
272,Revenue,CAHD,Statemented Support Academies,Schools Funding,Castle School Education Trust,586.98, 27-Jul-2017
273,Revenue,CAHD,Schools Specific Grant Income,Other Public Bodies,Castle School Education Trust,500.00, 18-Jul-2017
274,Revenue,CAHD,Schools Specific Grant Income,Other Public Bodies,Castle School Education Trust,500.00, 18-Jul-2017
275,Revenue,CAHD,Schools Specific Grant Income,Other Public Bodies,Castle School Education Trust,500.00, 18-Jul-2017
276,Revenue,CAHD,Schools Specific Grant Income,Other Public Bodies,Castle School Education Trust,500.00, 18-Jul-2017
277,Revenue,CAHD,Schools Specific Grant Income,Other Public Bodies,Castle School Education Trust,500.00, 18-Jul-2017
278,Revenue,CAHD,Schools Specific Grant Income - from OLA,Other Public Bodies,Castle School Education Trust,2533.32, 18-Jul-2017
279,Revenue,CAHD,Schools Specific Grant Income,Other Public Bodies,Castle School Education Trust,500.00, 18-Jul-2017
280,Revenue,CAHD,Statemented Support Academies,Schools Funding,Castle School Education Trust,667.40, 27-Jul-2017
281,Revenue,CAHD,Statemented Support Academies,Schools Funding,Castle School Education Trust,1093.61, 27-Jul-2017
282,Revenue,CAHD,Statemented Support Academies,Schools Funding,Castle School Education Trust,1238.36, 27-Jul-2017
283,Revenue,CAHD,Post 16 High Needs Placements,Other Private Contractors,City of Bristol College,85417.44, 06-Jul-2017
284,Revenue,CAHD,Implementation of Education Commission,Consultants Fees,Individual ,500.00, 24-Jul-2017
285,Revenue,CAHD,CSC - Vinney Green Secure Unit,R & M by Departments,Clarke Instruments Limited,2637.15, 28-Jul-2017
286,Revenue,CAHD,Schools Specific Grant Income,Other Public Bodies,Colston`s Girls School Trust,500.00, 18-Jul-2017
287,Revenue,CAHD,CSC - Care Leavers Independent Living,Adults - Family Support,Connolly & Callaghan Limited,450.00, 12-Jul-2017
288,Revenue,CAHD,CSC - Care Leavers Independent Living,Adults - Family Support,Connolly & Callaghan Limited,1050.00, 12-Jul-2017
289,Revenue,CAHD,CSC - Care Leavers Independent Living,Adults - Family Support,Connolly & Callaghan Limited,420.00, 12-Jul-2017
290,Revenue,CAHD,CSC - Care Leavers Independent Living,Adults - Family Support,Connolly & Callaghan Limited,450.00, 12-Jul-2017
291,Revenue,CAHD,CSC - Care Leavers Independent Living,Adults - Family Support,Connolly & Callaghan Limited,735.00, 12-Jul-2017
292,Revenue,CAHD,CSC - Care Leavers Independent Living,Adults - Family Support,Connolly & Callaghan Limited,735.00, 12-Jul-2017
293,Revenue,CAHD,LSE - Schools Priority Support,Consultants Fees,Individual ,1000.00, 05-Jul-2017
294,Revenue,CAHD,SACRE,Consultants Fees,Diocesan Board of Finance Limited,2262.25, 27-Jul-2017
295,Revenue,CAHD,CSC - Section 17 SOUTH,Other Supplies & Services,DNA Worldwide Group,500.00, 21-Jul-2017
296,Revenue,CAHD,Schools Specific Grant Income - from OLA,Other Public Bodies,Downend School,1266.66, 18-Jul-2017
297,Revenue,CAHD,Statemented Support Academies,Schools Funding,Downend School,562.86, 27-Jul-2017
298,Revenue,CAHD,Statemented Support Academies,Schools Funding,Downend School,948.86, 27-Jul-2017
299,Revenue,CAHD,Statemented Support Academies,Schools Funding,Downend School,554.82, 27-Jul-2017
300,Revenue,CAHD,Statemented Support Academies,Schools Funding,Downend School,570.90, 27-Jul-2017
301,Revenue,CAHD,Statemented Support Academies,Schools Funding,Downend School,972.98, 27-Jul-2017
302,Revenue,CAHD,Statemented Support Academies,Schools Funding,Downend School,643.28, 27-Jul-2017
303,Revenue,CAHD,Statemented Support Academies,Schools Funding,Downend School,562.86, 27-Jul-2017
304,Revenue,CAHD,Statemented Support Academies,Schools Funding,Downend School,562.86, 27-Jul-2017
305,Revenue,CAHD,CSC - Adoption Support Fund,Post Adoption,Individual ,689.60, 07-Jul-2017
306,Revenue,CAHD,CSC - Agency Fostering,Foster Parent Allowances,Enhanced Foster Care Ltd,4200.00, 26-Jul-2017
307,Revenue,CAHD,CSC - Corporate Parenting,Consultants Fees,Individual ,5050.00, 06-Jul-2017
308,Revenue,CAHD,Post 16 High Needs Placements,Other Private Contractors,Farleigh FEC-Frome Priory,4322.48, 31-Jul-2017
309,Revenue,CAHD,Statemented Support Payments to OLAs,Other L.A.'s - General,Filton Avenue Primary School,691.53, 27-Jul-2017
310,Revenue,CAHD,CSC - Agency Fostering,Foster Parent Allowances,Five Rivers Child Care Limited,3447.82, 31-Jul-2017
311,Revenue,CAHD,CSC - Agency Fostering,Foster Parent Allowances,Foster Care Associates Limited,4131.68, 31-Jul-2017
312,Revenue,CAHD,CSC - Asylum Seekers - Unaccompanied,Foster Parent Allowances,Foster Care Associates Limited,3578.02, 31-Jul-2017
313,Revenue,CAHD,CSC - Agency Fostering,Foster Parent Allowances,Foster Care Associates Limited,2257.50, 31-Jul-2017
314,Revenue,CAHD,CSC - Agency Fostering,Foster Parent Allowances,Foster Care Associates Limited,3998.40, 31-Jul-2017
315,Revenue,CAHD,CSC - Asylum Seekers - Unaccompanied,Foster Parent Allowances,Foster Care Associates Limited,3462.60, 31-Jul-2017
316,Revenue,CAHD,CSC - Residential Placements,Permanent Residential,Friends Therapeutic Community Trust,15500.00, 14-Jul-2017
317,Revenue,CAHD,CSC - LAT Placements,Personal Needs of Clients,Individual ,552.50, 07-Jul-2017
318,Revenue,CAHD,North Hub Offices,Educational Materials,GL Education Group Ltd,582.33, 07-Jul-2017
319,Revenue,CAHD,South Hub Offices,Educational Materials,GL Education Group Ltd,582.32, 07-Jul-2017
320,Revenue,CAHD,Schools Specific Grant Income,Other Public Bodies,Gloucestershire County Council,500.00, 14-Jul-2017
321,Revenue,CAHD,Placements OLA Special Schools and RB,Other L.A.'s - General,Henbury Court Primary Academy,833.33, 31-Jul-2017
322,Revenue,CAHD,Schools Specific Grant Income,Other Public Bodies,High School For Girls,500.00, 14-Jul-2017
323,Revenue,CAHD,North Hub Offices,Educational Materials,Hogrefe Ltd,524.00, 14-Jul-2017
324,Revenue,CAHD,South Hub Offices,Educational Materials,Hogrefe Ltd,524.00, 14-Jul-2017
325,Revenue,CAHD,CSC - Regional Adoption Agency Project,Conference Expenses,Homes & Communities Agency,716.75, 20-Jul-2017
326,Revenue,CAHD,Hospital Tuition,Other Private Contractors,Huntercombe Hospital Maidenhead,1650.00, 03-Jul-2017
327,Revenue,CAHD,Hospital Tuition,Other Private Contractors,Huntercombe Hospital Maidenhead,1800.00, 14-Jul-2017
328,Revenue,CAHD,Hospital Tuition,Other Private Contractors,Huntercombe Hospital Maidenhead,3000.00, 14-Jul-2017
329,Revenue,CAHD,CSC - Corporate Parenting,Computer Services,IAP UK Limited,3922.50, 31-Jul-2017
330,Revenue,CAHD,SEN High Needs - Not at School Base,Other Private Contractors,Impact Mentoring,2000.00, 07-Jul-2017
331,Revenue,CAHD,SEN High Needs - Not at School Base,Other Private Contractors,Impact Mentoring,2300.00, 19-Jul-2017
332,Revenue,CAHD,SEN High Needs - Not at School Base,Other Private Contractors,Impact Mentoring,3000.00, 12-Jul-2017
333,Revenue,CAHD,Schools Specific Grant Income,Other Public Bodies,Inspirational Futures Trust,500.00, 18-Jul-2017
334,Revenue,CAHD,CSC - Vinney Green Secure Unit,Mechanical & Electrical Maintenance,Integral UK Limited,4891.68, 05-Jul-2017
335,Revenue,CAHD,CSC - Vinney Green Secure Unit,Mechanical & Electrical Maintenance,Integral UK Limited,4300.00, 05-Jul-2017
336,Revenue,CAHD,CSC - Vinney Green Secure Unit,Mechanical & Electrical Maintenance,Integral UK Limited,2150.00, 12-Jul-2017
337,Revenue,CAHD,CSC - Adoption Support Fund,Post Adoption,Intramosaic Counselling and Psychotherapy Limited,1515.00, 14-Jul-2017
338,Revenue,CAHD,CSC - Age Related Allowances,Children - Family Support,Individual ,575.00, 21-Jul-2017
339,Revenue,CAHD,CSC - Adoption Support Fund,Post Adoption,Individual ,612.50, 13-Jul-2017
340,Revenue,CAHD,CSC - Adoption Support Fund,Post Adoption,Individual ,1550.00, 28-Jul-2017
341,Revenue,CAHD,CSC - Legal Fees,Legal Fees,Individual ,500.00, 28-Jul-2017
342,Revenue,CAHD,CSC - Care Leavers Independent Living,Adults - Family Support,Jordan Xavier Ltd,3720.00, 12-Jul-2017
343,Revenue,CAHD,CSC - Care Leavers Independent Living,Adults - Family Support,Jordan Xavier Ltd,4118.57, 11-Jul-2017
344,Revenue,CAHD,CSC - Care Leavers Independent Living,Adults - Family Support,Jordan Xavier Ltd,2957.14, 11-Jul-2017
345,Revenue,CAHD,0-25 Management Team,Agency Staff (Admin/Support Staff) Pay,JPF Resolutions Ltd,4000.00, 25-Jul-2017
346,Revenue,CAHD,0-25 Management Team,Agency Staff (Admin/Support Staff) Pay,JPF Resolutions Ltd,7200.00, 28-Jul-2017
347,Revenue,CAHD,0-25 Management Team,Agency Staff (Admin/Support Staff) Pay,JPF Resolutions Ltd,7400.00, 26-Jul-2017
348,Revenue,CAHD,Virtual School for Looked After Children,Consultants Fees,Individual ,1000.00, 13-Jul-2017
349,Revenue,CAHD,Virtual School for Looked After Children,Consultants Fees,Individual ,2400.00, 13-Jul-2017
350,Revenue,CAHD,Virtual School for Looked After Children,Consultants Fees,Individual ,600.00, 26-Jul-2017
351,Revenue,CAHD,CSC - Legal Fees,Legal Fees,Individual ,600.00, 24-Jul-2017
352,Revenue,CAHD,Statemented Support Payments to OLAs,Other L.A.'s - General,Katharine Lady Berkeley School,530.69, 27-Jul-2017
353,Revenue,CAHD,Schools Specific Grant Income,Other Public Bodies,Katharine Lady Berkeley School,500.00, 18-Jul-2017
354,Revenue,CAHD,CSC - Adoption Support Fund,Post Adoption,Individual ,1566.00, 28-Jul-2017
355,Revenue,CAHD,CSC - Adoption Support Fund,Post Adoption,Individual ,715.00, 18-Jul-2017
356,Revenue,CAHD,CSC - Care Leavers Independent Living,Adults - Family Support,Key2 Futures Limited,916.50, 25-Jul-2017
357,Revenue,CAHD,CSC - Care Leavers Independent Living,Adults - Family Support,Key2 Futures Limited,2352.00, 26-Jul-2017
358,Revenue,CAHD,CSC - Care Leavers Independent Living,Adults - Family Support,Key2 Futures Limited,1724.80, 20-Jul-2017
359,Revenue,CAHD,CSC - Care Leavers Independent Living,Adults - Family Support,Key2 Futures Limited,1770.60, 28-Jul-2017
360,Revenue,CAHD,CSC - Adoption Support Fund,Post Adoption,Individual ,574.00, 31-Jul-2017
361,Revenue,CAHD,CSC - Regional Adoption Agency Project,Consultants Fees,Individual ,4000.00, 25-Jul-2017
362,Revenue,CAHD,Placements OLA Special Schools and RB,Other L.A.'s - General,Knowle DGE,2088.42, 31-Jul-2017
363,Revenue,CAHD,Placements OLA Special Schools and RB,Other L.A.'s - General,Knowle DGE,1375.92, 31-Jul-2017
364,Revenue,CAHD,Placements OLA Special Schools and RB,Other L.A.'s - General,Knowle DGE,900.92, 31-Jul-2017
365,Revenue,CAHD,Placements OLA Special Schools and RB,Other L.A.'s - General,Knowle DGE,900.92, 31-Jul-2017
366,Revenue,CAHD,Placements OLA Special Schools and RB,Other L.A.'s - General,Knowle DGE,2088.42, 31-Jul-2017
367,Revenue,CAHD,Schools Specific Grant Income,Other Public Bodies,Knowle DGE,500.00, 18-Jul-2017
368,Revenue,CAHD,Schools Specific Grant Income,Other Public Bodies,Knowle DGE,500.00, 18-Jul-2017
369,Revenue,CAHD,Placements OLA Special Schools and RB,Other L.A.'s - General,Knowle DGE,900.92, 31-Jul-2017
370,Revenue,CAHD,CSC - Vinney Green Secure Unit,R & M by Departments,Lancer Scott Limited,2270.00, 27-Jul-2017
371,Revenue,CAHD,EY Business & Financial Management,Other Public Bodies,Little Steps Pre-School,1560.00, 04-Jul-2017
372,Revenue,CAHD,Statemented Support Academies,Schools Funding,Mangotsfield Secondary School,506.57, 27-Jul-2017
373,Revenue,CAHD,Statemented Support Academies,Schools Funding,Mangotsfield Secondary School,675.44, 27-Jul-2017
374,Revenue,CAHD,Statemented Support Academies,Schools Funding,Mangotsfield Secondary School,844.32, 27-Jul-2017
375,Revenue,CAHD,Schools Specific Grant Income,Other Public Bodies,Mangotsfield Secondary School,500.00, 18-Jul-2017
376,Revenue,CAHD,Independent Special Placements - Pre 16,Other Private Contractors,Mark College,8019.73, 31-Jul-2017
377,Revenue,CAHD,Independent Special Placements - Pre 16,Other Private Contractors,Mark College,20586.23, 31-Jul-2017
378,Revenue,CAHD,Independent Special Placements - Pre 16,Other Private Contractors,Mary Hare School,6574.00, 25-Jul-2017
379,Revenue,CAHD,CSC - Agency Fostering,Foster Parent Allowances,Match Foster Care Ltd,6200.00, 14-Jul-2017
380,Revenue,CAHD,Schools Specific Grant Income,Other Public Bodies,Matravers School,500.00, 18-Jul-2017
381,Revenue,CAHD,CSC - OT Equipment - Children,Daily Living Equipment,Medaco,3170.00, 28-Jul-2017
382,Revenue,CAHD,CSC - Asylum Seekers - Unaccompanied,Independent Living,Merlin H.S.Limited,884.63, 07-Jul-2017
383,Revenue,CAHD,CSC - Legal Fees,Legal Fees,Individual ,800.00, 17-Jul-2017
384,Revenue,CAHD,CSC - Special Guardianship Orders,Special Payments,Individual ,1974.00, 07-Jul-2017
385,Revenue,CAHD,CSC - Vinney Green Secure Unit,Training Expenses,Individual ,2500.00, 27-Jul-2017
386,Revenue,CAHD,CSC - Legal Fees,Legal Fees,Individual ,500.00, 17-Jul-2017
387,Revenue,CAHD,CSC - Special Guardianship Orders,Special Payments,Individual ,1337.14, 07-Jul-2017
388,Revenue,CAHD,CSC - Special Guardianship Orders,Special Payments,Individual ,1031.14, 07-Jul-2017
389,Revenue,CAHD,CSC - Legal Fees,Legal Fees,Individual ,470.00, 17-Jul-2017
390,Revenue,CAHD,CSC - Special Guardianship Orders,Special Payments,Individual ,2313.64, 07-Jul-2017
391,Revenue,CAHD,CSC - Legal Fees,Legal Fees,Individual ,440.00, 17-Jul-2017
392,Revenue,CAHD,CSC - Section 17 Long Term Support,Independent Living,Individual ,800.00, 28-Jul-2017
393,Revenue,CAHD,CSC - Care Leavers Support Costs,Adults - Family Support,Individual ,1211.90, 21-Jul-2017
394,Revenue,CAHD,CSC - LAT Placements,Client Transport,Individual ,650.25, 28-Jul-2017
395,Revenue,CAHD,SEN High Needs - Not at School Base,Other Private Contractors,Individual ,10000.00, 21-Jul-2017
396,Revenue,CAHD,CSC - Legal Fees,Legal Fees,Individual ,1110.00, 14-Jul-2017
397,Revenue,CAHD,CSC - Legal Fees,Legal Fees,Individual ,1110.00, 24-Jul-2017
398,Revenue,CAHD,Schools Specific Grant Income,Other Public Bodies,Mylor Bridge County Primary School,500.00, 14-Jul-2017
399,Revenue,CAHD,Schools Specific Grant Income,Other Public Bodies,Mylor Bridge County Primary School,500.00, 14-Jul-2017
400,Revenue,CAHD,Post 16 High Needs Placements,Other Private Contractors,Natureworks Training Community Interest,845.00, 06-Jul-2017
401,Revenue,CAHD,Statemented Support Payments to OLAs,Other L.A.'s - General,Newbridge Primary School,1294.65, 27-Jul-2017
402,Revenue,CAHD,Independent Special Placements - Pre 16,Other Private Contractors,Newbury Manor Priory,63848.19, 31-Jul-2017
403,Revenue,CAHD,CSC - Care Leavers Independent Living,Adults - Family Support,Next Step Care Management Limited,2357.14, 26-Jul-2017
404,Revenue,CAHD,CSC - Care Leavers Independent Living,Adults - Family Support,Next Step Care Management Limited,2507.14, 14-Jul-2017
405,Revenue,CAHD,CSC - Asylum Seekers - Unaccompanied,Foster Parent Allowances,Nexus Fostering Limited,3596.00, 28-Jul-2017
406,Revenue,CAHD,CSC - Asylum Seekers - Unaccompanied,Foster Parent Allowances,Nexus Fostering Limited,3480.00, 28-Jul-2017
407,Revenue,CAHD,CSC - Asylum Seekers - Unaccompanied,Foster Parent Allowances,Nexus Fostering Limited,3596.00, 28-Jul-2017
408,Revenue,CAHD,Independent Special Placements - Post 16,Other Private Contractors,North Hill House,39546.00, 31-Jul-2017
409,Revenue,CAHD,Independent Special Placements - Pre 16,Other Private Contractors,North Hill House,16224.00, 25-Jul-2017
410,Revenue,CAHD,Independent Special Placements - Pre 16,Other Private Contractors,North Hill House,16224.00, 25-Jul-2017
411,Revenue,CAHD,Independent Special Placements - Pre 16,Other Private Contractors,North Hill House,24349.18, 31-Jul-2017
412,Revenue,CAHD,Independent Special Placements - Pre 16,Other Private Contractors,North Hill House,25257.05, 25-Jul-2017
413,Revenue,CAHD,Independent Special Placements - Pre 16,Other Private Contractors,North Hill House,25225.95, 25-Jul-2017
414,Revenue,CAHD,Independent Special Placements - Pre 16,Other Private Contractors,North Hill House,25273.70, 25-Jul-2017
415,Revenue,CAHD,Independent Special Placements - Pre 16,Other Private Contractors,North Hill House,16866.00, 25-Jul-2017
416,Revenue,CAHD,Statemented Support Payments to OLAs,Other L.A.'s - General,North Lincolnshire Council,2321.88, 11-Jul-2017
417,Revenue,CAHD,Statemented Support Payments to OLAs,Other L.A.'s - General,North Lincolnshire Council,557.25, 11-Jul-2017
418,Revenue,CAHD,CSC - Residential Placements,Permanent Residential,Novalis Trust T/A Cotswold Chine School,65149.50, 28-Jul-2017
419,Revenue,CAHD,CSC - Residential Placements,Permanent Residential,Novalis Trust T/A Cotswold Chine School,23448.75, 26-Jul-2017
420,Revenue,CAHD,Independent Special Placements - Pre 16,Other Private Contractors,Novalis Trust T/A Cotswold Chine School,23448.75, 26-Jul-2017
421,Revenue,CAHD,Independent Special Placements - Pre 16,Other Private Contractors,Novalis Trust T/A Cotswold Chine School,39292.50, 26-Jul-2017
422,Revenue,CAHD,Independent Special Placements - Pre 16,Other Private Contractors,Novalis Trust T/A Cotswold Chine School,22815.00, 26-Jul-2017
423,Revenue,CAHD,Statemented Support Payments to OLAs,Other L.A.'s - General,Oasis Academy Brightstowe,948.86, 27-Jul-2017
424,Revenue,CAHD,Statemented Support Payments to OLAs,Other L.A.'s - General,Oldfield School,643.28, 27-Jul-2017
425,Revenue,CAHD,Statemented Support Academies,Schools Funding,Olympus Academy Trust,1005.15, 27-Jul-2017
426,Revenue,CAHD,Statemented Support Academies,Schools Funding,Olympus Academy Trust,522.65, 27-Jul-2017
427,Revenue,CAHD,Statemented Support Academies,Schools Funding,Olympus Academy Trust,828.23, 27-Jul-2017
428,Revenue,CAHD,Statemented Support Academies,Schools Funding,Olympus Academy Trust,522.65, 27-Jul-2017
429,Revenue,CAHD,Statemented Support Academies,Schools Funding,Olympus Academy Trust,578.94, 27-Jul-2017
430,Revenue,CAHD,Statemented Support Academies,Schools Funding,Olympus Academy Trust,1005.15, 27-Jul-2017
431,Revenue,CAHD,Statemented Support Academies,Schools Funding,Olympus Academy Trust,900.61, 27-Jul-2017
432,Revenue,CAHD,Statemented Support Academies,Schools Funding,Olympus Academy Trust,643.28, 27-Jul-2017
433,Revenue,CAHD,Statemented Support Academies,Schools Funding,Olympus Academy Trust,522.65, 27-Jul-2017
434,Revenue,CAHD,Statemented Support Academies,Schools Funding,Olympus Academy Trust,562.86, 27-Jul-2017
435,Revenue,CAHD,Statemented Support Academies,Schools Funding,Olympus Academy Trust,900.61, 27-Jul-2017
436,Revenue,CAHD,Statemented Support Academies,Schools Funding,Olympus Academy Trust,1294.65, 27-Jul-2017
437,Revenue,CAHD,Statemented Support Academies,Schools Funding,Olympus Academy Trust,675.44, 27-Jul-2017
438,Revenue,CAHD,Statemented Support Academies,Schools Funding,Olympus Academy Trust,659.36, 27-Jul-2017
439,Revenue,CAHD,Statemented Support Academies,Schools Funding,Olympus Academy Trust,788.03, 27-Jul-2017
440,Revenue,CAHD,Statemented Support Academies,Schools Funding,Olympus Academy Trust,1133.82, 27-Jul-2017
441,Revenue,CAHD,Statemented Support Academies,Schools Funding,Olympus Academy Trust,699.57, 27-Jul-2017
442,Revenue,CAHD,Statemented Support Academies,Schools Funding,Olympus Academy Trust,1109.69, 27-Jul-2017
443,Revenue,CAHD,Statemented Support Academies,Schools Funding,Olympus Academy Trust,1101.65, 27-Jul-2017
444,Revenue,CAHD,Statemented Support Academies,Schools Funding,Olympus Academy Trust,900.61, 27-Jul-2017
445,Revenue,CAHD,Statemented Support Academies,Schools Funding,Olympus Academy Trust,739.78, 27-Jul-2017
446,Revenue,CAHD,Statemented Support Academies,Schools Funding,Olympus Academy Trust,562.86, 27-Jul-2017
447,Revenue,CAHD,Statemented Support Academies,Schools Funding,Olympus Academy Trust,1270.53, 27-Jul-2017
448,Revenue,CAHD,Statemented Support Academies,Schools Funding,Olympus Academy Trust,812.15, 27-Jul-2017
449,Revenue,CAHD,Statemented Support Academies,Schools Funding,Olympus Academy Trust,1712.82, 27-Jul-2017
450,Revenue,CAHD,Statemented Support Academies,Schools Funding,Olympus Academy Trust,715.65, 27-Jul-2017
451,Revenue,CAHD,Statemented Support Academies,Schools Funding,Olympus Academy Trust,948.86, 27-Jul-2017
452,Revenue,CAHD,Statemented Support Academies,Schools Funding,Olympus Academy Trust,1157.94, 27-Jul-2017
453,Revenue,CAHD,Statemented Support Academies,Schools Funding,Olympus Academy Trust,763.90, 27-Jul-2017
454,Revenue,CAHD,Statemented Support Academies,Schools Funding,Olympus Academy Trust,836.28, 27-Jul-2017
455,Revenue,CAHD,Statemented Support Academies,Schools Funding,Olympus Academy Trust,707.61, 27-Jul-2017
456,Revenue,CAHD,Statemented Support Academies,Schools Funding,Olympus Academy Trust,506.57, 27-Jul-2017
457,Revenue,CAHD,Statemented Support Academies,Schools Funding,Olympus Academy Trust,940.82, 27-Jul-2017
458,Revenue,CAHD,Statemented Support Academies,Schools Funding,Olympus Academy Trust,1069.48, 27-Jul-2017
459,Revenue,CAHD,Statemented Support Academies,Schools Funding,Olympus Academy Trust,779.98, 27-Jul-2017
460,Revenue,CAHD,Statemented Support Academies,Schools Funding,Olympus Academy Trust,715.65, 27-Jul-2017
461,Revenue,CAHD,Statemented Support Academies,Schools Funding,Olympus Academy Trust,1109.69, 27-Jul-2017
462,Revenue,CAHD,Statemented Support Academies,Schools Funding,Olympus Academy Trust,763.90, 27-Jul-2017
463,Revenue,CAHD,Statemented Support Academies,Schools Funding,Olympus Academy Trust,804.11, 27-Jul-2017
464,Revenue,CAHD,Schools Specific Grant Income,Other Public Bodies,Olympus Academy Trust,500.00, 18-Jul-2017
465,Revenue,CAHD,Schools Specific Grant Income,Other Public Bodies,Olympus Academy Trust,500.00, 18-Jul-2017
466,Revenue,CAHD,Schools Specific Grant Income,Other Public Bodies,Olympus Academy Trust,500.00, 18-Jul-2017
467,Revenue,CAHD,Schools Specific Grant Income,Other Public Bodies,Olympus Academy Trust,500.00, 18-Jul-2017
468,Revenue,CAHD,Schools Specific Grant Income,Other Public Bodies,Olympus Academy Trust,500.00, 18-Jul-2017
469,Revenue,CAHD,Academy Resource Base Funding,Other Public Bodies,Olympus Academy Trust,1202.29, 24-Jul-2017
470,Revenue,CAHD,Academy Resource Base Funding,Other Public Bodies,Olympus Academy Trust,1202.29, 24-Jul-2017
471,Revenue,CAHD,Academy Resource Base Funding,Other Public Bodies,Olympus Academy Trust,1202.29, 24-Jul-2017
472,Revenue,CAHD,Schools Specific Grant Income,Other Public Bodies,Olympus Academy Trust,500.00, 18-Jul-2017
473,Revenue,CAHD,Academy Resource Base Funding,Other Public Bodies,Olympus Academy Trust,1575.48, 24-Jul-2017
474,Revenue,CAHD,Academy Resource Base Funding,Other Public Bodies,Olympus Academy Trust,663.32, 24-Jul-2017
475,Revenue,CAHD,Academy Resource Base Funding,Other Public Bodies,Olympus Academy Trust,1575.48, 24-Jul-2017
476,Revenue,CAHD,Academy Resource Base Funding,Other Public Bodies,Olympus Academy Trust,1575.48, 24-Jul-2017
477,Revenue,CAHD,Academy Resource Base Funding,Other Public Bodies,Olympus Academy Trust,1575.48, 24-Jul-2017
478,Revenue,CAHD,Academy Resource Base Funding,Other Public Bodies,Olympus Academy Trust,1575.48, 24-Jul-2017
479,Revenue,CAHD,Academy Resource Base Funding,Other Public Bodies,Olympus Academy Trust,1575.48, 24-Jul-2017
480,Revenue,CAHD,Academy Resource Base Funding,Other Public Bodies,Olympus Academy Trust,1575.48, 24-Jul-2017
481,Revenue,CAHD,Academy Resource Base Funding,Other Public Bodies,Olympus Academy Trust,1575.48, 24-Jul-2017
482,Revenue,CAHD,Academy Resource Base Funding,Other Public Bodies,Olympus Academy Trust,1575.48, 24-Jul-2017
483,Revenue,CAHD,Academy Resource Base Funding,Other Public Bodies,Olympus Academy Trust,1575.48, 24-Jul-2017
484,Revenue,CAHD,Academy Resource Base Funding,Other Public Bodies,Olympus Academy Trust,1575.48, 24-Jul-2017
485,Revenue,CAHD,Schools Specific Grant Income,Other Public Bodies,Olympus Academy Trust,500.00, 18-Jul-2017
486,Revenue,CAHD,Schools Specific Grant Income - from OLA,Other Public Bodies,Olympus Academy Trust,633.33, 18-Jul-2017
487,Revenue,CAHD,Schools Specific Grant Income,Other Public Bodies,Olympus Academy Trust,500.00, 18-Jul-2017
488,Revenue,CAHD,Schools Specific Grant Income - from OLA,Other Public Bodies,Olympus Academy Trust,1266.66, 18-Jul-2017
489,Revenue,CAHD,Statemented Support Academies,Schools Funding,Olympus Academy Trust,675.44, 27-Jul-2017
490,Revenue,CAHD,Statemented Support Academies,Schools Funding,Olympus Academy Trust,1270.53, 27-Jul-2017
491,Revenue,CAHD,Statemented Support Academies,Schools Funding,Olympus Academy Trust,731.73, 27-Jul-2017
492,Revenue,CAHD,Statemented Support Academies,Schools Funding,Olympus Academy Trust,627.19, 27-Jul-2017
493,Revenue,CAHD,Statemented Support Academies,Schools Funding,Olympus Academy Trust,1109.69, 27-Jul-2017
494,Revenue,CAHD,Statemented Support Academies,Schools Funding,Olympus Academy Trust,506.57, 27-Jul-2017
495,Revenue,CAHD,CSC - Residential Placements,Permanent Residential,Oracle Care Ltd,20150.00, 07-Jul-2017
496,Revenue,CAHD,Statemented Support Payments to OLAs,Other L.A.'s - General,Orchard School Bristol,763.90, 27-Jul-2017
497,Revenue,CAHD,Schools Specific Grant Income,Other Public Bodies,Orchard School Bristol,500.00, 18-Jul-2017
498,Revenue,CAHD,Statemented Support Academies,Schools Funding,Patchway Community College,981.03, 27-Jul-2017
499,Revenue,CAHD,Statemented Support Academies,Schools Funding,Patchway Community College,699.57, 27-Jul-2017
500,Revenue,CAHD,Statemented Support Academies,Schools Funding,Patchway Community College,1174.03, 27-Jul-2017
501,Revenue,CAHD,Statemented Support Academies,Schools Funding,Patchway Community College,1174.03, 27-Jul-2017
502,Revenue,CAHD,Statemented Support Academies,Schools Funding,Patchway Community College,538.73, 27-Jul-2017
503,Revenue,CAHD,Schools Specific Grant Income,Other Public Bodies,Patchway Community College,500.00, 18-Jul-2017
504,Revenue,CAHD,Schools Specific Grant Income,Other Public Bodies,Peak Academy,500.00, 18-Jul-2017
505,Revenue,CAHD,0-25 Management Team,Agency Staff (Admin/Support Staff) Pay,Permanent Futures Ltd,1660.00, 03-Jul-2017
506,Revenue,CAHD,0-25 Management Team,Agency Staff (Admin/Support Staff) Pay,Permanent Futures Ltd,2075.00, 11-Jul-2017
507,Revenue,CAHD,0-25 Management Team,Agency Staff (Admin/Support Staff) Pay,Permanent Futures Ltd,2075.00, 24-Jul-2017
508,Revenue,CAHD,0-25 Management Team,Agency Staff (Admin/Support Staff) Pay,Permanent Futures Ltd,2075.00, 31-Jul-2017
509,Revenue,CAHD,CSC - Residential Placements,Permanent Residential,Peterborough City Council,28230.00, 14-Jul-2017
510,Revenue,CAHD,CSC - Care Leavers Independent Living,Adults - Family Support,Premier Care Management Limited,11378.48, 28-Jul-2017
511,Revenue,CAHD,CSC - Care Leavers Independent Living,Independent Living,Premier Care Management Limited,12620.00, 28-Jul-2017
512,Revenue,CAHD,CSC - Section 17 0-25,Preventative Assistance,Prestige Nursing,1851.36, 07-Jul-2017
513,Revenue,CAHD,CSC - Section 17 0-25,Preventative Assistance,Prestige Nursing,1960.80, 17-Jul-2017
514,Revenue,CAHD,CSC - Section 17 0-25,Preventative Assistance,Prestige Nursing,1796.64, 25-Jul-2017
515,Revenue,CAHD,CSC - Residential Placements,Permanent Residential,Resource Partners SPV Ltd,15857.13, 26-Jul-2017
516,Revenue,CAHD,Post 16 LDD Transport to college,Contract Hire & Operational Leases,Ruskin Mill College,9532.39, 24-Jul-2017
517,Revenue,CAHD,CSC - Care Leavers Support Costs,Independent Living,S G Y H,1143.50, 14-Jul-2017
518,Revenue,CAHD,CSC - Care Leavers Support Costs,Independent Living,S G Y H,571.75, 21-Jul-2017
519,Revenue,CAHD,CSC - OT Equipment - Children,Daily Living Equipment,Safespaces (Cornholme) Ltd,7215.00, 11-Jul-2017
520,Revenue,CAHD,CSC - Vinney Green Secure Unit,Furniture & Fittings Loose,Same as you but different,530.00, 07-Jul-2017
521,Revenue,CAHD,Statemented Support Payments to OLAs,Other L.A.'s - General,Sheldon School,972.98,[] 27-Jul-2017
522,Revenue,CAHD,CSC - Child Protection Advocacy,Grants to Voluntary Bodies,Signis Ltd,3750.00, 14-Jul-2017
523,Revenue,CAHD,CSC - Independent Visitors Scheme,Grants to Voluntary Bodies,Signis Ltd,9000.00, 14-Jul-2017
524,Revenue,CAHD,CSC - Residential Placements,Permanent Residential,Signis Ltd,706.00, 28-Jul-2017
525,Revenue,CAHD,LSE - Schools Priority Support,Consultants Fees,Signis Ltd,850.00, 28-Jul-2017
526,Revenue,CAHD,Independent Special Placements - Pre 16,Other Private Contractors,Silverhill School,1395.96,[] 26-Jul-2017
527,Revenue,CAHD,Independent Special Placements - Pre 16,Other Private Contractors,Silverhill School,1221.46, 04-Jul-2017
528,Revenue,CAHD,Independent Special Placements - Pre 16,Other Private Contractors,Silverhill School,1308.71, 26-Jul-2017
529,Revenue,CAHD,Independent Special Placements - Pre 16,Other Private Contractors,Silverhill School,931.80, 04-Jul-2017
530,Revenue,CAHD,CSC - Section 17 0-25,Preventative Assistance,Sirona Care & Health CIC,609.00, 04-Jul-2017
531,Revenue,CAHD,Post 16 High Needs Placements,Other Private Contractors,South Gloucestershire and Stroud College,33438.44, 07-Jul-2017
532,Revenue,CAHD,Post 16 High Needs Placements,Other Private Contractors,South Gloucestershire and Stroud College,13500.00, 24-Jul-2017
533,Revenue,CAHD,CSC - Safeguarding Board,Project Funding,South West Grid For Learning Trust Ltd,5770.00, 05-Jul-2017
534,Revenue,CAHD,Independent Special Placements - Pre 16,Other Private Contractors,Sports Heroes Limited,2080.00, 07-Jul-2017
535,Revenue,CAHD,Independent Special Placements - Pre 16,Other Private Contractors,Sports Heroes Limited,1430.00, 06-Jul-2017
536,Revenue,CAHD,Post 16 High Needs Placements,Other Private Contractors,Sports Heroes Limited,1170.00, 12-Jul-2017
537,Revenue,CAHD,Independent Special Placements - Pre 16,Other Private Contractors,Sports Heroes Limited,1560.00, 12-Jul-2017
538,Revenue,CAHD,Post 16 High Needs Placements,Other Private Contractors,Sports Heroes Limited,1170.00, 12-Jul-2017
539,Revenue,CAHD,Post 16 High Needs Placements,Other Private Contractors,Sports Heroes Limited,1170.00, 12-Jul-2017
540,Revenue,CAHD,Post 16 High Needs Placements,Other Private Contractors,Sports Heroes Limited,780.00, 12-Jul-2017
541,Revenue,CAHD,Post 16 High Needs Placements,Other Private Contractors,Sports Heroes Limited,780.00, 12-Jul-2017
542,Revenue,CAHD,Post 16 High Needs Placements,Other Private Contractors,Sports Heroes Limited,1170.00, 12-Jul-2017
543,Revenue,CAHD,Independent Special Placements - Pre 16,Other Private Contractors,Sports Heroes Limited,975.00, 12-Jul-2017
544,Revenue,CAHD,Post 16 High Needs Placements,Other Private Contractors,Sports Heroes Limited,780.00, 12-Jul-2017
545,Revenue,CAHD,CSC - Residential Placements,Permanent Residential,Step-A-Side Company Ltd,15757.80, 28-Jul-2017
546,Revenue,CAHD,CSC - Residential Placements,Permanent Residential,Step-A-Side Company Ltd,709.00,[] 28-Jul-2017
547,Revenue,CAHD,CSC - Adoption Support Fund,Post Adoption,Individual ,311.66, 28-Jul-2017
548,Revenue,CAHD,CSC - Adoption Support Fund,Post Adoption,Individual ,311.66, 28-Jul-2017
549,Revenue,CAHD,CSC - Adoption Support Fund,Post Adoption,Individual ,507.55, 26-Jul-2017
550,Revenue,CAHD,CSC - Adoption Support Fund,Post Adoption,Individual ,507.55, 26-Jul-2017
551,Revenue,CAHD,CSC - Adoption Support Fund,Post Adoption,Individual ,1376.00,[] 12-Jul-2017
552,Revenue,CAHD,CSC - Agency Fostering,Foster Parent Allowances,TACT,3065.28, 17-Jul-2017
553,Revenue,CAHD,CSC - Agency Fostering,Foster Parent Allowances,TACT,2231.40, 28-Jul-2017
554,Revenue,CAHD,CSC - Asylum Seekers - Unaccompanied,Foster Parent Allowances,TACT,2815.20, 28-Jul-2017
555,Revenue,CAHD,CSC - Asylum Seekers - Unaccompanied,Foster Parent Allowances,TACT,2842.80, 28-Jul-2017
556,Revenue,CAHD,CSC - Agency Fostering,Foster Parent Allowances,TACT,3060.00, 28-Jul-2017
557,Revenue,CAHD,Training Budget - Children`s Social Serv,Training Expenses,Tamarisk Training,800.00, 13-Jul-2017
558,Revenue,CAHD,CSC - Vinney Green Secure Unit,Other Consumable Materials,The Consortium,539.52, 27-Jul-2017
559,Revenue,CAHD,CSC - Agency Fostering,Foster Parent Allowances,The Foster Care Co-operative,3283.77, 11-Jul-2017
560,Revenue,CAHD,CSC - Agency Fostering,Foster Parent Allowances,The Foster Care Co-operative,3283.77, 11-Jul-2017
561,Revenue,CAHD,CSC - Asylum Seekers - Unaccompanied,Foster Parent Allowances,The Fostering Foundation Limited,3675.71, 31-Jul-2017
562,Revenue,CAHD,CSC - Care Leavers Independent Living,Adults - Family Support,The Leaving Care Company Limited,5442.86, 18-Jul-2017
563,Revenue,CAHD,CSC - Care Leavers Independent Living,Adults - Family Support,The Leaving Care Company Limited,3383.29, 13-Jul-2017
564,Revenue,CAHD,CSC - Care Leavers Independent Living,Independent Living,The Leaving Care Company Limited,3198.78,[] 20-Jul-2017
565,Revenue,CAHD,CSC - Care Leavers Independent Living,Adults - Family Support,The Leaving Care Company Limited,2169.43, 14-Jul-2017
566,Revenue,CAHD,CSC - Care Leavers Independent Living,Adults - Family Support,The Leaving Care Company Limited,24503.29, 14-Jul-2017
567,Revenue,CAHD,CSC - Care Leavers Independent Living,Adults - Family Support,The Leaving Care Company Limited,3950.29, 19-Jul-2017
568,Revenue,CAHD,CSC - Care Leavers Independent Living,Adults - Family Support,The Leaving Care Company Limited,2546.29, 20-Jul-2017
569,Revenue,CAHD,CSC - Care Leavers Independent Living,Adults - Family Support,The Leaving Care Company Limited,3822.86, 28-Jul-2017
570,Revenue,CAHD,CSC - Care Leavers Independent Living,Adults - Family Support,The Leaving Care Company Limited,1436.29, 28-Jul-2017
571,Revenue,CAHD,CSC - Care Leavers Independent Living,Adults - Family Support,The Leaving Care Company Limited,2526.86, 28-Jul-2017
572,Revenue,CAHD,CSC - Care Leavers Independent Living,Adults - Family Support,The Leaving Care Company Limited,2686.86, 28-Jul-2017
573,Revenue,CAHD,Academy Resource Base Funding,Other Public Bodies,The Ridings Federation of Academies,2493.16, 18-Jul-2017
574,Revenue,CAHD,Academy Resource Base Funding,Other Public Bodies,The Ridings Federation of Academies,663.32, 24-Jul-2017
575,Revenue,CAHD,Academy Resource Base Funding,Other Public Bodies,The Ridings Federation of Academies,1036.50, 24-Jul-2017
576,Revenue,CAHD,Academy Resource Base Funding,Other Public Bodies,The Ridings Federation of Academies,1741.27, 24-Jul-2017
577,Revenue,CAHD,Academy Resource Base Funding,Other Public Bodies,The Ridings Federation of Academies,1575.48, 24-Jul-2017
578,Revenue,CAHD,Academy Resource Base Funding,Other Public Bodies,The Ridings Federation of Academies,1202.29, 24-Jul-2017
579,Revenue,CAHD,Academy Resource Base Funding,Other Public Bodies,The Ridings Federation of Academies,1202.29, 24-Jul-2017
580,Revenue,CAHD,Academy Resource Base Funding,Other Public Bodies,The Ridings Federation of Academies,663.32, 24-Jul-2017
581,Revenue,CAHD,Academy Resource Base Funding,Other Public Bodies,The Ridings Federation of Academies,663.32, 24-Jul-2017
582,Revenue,CAHD,Academy Resource Base Funding,Other Public Bodies,The Ridings Federation of Academies,1741.27, 24-Jul-2017
583,Revenue,CAHD,Academy Resource Base Funding,Other Public Bodies,The Ridings Federation of Academies,663.32, 24-Jul-2017
584,Revenue,CAHD,Academy Resource Base Funding,Other Public Bodies,The Ridings Federation of Academies,1575.48, 24-Jul-2017
585,Revenue,CAHD,Academy Resource Base Funding,Other Public Bodies,The Ridings Federation of Academies,849.32, 25-Jul-2017
586,Revenue,CAHD,Schools Specific Grant Income,Other Public Bodies,The Ridings Federation of Academies,500.00, 18-Jul-2017
587,Revenue,CAHD,Schools Specific Grant Income,Other Public Bodies,The Ridings Federation of Academies,500.00, 18-Jul-2017
588,Revenue,CAHD,Schools Specific Grant Income,Other Public Bodies,The Ridings Federation of Academies,500.00, 18-Jul-2017
589,Revenue,CAHD,Schools Specific Grant Income,Other Public Bodies,The Ridings Federation of Academies,500.00, 18-Jul-2017
590,Revenue,CAHD,Schools Specific Grant Income,Other Public Bodies,The Ridings Federation of Academies,500.00, 18-Jul-2017
591,Revenue,CAHD,Statemented Support Academies,Schools Funding,The Ridings Federation of Academies,570.90, 27-Jul-2017
592,Revenue,CAHD,Statemented Support Academies,Schools Funding,The Ridings Federation of Academies,506.57,[] 27-Jul-2017
593,Revenue,CAHD,Statemented Support Academies,Schools Funding,The Ridings Federation of Academies,900.61, 27-Jul-2017
594,Revenue,CAHD,Statemented Support Academies,Schools Funding,The Ridings Federation of Academies,506.57, 27-Jul-2017
595,Revenue,CAHD,Statemented Support Academies,Schools Funding,The Ridings Federation of Academies,699.57, 27-Jul-2017
596,Revenue,CAHD,Statemented Support Academies,Schools Funding,The Ridings Federation of Academies,1013.19, 27-Jul-2017
597,Revenue,CAHD,Statemented Support Academies,Schools Funding,The Ridings Federation of Academies,1270.53, 27-Jul-2017
598,Revenue,CAHD,Statemented Support Academies,Schools Funding,The Ridings Federation of Academies,562.86, 27-Jul-2017
599,Revenue,CAHD,Statemented Support Academies,Schools Funding,The Ridings Federation of Academies,595.03, 27-Jul-2017
600,Revenue,CAHD,Statemented Support Academies,Schools Funding,The Ridings Federation of Academies,530.69, 27-Jul-2017
601,Revenue,CAHD,Statemented Support Academies,Schools Funding,The Ridings Federation of Academies,659.36, 27-Jul-2017
602,Revenue,CAHD,Statemented Support Academies,Schools Funding,The Ridings Federation of Academies,1334.86, 27-Jul-2017
603,Revenue,CAHD,Statemented Support Academies,Schools Funding,The Ridings Federation of Academies,1013.19, 27-Jul-2017
604,Revenue,CAHD,Statemented Support Academies,Schools Funding,The Ridings Federation of Academies,611.11, 27-Jul-2017
605,Revenue,CAHD,Statemented Support Academies,Schools Funding,The Ridings Federation of Academies,1182.07, 27-Jul-2017
606,Revenue,CAHD,Statemented Support Academies,Schools Funding,The Ridings Federation of Academies,1013.19, 27-Jul-2017
607,Revenue,CAHD,Statemented Support Academies,Schools Funding,The Ridings Federation of Academies,522.65, 27-Jul-2017
608,Revenue,CAHD,Statemented Support Academies,Schools Funding,The Ridings Federation of Academies,1013.19, 27-Jul-2017
609,Revenue,CAHD,Statemented Support Academies,Schools Funding,The Ridings Federation of Academies,852.36, 27-Jul-2017
610,Revenue,CAHD,Statemented Support Academies,Schools Funding,The Ridings Federation of Academies,828.23, 27-Jul-2017
611,Revenue,CAHD,Statemented Support Academies,Schools Funding,The Ridings Federation of Academies,788.03, 27-Jul-2017
612,Revenue,CAHD,Statemented Support Academies,Schools Funding,The Ridings Federation of Academies,683.48, 27-Jul-2017
613,Revenue,CAHD,Statemented Support Academies,Schools Funding,The Ridings Federation of Academies,707.61, 27-Jul-2017
614,Revenue,CAHD,Statemented Support Academies,Schools Funding,The Ridings Federation of Academies,1125.78, 27-Jul-2017
615,Revenue,CAHD,Statemented Support Academies,Schools Funding,The Ridings Federation of Academies,659.36, 27-Jul-2017
616,Revenue,CAHD,Statemented Support Academies,Schools Funding,The Ridings Federation of Academies,989.07, 27-Jul-2017
617,Revenue,CAHD,Statemented Support Academies,Schools Funding,The Ridings Federation of Academies,683.48, 27-Jul-2017
618,Revenue,CAHD,Placements OLA Special Schools and RB,Other L.A.'s - General,Three Ways Special School,615.24, 31-Jul-2017
619,Revenue,CAHD,Placements OLA Special Schools and RB,Other L.A.'s - General,Three Ways Special School,1169.54, 31-Jul-2017
620,Revenue,CAHD,Placements OLA Special Schools and RB,Other L.A.'s - General,Three Ways Special School,713.91, 31-Jul-2017
621,Revenue,CAHD,CSC - Section 17 0-25,Preventative Assistance,Tinies Bristol Ltd,630.00, 21-Jul-2017
622,Revenue,CAHD,Independent Special Placements - Pre 16,Other Private Contractors,Tockington Manor School Limted,1418.50,[] 18-Jul-2017
623,Revenue,CAHD,CSC - OT Equipment - Children,Daily Living Equipment,TVM Cheltenham Limited,1470.00, 20-Jul-2017
624,Revenue,CAHD,CSC - OT Equipment - Children,Daily Living Equipment,TVM Cheltenham Limited,2221.00, 28-Jul-2017
625,Revenue,CAHD,CSC - OT Equipment - Children,Daily Living Equipment,TVM Cheltenham Limited,745.00, 28-Jul-2017
626,Revenue,CAHD,CSC - Vinney Green Secure Unit,"Provisions (Food, etc)",VH Graddon & Sons Vending Limited,632.42, 07-Jul-2017
627,Revenue,CAHD,Training Budget - Children`s Social Serv,Training Expenses,Individual ,2250.00, 27-Jul-2017
628,Revenue,CAHD,Schools Specific Grant Income,Other Public Bodies,Walworth School,500.00, 14-Jul-2017
629,Revenue,CAHD,CSC - Vinney Green Secure Unit,Water Charges,Water2business Limited,819.01, 28-Jul-2017
630,Revenue,CAHD,Statemented Support Academies,Schools Funding,Wellsway MAT T/A Sir Bernard Lovell School,812.15, 27-Jul-2017
631,Revenue,CAHD,Statemented Support Academies,Schools Funding,Wellsway MAT T/A Sir Bernard Lovell School,562.86, 27-Jul-2017
632,Revenue,CAHD,Statemented Support Academies,Schools Funding,Wellsway MAT T/A Sir Bernard Lovell School,627.19, 27-Jul-2017
633,Revenue,CAHD,Statemented Support Academies,Schools Funding,Wellsway MAT T/A Sir Bernard Lovell School,667.40, 27-Jul-2017
634,Revenue,CAHD,Statemented Support Academies,Schools Funding,Wellsway MAT T/A Sir Bernard Lovell School,1504.89, 27-Jul-2017
635,Revenue,CAHD,Statemented Support Academies,Schools Funding,Wellsway MAT T/A Sir Bernard Lovell School,675.44, 27-Jul-2017
636,Revenue,CAHD,Statemented Support Academies,Schools Funding,Wellsway MAT T/A Sir Bernard Lovell School,562.86, 27-Jul-2017
637,Revenue,CAHD,Statemented Support Academies,Schools Funding,Wellsway MAT T/A Sir Bernard Lovell School,844.32, 27-Jul-2017
638,Revenue,CAHD,Statemented Support Academies,Schools Funding,Wellsway MAT T/A Sir Bernard Lovell School,2701.83, 27-Jul-2017
639,Revenue,CAHD,Schools Specific Grant Income,Other Public Bodies,Wellsway MAT T/A Sir Bernard Lovell School,500.00,[] 18-Jul-2017
640,Revenue,CAHD,Schools Specific Grant Income,Other Public Bodies,Wellsway MAT T/A Sir Bernard Lovell School,500.00, 18-Jul-2017
641,Revenue,CAHD,Schools Specific Grant Income,Other Public Bodies,Wellsway MAT T/A Sir Bernard Lovell School,500.00, 18-Jul-2017
642,Revenue,CAHD,Schools Specific Grant Income - from OLA,Other Public Bodies,Wellsway MAT T/A Sir Bernard Lovell School,657.33, 18-Jul-2017
643,Revenue,CAHD,Statemented Support Payments to OLAs,Other L.A.'s - General,Wellsway School,932.78, 27-Jul-2017
644,Revenue,CAHD,CSC - Vinney Green Secure Unit,Furniture & Fittings Loose,Welltex Care & Hospitality Furnishing,496.75, 17-Jul-2017
645,Revenue,CAHD,Post 16 High Needs Placements,Other Private Contractors,WESC Foundation,11392.27, 17-Jul-2017
646,Revenue,CAHD,CSC - Vinney Green Secure Unit,Gas,West Mercia Energy,1708.74, 06-Jul-2017
647,Revenue,CAHD,CSC - Vinney Green Secure Unit,Electricity,West Mercia Energy,5732.03, 05-Jul-2017
648,Revenue,CAHD,Schools Specific Grant Income,Other Public Bodies,Westonbirt School,500.00, 18-Jul-2017
649,Revenue,CAHD,Schools Specific Grant Income,Other Public Bodies,Woodstock School,500.00, 14-Jul-2017
650,Revenue,CAHD,CSC - LAT Placements,Preventative Assistance,Individual ,946.20, 21-Jul-2017
651,Revenue,CAHD,Yate Detached,Other Supplies & Services,Yate Town Council,2675.00, 04-Jul-2017
652,Revenue,CAHD,CSC - Residential Placements,Permanent Residential,Young Foundations Ltd,16900.00,[] 20-Jul-2017
653,Revenue,CAHD,CSC - Residential Placements,Permanent Residential,Young Foundations Ltd,4500.00, 20-Jul-2017
654,Revenue,CAHD,Bed Purchasing - North,Permanent Nursing,.,3294.28, 04-Jul-2017
655,Revenue,CAHD,South Glos Users in South Glos Homes,Permanent Nursing,.,620.20, 04-Jul-2017
656,Revenue,CAHD,Bed Purchasing - South,Permanent Nursing,.,3349.56, 04-Jul-2017
657,Revenue,CAHD,South Glos Users in South Glos Homes,Permanent Nursing,.,620.20, 04-Jul-2017
658,Revenue,CAHD,Bed Purchasing - North,Permanent Nursing,.,3294.28, 04-Jul-2017
659,Revenue,CAHD,South Glos Users in South Glos Homes,Permanent Nursing,.,620.20, 04-Jul-2017
660,Revenue,CAHD,Bed Purchasing - South,Permanent Nursing,.,3294.28, 04-Jul-2017
661,Revenue,CAHD,South Glos Users in South Glos Homes,Permanent Nursing,.,620.20, 04-Jul-2017
662,Revenue,CAHD,Bed Purchasing - Southmead Hospital,Permanent Nursing,.,4800.00, 04-Jul-2017
663,Revenue,CAHD,South Glos Users in South Glos Homes,Permanent Nursing,.,620.20, 04-Jul-2017
664,Revenue,CAHD,South Glos Users in South Glos Homes,Permanent Nursing,.,620.20, 04-Jul-2017
665,Revenue,CAHD,Bed Purchasing - North,Permanent Residential,.,4254.60, 04-Jul-2017
666,Revenue,CAHD,South Glos Users in South Glos Homes,Permanent Nursing,.,620.20, 04-Jul-2017
667,Revenue,CAHD,Bed Purchasing - South,Permanent Nursing,.,3621.48, 04-Jul-2017
668,Revenue,CAHD,South Glos Users in South Glos Homes,Permanent Nursing,.,620.20, 04-Jul-2017
669,Revenue,CAHD,Bed Purchasing - North,Permanent Nursing,.,5039.68, 04-Jul-2017
670,Revenue,CAHD,South Glos Users in South Glos Homes,Permanent Nursing,.,620.20, 04-Jul-2017
671,Revenue,CAHD,Bed Purchasing - South,Permanent Nursing,.,3824.08, 04-Jul-2017
672,Revenue,CAHD,South Glos Users in South Glos Homes,Permanent Nursing,.,620.20, 04-Jul-2017
673,Revenue,CAHD,Bed Purchasing - Southmead Hospital,Permanent Nursing,.,3824.08, 04-Jul-2017
674,Revenue,CAHD,South Glos Users in South Glos Homes,Permanent Nursing,.,620.20, 04-Jul-2017
675,Revenue,CAHD,South Glos Users in South Glos Homes,Permanent Nursing,.,620.20, 04-Jul-2017
676,Revenue,CAHD,South Glos Users in South Glos Homes,Permanent Nursing,.,620.20, 04-Jul-2017
677,Revenue,CAHD,Bed Purchasing - Southmead Hospital,Permanent Nursing,.,4049.79, 04-Jul-2017
678,Revenue,CAHD,Bed Purchasing - Southmead Hospital,Permanent Nursing,.,3779.80, 04-Jul-2017
679,Revenue,CAHD,South Glos Users in South Glos Homes,Permanent Nursing,.,1749.85, 04-Jul-2017
680,Revenue,CAHD,South Glos Users in South Glos Homes,Permanent Nursing,.,620.20, 04-Jul-2017
681,Revenue,CAHD,Bed Purchasing - Southmead Hospital,Fees & Charges Income - General,.,557.01, 04-Jul-2017
682,Revenue,CAHD,South Glos Users in South Glos Homes,Permanent Nursing,.,620.20, 04-Jul-2017
683,Revenue,CAHD,South Glos Users in South Glos Homes,Permanent Nursing,.,620.20, 04-Jul-2017
684,Revenue,CAHD,South Glos Users in South Glos Homes,Permanent Nursing,.,620.20, 04-Jul-2017
685,Revenue,CAHD,Bed Purchasing - North,Permanent Nursing,.,4228.56, 04-Jul-2017
686,Revenue,CAHD,South Glos Users in South Glos Homes,Permanent Nursing,.,620.20, 04-Jul-2017
687,Revenue,CAHD,South Glos Users in South Glos Homes,Permanent Nursing,.,620.20, 04-Jul-2017
688,Revenue,CAHD,South Glos Users in South Glos Homes,Permanent Nursing,.,620.20, 04-Jul-2017
689,Revenue,CAHD,South Glos Users in South Glos Homes,Permanent Nursing,.,620.20, 04-Jul-2017
690,Revenue,CAHD,South Glos Users in South Glos Homes,Permanent Nursing,.,620.20, 04-Jul-2017
691,Revenue,CAHD,South Glos Users in South Glos Homes,Permanent Nursing,.,620.20, 04-Jul-2017
692,Revenue,CAHD,South Glos Users in South Glos Homes,Permanent Nursing,.,620.20, 04-Jul-2017
693,Revenue,CAHD,South Glos Users in South Glos Homes,Permanent Nursing,.,620.20, 04-Jul-2017
694,Revenue,CAHD,South Glos Users in South Glos Homes,Permanent Nursing,.,620.20, 04-Jul-2017
695,Revenue,CAHD,South Glos Users in South Glos Homes,Permanent Nursing,.,620.20, 04-Jul-2017
696,Revenue,CAHD,South Glos Users in South Glos Homes,Permanent Nursing,.,620.20, 04-Jul-2017
697,Revenue,CAHD,South Glos Users in South Glos Homes,Permanent Nursing,.,620.20, 04-Jul-2017
698,Revenue,CAHD,South Glos Users in South Glos Homes,Permanent Nursing,.,620.20, 04-Jul-2017
699,Revenue,CAHD,South Glos Users in South Glos Homes,Permanent Nursing,.,620.20, 04-Jul-2017
700,Revenue,CAHD,South Glos Users in South Glos Homes,Permanent Nursing,.,620.20, 04-Jul-2017
701,Revenue,CAHD,South Glos Users in South Glos Homes,Permanent Nursing,.,620.20, 04-Jul-2017
702,Revenue,CAHD,South Glos Users in South Glos Homes,Permanent Nursing,.,1506.20, 04-Jul-2017
703,Revenue,CAHD,South Glos Users in South Glos Homes,Permanent Nursing,.,553.75, 04-Jul-2017
704,Revenue,CAHD,South Glos Users in South Glos Homes,Permanent Nursing,.,620.20, 04-Jul-2017
705,Revenue,CAHD,South Glos Users in South Glos Homes,Permanent Nursing,.,620.20, 04-Jul-2017
706,Revenue,CAHD,South Glos Users in South Glos Homes,Permanent Nursing,.,620.20, 04-Jul-2017
707,Revenue,CAHD,South Glos Users in South Glos Homes,Permanent Nursing,.,620.20, 04-Jul-2017
708,Revenue,CAHD,South Glos Users in South Glos Homes,Permanent Nursing,.,620.20, 04-Jul-2017
709,Revenue,CAHD,South Glos Users in South Glos Homes,Permanent Nursing,.,730.95, 04-Jul-2017
710,Revenue,CAHD,South Glos Users in South Glos Homes,Permanent Nursing,.,620.20, 04-Jul-2017
711,Revenue,CAHD,South Glos Users in South Glos Homes,Permanent Nursing,.,620.20, 04-Jul-2017
712,Revenue,CAHD,South Glos Users in South Glos Homes,Permanent Nursing,.,620.20, 04-Jul-2017
713,Revenue,CAHD,Bed Purchasing - Southmead Hospital,Permanent Residential,.,4400.00, 04-Jul-2017
714,Revenue,CAHD,South Glos Users in South Glos Homes,Permanent Nursing,.,620.20, 04-Jul-2017
715,Revenue,CAHD,Bed Purchasing - North,Permanent Nursing,.,3114.96, 04-Jul-2017
716,Revenue,CAHD,South Glos Users in South Glos Homes,Permanent Nursing,.,620.20, 04-Jul-2017
717,Revenue,CAHD,Bed Purchasing - South,Permanent Nursing,.,6884.64, 04-Jul-2017
718,Revenue,CAHD,Bed Purchasing - South,Permanent Nursing,.,3779.80, 04-Jul-2017
719,Revenue,CAHD,South Glos Users in South Glos Homes,Permanent Nursing,.,1129.65, 04-Jul-2017
720,Revenue,CAHD,South Glos Users in South Glos Homes,Permanent Nursing,.,620.20, 04-Jul-2017
721,Revenue,CAHD,Bed Purchasing - North,Permanent Nursing,.,3294.28, 04-Jul-2017
722,Revenue,CAHD,South Glos Users in South Glos Homes,Permanent Nursing,.,620.20, 04-Jul-2017
723,Revenue,CAHD,South Glos Users in South Glos Homes,Permanent Nursing,.,620.20, 04-Jul-2017
724,Revenue,CAHD,Bed Purchasing - Southmead Hospital,Permanent Nursing,.,3824.08, 04-Jul-2017
725,Revenue,CAHD,South Glos Users in South Glos Homes,Permanent Nursing,.,620.20, 04-Jul-2017
726,Revenue,CAHD,South Glos Users in South Glos Homes,Permanent Nursing,.,620.20, 04-Jul-2017
727,Revenue,CAHD,South Glos Users in South Glos Homes,Permanent Nursing,.,620.20, 04-Jul-2017
728,Revenue,CAHD,South Glos Users in South Glos Homes,Permanent Nursing,.,1749.85, 04-Jul-2017
729,Revenue,CAHD,South Glos Users in South Glos Homes,Permanent Nursing,.,1049.11, 04-Jul-2017
730,Revenue,CAHD,South Glos Users in South Glos Homes,Permanent Nursing,.,620.20, 04-Jul-2017
731,Revenue,CAHD,Bed Purchasing - North,Permanent Residential,.,3545.52, 04-Jul-2017
732,Revenue,CAHD,18-25 Year Olds,Permanent Residential,1 St Georges House,14038.20, 04-Jul-2017
733,Revenue,CAHD,Home Care - Elderly - South,Day Care / Social Activities,3 Trees Community Support Ltd,93.40, 07-Jul-2017
734,Revenue,CAHD,Home Care - Elderly - North,Day Care / Social Activities,3 Trees Community Support Ltd,1372.98, 07-Jul-2017
735,Revenue,CAHD,Home Care - Elderly - North,Other Small Contracts,3 Trees Community Support Ltd,700.50, 07-Jul-2017
736,Revenue,CAHD,Home Care - Elderly - North,Supported Living,3 Trees Community Support Ltd,7411.81, 07-Jul-2017
737,Revenue,CAHD,Home Care - Elderly - South,Day Care / Social Activities,3 Trees Community Support Ltd,93.40, 12-Jul-2017
738,Revenue,CAHD,Home Care - Elderly - North,Day Care / Social Activities,3 Trees Community Support Ltd,1382.32, 12-Jul-2017
739,Revenue,CAHD,Home Care - Elderly - North,Other Small Contracts,3 Trees Community Support Ltd,705.17, 12-Jul-2017
740,Revenue,CAHD,Home Care - Elderly - North,Supported Living,3 Trees Community Support Ltd,7409.85, 12-Jul-2017
741,Revenue,CAHD,Home Care - Elderly - South,Day Care / Social Activities,3 Trees Community Support Ltd,93.40, 17-Jul-2017
742,Revenue,CAHD,Home Care - Elderly - North,Day Care / Social Activities,3 Trees Community Support Ltd,1372.98, 17-Jul-2017
743,Revenue,CAHD,Home Care - Elderly - North,Other Small Contracts,3 Trees Community Support Ltd,709.84, 17-Jul-2017
744,Revenue,CAHD,Home Care - Elderly - North,Supported Living,3 Trees Community Support Ltd,7444.89, 17-Jul-2017
745,Revenue,CAHD,Home Care - Elderly - South,Day Care / Social Activities,3 Trees Community Support Ltd,93.40, 27-Jul-2017
746,Revenue,CAHD,Home Care - Elderly - North,Day Care / Social Activities,3 Trees Community Support Ltd,723.85, 27-Jul-2017
747,Revenue,CAHD,Home Care - Elderly - North,Other Small Contracts,3 Trees Community Support Ltd,709.84, 27-Jul-2017
748,Revenue,CAHD,Home Care - Elderly - North,Supported Living,3 Trees Community Support Ltd,7415.00, 27-Jul-2017
749,Revenue,CAHD,Bed Purchasing - North,Permanent Nursing,3Rd Floor  The Aspect,4429.01, 04-Jul-2017
750,Revenue,CAHD,Bed Purchasing - North,Permanent Nursing,3Rd Floor  The Aspect,3179.80, 04-Jul-2017
751,Revenue,CAHD,18-25 Year Olds,Permanent Residential,5Th Floor Harlech Court,14619.64, 04-Jul-2017
752,Revenue,CAHD,18-25 Year Olds,Permanent Residential,5Th Floor Harlech Court,14760.00, 04-Jul-2017
753,Revenue,CAHD,18-25 Year Olds,Permanent Residential,5Th Floor Harlech Court,13130.76, 04-Jul-2017
754,Revenue,CAHD,Bed Purchasing - North,Permanent Residential,5Th Floor Harlech Court,15870.60, 04-Jul-2017
755,Revenue,CAHD,18-25 Year Olds,Respite Planned - Residential,5Th Floor Harlech Court,13412.60, 04-Jul-2017
756,Revenue,CAHD,Bed Purchasing - North,Permanent Residential,5Th Floor Harlech Court,14104.28, 04-Jul-2017
757,Revenue,CAHD,Jointly Funded H&SC Packages,Permanent Residential,5Th Floor Harlech Court,3490.16, 04-Jul-2017
758,Revenue,CAHD,18-25 Year Olds,Permanent Residential,5Th Floor Harlech Court,16704.04, 04-Jul-2017
759,Revenue,CAHD,Bed Purchasing - South,Permanent Residential,5Th Floor Harlech Court,15973.00, 04-Jul-2017
760,Revenue,CAHD,Bed Purchasing - South,Permanent Residential,5Th Floor Harlech Court,9985.60, 04-Jul-2017
761,Revenue,CAHD,Bed Purchasing - South,Fees & Charges Income - General,5Th Floor Harlech Court,844.00, 04-Jul-2017
762,Revenue,CAHD,Bed Purchasing - South,Fees & Charges Income - General,5Th Floor Harlech Court,795.96, 04-Jul-2017
763,Revenue,CAHD,Bed Purchasing - South,Fees & Charges Income - General,5Th Floor Harlech Court,1229.74, 04-Jul-2017
764,Revenue,CAHD,Bed purchasing - S28A Under 65 - South,Permanent Residential,5Th Floor Harlech Court,10450.56, 04-Jul-2017
765,Revenue,CAHD,Bed Purchasing - South,Permanent Residential,5Th Floor Harlech Court,10960.12, 04-Jul-2017
766,Revenue,CAHD,Bed Purchasing - North,Permanent Nursing,ABI Development Limited,7591.84, 04-Jul-2017
767,Revenue,CAHD,Home Care - Elderly - South,Day Care / Social Activities,About Me Care and Support Limited,1359.04, 28-Jul-2017
768,Revenue,CAHD,Home Care - Elderly - North,Day Care / Social Activities,About Me Care and Support Limited,526.08, 28-Jul-2017
769,Revenue,CAHD,Home Care - Elderly - South,Day Care / Social Activities,About Me Care and Support Limited,832.96, 28-Jul-2017
770,Revenue,CAHD,Home Care - Elderly - South,Day Care / Social Activities,About Me Care and Support Limited,832.96, 28-Jul-2017
771,Revenue,CAHD,Home Care - Elderly - North,Day Care / Social Activities,About Me Care and Support Limited,526.08, 26-Jul-2017
772,Revenue,CAHD,Home Care - Elderly - South,Day Care / Social Activities,About Me Care and Support Limited,1359.04, 26-Jul-2017
773,Revenue,CAHD,Community Support - South,Preventative Assistance,Accessible Transport 4 U,780.00, 06-Jul-2017
774,Revenue,CAHD,Community Care Contact Centre,Preventative Assistance,Accessible Transport 4 U,719.75, 03-Jul-2017
775,Revenue,CAHD,Community Support - South,Preventative Assistance,Accessible Transport 4 U,780.00, 28-Jul-2017
776,Revenue,CAHD,Community Support - South,Preventative Assistance,Accessible Transport 4 U,624.00, 28-Jul-2017
777,Revenue,CAHD,Community Support - South,Preventative Assistance,Accessible Transport 4 U,704.25, 28-Jul-2017
778,Revenue,CAHD,Training - Adult Services,Training Expenses,Acorn Health & Safety Limited,465.00, 19-Jul-2017
779,Revenue,CAHD,Training - Adult Services,Training Expenses,Acorn Health & Safety Limited,465.00, 27-Jul-2017
780,Revenue,CAHD,CAHA - Complaints and FOI,Training Expenses,Act Now Training Limited,90.93, 21-Jul-2017
781,Revenue,CAHD,Home Care - Elderly - South,Supported Living,Action on Hearing Loss,670.00, 05-Jul-2017
782,Revenue,CAHD,Home Care - Elderly - South,Other Small Contracts,Agincare UK Limited,2044.84, 18-Jul-2017
783,Revenue,CAHD,Home Care - Elderly - North,Other Small Contracts,Agincare UK Limited,715.04, 18-Jul-2017
784,Revenue,CAHD,Home Care - Elderly - South,Other Small Contracts,Agincare UK Limited,2171.28, 17-Jul-2017
785,Revenue,CAHD,Home Care - Elderly - North,Other Small Contracts,Agincare UK Limited,715.04, 17-Jul-2017
786,Revenue,CAHD,Home Care - Elderly - South,Other Small Contracts,Agincare UK Limited,1613.20, 27-Jul-2017
787,Revenue,CAHD,Home Care - Elderly - North,Other Small Contracts,Agincare UK Limited,723.76, 27-Jul-2017
788,Revenue,CAHD,Prison Assessments & Costs,Other Supplies & Services,Agincare UK Limited,9932.57, 27-Jul-2017
789,Revenue,CAHD,Home Care - Elderly - North,Day Care / Social Activities,Agincare UK Nutfield,204.92, 20-Jul-2017
790,Revenue,CAHD,Home Care - Elderly - North,Other Small Contracts,Agincare UK Nutfield,1704.76, 20-Jul-2017
791,Revenue,CAHD,Home care - Elderly MH - South,Other Small Contracts,Agincare UK Nutfield,69.76, 20-Jul-2017
792,Revenue,CAHD,Home Care - Elderly - North,Day Care / Social Activities,Agincare UK Nutfield,200.56, 24-Jul-2017
793,Revenue,CAHD,Home Care - Elderly - North,Other Small Contracts,Agincare UK Nutfield,1643.72, 24-Jul-2017
794,Revenue,CAHD,Home care - Elderly MH - South,Other Small Contracts,Agincare UK Nutfield,69.76, 24-Jul-2017
795,Revenue,CAHD,Home Care - Elderly - North,Day Care / Social Activities,Agincare UK Nutfield,191.84, 24-Jul-2017
796,Revenue,CAHD,Home Care - Elderly - North,Other Small Contracts,Agincare UK Nutfield,1691.68, 24-Jul-2017
797,Revenue,CAHD,Home care - Elderly MH - South,Other Small Contracts,Agincare UK Nutfield,61.04, 24-Jul-2017
798,Revenue,CAHD,Home Care - Elderly - South,Supported Living,Alexandra Homes (Bristol) Limited,1109.20, 13-Jul-2017
799,Revenue,CAHD,Home Care - Elderly - South,Supported Living,Alexandra Homes (Bristol) Limited,968.76, 13-Jul-2017
800,Revenue,CAHD,Home Care - Elderly - South,Other Small Contracts,AliMo Care Ltd,1675.52, 06-Jul-2017
801,Revenue,CAHD,Home Care - Elderly - South,Other Small Contracts,AliMo Care Ltd,1662.08, 12-Jul-2017
802,Revenue,CAHD,Home Care - Elderly - South,Other Small Contracts,AliMo Care Ltd,1603.84, 20-Jul-2017
803,Revenue,CAHD,Bed Purchasing - South,Permanent Nursing,Ambleside Nusing Home,2126.16, 04-Jul-2017
804,Revenue,CAHD,Bed Purchasing - Southmead Hospital,Permanent Nursing,Amerind Grove Nursing Home,2570.76, 04-Jul-2017
805,Revenue,CAHD,Bed Purchasing - Southmead Hospital,Permanent Nursing,Amerind Grove Nursing Home,2263.12, 04-Jul-2017
806,Revenue,CAHD,Direct Payments - Phys Dis - North,Grants to Voluntary Bodies,Aquarium Card Management Solutions Ltd,2140.00, 28-Jul-2017
807,Revenue,CAHD,Bed Purchasing - North,Permanent Residential,Ark Care Homes Ltd,11036.72, 04-Jul-2017
808,Revenue,CAHD,Bed Purchasing - North,Fees & Charges Income - General,Ark Care Homes Ltd,992.12, 04-Jul-2017
809,Revenue,CAHD,Bed Purchasing - South,Permanent Nursing,Ash Grove House,2836.40, 04-Jul-2017
810,Revenue,CAHD,Bed Purchasing - South,Permanent Residential,Ash View House,6260.36, 04-Jul-2017
811,Revenue,CAHD,S117 Placements PCT,Permanent Residential,Ash View House,7241.60, 04-Jul-2017
812,Revenue,CAHD,18-25 Year Olds,Permanent Residential,Ash View House,6803.84, 04-Jul-2017
813,Revenue,CAHD,Section 117 Placements MH Younger,Permanent Residential,Ash View House,4719.08, 04-Jul-2017
814,Revenue,CAHD,Jointly Funded H&SC Packages,Permanent Residential,Ash View House,2022.48, 04-Jul-2017
815,Revenue,CAHD,Bed purchasing - Elderly S117 - South,Permanent Residential,Ash View House,6414.04, 04-Jul-2017
816,Revenue,CAHD,Bed Purchasing - North,Permanent Residential,Aspects 2 Limited,6930.72, 04-Jul-2017
817,Revenue,CAHD,Bed Purchasing - South,Permanent Residential,Autism Specialised Care Homes,6235.88, 04-Jul-2017
818,Revenue,CAHD,Younger Adult Mental Health,Health Services (Third Party Payments),Avon & Wiltshire Mental Health,1666.67, 28-Jul-2017
819,Revenue,CAHD,Shared Lives,Other Supplies & Services,Bath & North East Somerset Council,2200.00, 19-Jul-2017
820,Revenue,CAHD,Purchase of RAC places,Other L.A.'s - General,Bath & North East Somerset Council,966.08, 19-Jul-2017
821,Revenue,CAHD,Training - Adult Services,Training Expenses,Bawa Healthcare & Leisure,2299.17, 19-Jul-2017
822,Revenue,CAHD,Pathway 3 - (Complex Beds),Permanent Nursing,Beaufort Care Ltd,5271.00, 19-Jul-2017
823,Revenue,CAHD,South Glos Users in South Glos Homes,Permanent Nursing,Beaufort Grange Care Home,620.20, 04-Jul-2017
824,Revenue,CAHD,South Glos Users in South Glos Homes,Permanent Nursing,Beaufort Grange Care Home,620.20, 04-Jul-2017
825,Revenue,CAHD,South Glos Users in South Glos Homes,Permanent Nursing,Beaufort Grange Care Home,620.20, 04-Jul-2017
826,Revenue,CAHD,Bed Purchasing - South,Permanent Nursing,Beaufort Grange Care Home,11091.80, 04-Jul-2017
827,Revenue,CAHD,Bed Purchasing - South,Permanent Nursing,Beaufort Grange Care Home,4436.72, 04-Jul-2017
828,Revenue,CAHD,South Glos Users in South Glos Homes,Permanent Nursing,Beaufort Grange Care Home,620.20, 04-Jul-2017
829,Revenue,CAHD,Bed Purchasing - South,Fees & Charges Income - General,Beaufort Grange Care Home,1325.29, 04-Jul-2017
830,Revenue,CAHD,Bed Purchasing - North,Permanent Nursing,Beaufort Grange Care Home,4229.28, 04-Jul-2017
831,Revenue,CAHD,South Glos Users in South Glos Homes,Permanent Nursing,Beaufort Grange Care Home,620.20, 04-Jul-2017
832,Revenue,CAHD,South Glos Users in South Glos Homes,Permanent Nursing,Beaufort Grange Care Home,620.20, 04-Jul-2017
833,Revenue,CAHD,South Glos Users in South Glos Homes,Permanent Nursing,Beaufort Grange Care Home,620.20, 04-Jul-2017
834,Revenue,CAHD,South Glos Users in South Glos Homes,Permanent Nursing,Beaufort Grange Care Home,620.20, 04-Jul-2017
835,Revenue,CAHD,South Glos Users in South Glos Homes,Permanent Nursing,Beaufort Grange Care Home,620.20, 04-Jul-2017
836,Revenue,CAHD,South Glos Users in South Glos Homes,Permanent Nursing,Beaufort Grange Care Home,620.20, 04-Jul-2017
837,Revenue,CAHD,South Glos Users in South Glos Homes,Permanent Nursing,Beaufort Grange Care Home,620.20, 04-Jul-2017
838,Revenue,CAHD,South Glos Users in South Glos Homes,Permanent Nursing,Beaufort Grange Care Home,620.20, 04-Jul-2017
839,Revenue,CAHD,South Glos Users in South Glos Homes,Permanent Nursing,Beaufort Grange Care Home,620.20, 04-Jul-2017
840,Revenue,CAHD,South Glos Users in South Glos Homes,Permanent Nursing,Beaufort Grange Care Home,620.20, 04-Jul-2017
841,Revenue,CAHD,South Glos Users in South Glos Homes,Permanent Nursing,Beaufort Grange Care Home,620.20, 04-Jul-2017
842,Revenue,CAHD,Bed Purchasing - Elderly S117- North,Permanent Nursing,Beaufort Grange Care Home,4468.56, 04-Jul-2017
843,Revenue,CAHD,South Glos Users in South Glos Homes,Permanent Nursing,Beaufort Grange Care Home,620.20, 04-Jul-2017
844,Revenue,CAHD,Bed Purchasing - Elderly S117- North,Permanent Nursing,Beaufort Grange Care Home,4673.92, 04-Jul-2017
845,Revenue,CAHD,South Glos Users in South Glos Homes,Permanent Nursing,Beaufort Grange Care Home,620.20, 04-Jul-2017
846,Revenue,CAHD,South Glos Users in South Glos Homes,Permanent Nursing,Beaufort Grange Care Home,620.20, 04-Jul-2017
847,Revenue,CAHD,South Glos Users in South Glos Homes,Permanent Nursing,Beaufort Grange Care Home,620.20, 04-Jul-2017
848,Revenue,CAHD,South Glos Users in South Glos Homes,Permanent Nursing,Beaufort Grange Care Home,620.20, 04-Jul-2017
849,Revenue,CAHD,South Glos Users in South Glos Homes,Permanent Nursing,Beaufort Grange Care Home,620.20, 04-Jul-2017
850,Revenue,CAHD,South Glos Users in South Glos Homes,Permanent Nursing,Beaufort Grange Care Home,620.20, 04-Jul-2017
851,Revenue,CAHD,South Glos Users in South Glos Homes,Permanent Nursing,Beaufort Grange Care Home,620.20, 04-Jul-2017
852,Revenue,CAHD,Bed Purchasing - North,Permanent Residential,Beaufort House,2443.36, 04-Jul-2017
853,Revenue,CAHD,Bed Purchasing - North,Permanent Residential,Beaufort House,2464.28, 04-Jul-2017
854,Revenue,CAHD,Bed Purchasing - South,Permanent Residential,Beaufort House,2431.20, 04-Jul-2017
855,Revenue,CAHD,Bed Purchasing - South,Permanent Residential,Beaufort House,2339.40, 04-Jul-2017
856,Revenue,CAHD,Bed Purchasing - Southmead Hospital,Permanent Residential,Beaufort House,2464.28, 04-Jul-2017
857,Revenue,CAHD,Bed Purchasing - North,Permanent Residential,Beaufort House,2407.80, 04-Jul-2017
858,Revenue,CAHD,Bed Purchasing - North,Permanent Residential,Beaufort House,2407.80, 04-Jul-2017
859,Revenue,CAHD,Bed Purchasing - North,Permanent Residential,Beaufort House,2587.48, 04-Jul-2017
860,Revenue,CAHD,Bed Purchasing - South,Permanent Residential,Beaufort House,2600.00, 04-Jul-2017
861,Revenue,CAHD,Bed Purchasing - Southmead Hospital,Permanent Residential,Beaufort House,2464.28, 04-Jul-2017
862,Revenue,CAHD,Bed Purchasing - Southmead Hospital,Permanent Residential,Beaufort House,2633.80, 04-Jul-2017
863,Revenue,CAHD,South Glos Users in South Glos Homes,Permanent Nursing,Beech House,620.20, 04-Jul-2017
864,Revenue,CAHD,Bed Purchasing - South,Permanent Residential,Beech House,2836.40, 04-Jul-2017
865,Revenue,CAHD,South Glos Users in South Glos Homes,Permanent Nursing,Beech House,620.20, 04-Jul-2017
866,Revenue,CAHD,Bed Purchasing - North,Permanent Nursing,Beech House,2709.76, 04-Jul-2017
867,Revenue,CAHD,South Glos Users in South Glos Homes,Permanent Nursing,Beech House,620.20, 04-Jul-2017
868,Revenue,CAHD,South Glos Users in South Glos Homes,Permanent Nursing,Beech House,620.20, 04-Jul-2017
869,Revenue,CAHD,South Glos Users in South Glos Homes,Permanent Nursing,Beech House,620.20, 04-Jul-2017
870,Revenue,CAHD,Bed Purchasing - North,Permanent Nursing,Beech House,3031.04, 04-Jul-2017
871,Revenue,CAHD,South Glos Users in South Glos Homes,Permanent Nursing,Beech House,620.20, 04-Jul-2017
872,Revenue,CAHD,Bed Purchasing - North,Permanent Residential,Beech House,2836.40, 04-Jul-2017
873,Revenue,CAHD,South Glos Users in South Glos Homes,Permanent Nursing,Beech House,620.20, 04-Jul-2017
874,Revenue,CAHD,Bed Purchasing - North,Permanent Nursing,Beech House,3680.00, 04-Jul-2017
875,Revenue,CAHD,Bed Purchasing - North,Permanent Nursing,Beech House,1577.14, 04-Jul-2017
876,Revenue,CAHD,South Glos Users in South Glos Homes,Permanent Nursing,Beech House,620.20, 04-Jul-2017
877,Revenue,CAHD,South Glos Users in South Glos Homes,Permanent Nursing,Beech House,620.20, 04-Jul-2017
878,Revenue,CAHD,South Glos Users in South Glos Homes,Permanent Nursing,Beech House,620.20, 04-Jul-2017
879,Revenue,CAHD,South Glos Users in South Glos Homes,Permanent Nursing,Beech House,620.20, 04-Jul-2017
880,Revenue,CAHD,South Glos Users in South Glos Homes,Permanent Nursing,Beech House,620.20, 04-Jul-2017
881,Revenue,CAHD,Bed Purchasing - North,Permanent Nursing,Beech House,9428.36, 04-Jul-2017
882,Revenue,CAHD,Bed Purchasing - North,Permanent Nursing,Beech House,3363.16, 04-Jul-2017
883,Revenue,CAHD,South Glos Users in South Glos Homes,Permanent Nursing,Beech House,620.20, 04-Jul-2017
884,Revenue,CAHD,South Glos Users in South Glos Homes,Permanent Nursing,Beech House,8147.32, 04-Jul-2017
885,Revenue,CAHD,South Glos Users in South Glos Homes,Permanent Nursing,Beech House,5856.00, 04-Jul-2017
886,Revenue,CAHD,South Glos Users in South Glos Homes,Permanent Nursing,Beech House,5782.12, 04-Jul-2017
887,Revenue,CAHD,South Glos Users in South Glos Homes,Permanent Nursing,Beech House,5724.76, 04-Jul-2017
888,Revenue,CAHD,South Glos Users in South Glos Homes,Permanent Nursing,Beech House,5683.46, 04-Jul-2017
889,Revenue,CAHD,South Glos Users in South Glos Homes,Permanent Nursing,Beech House,5667.93, 04-Jul-2017
890,Revenue,CAHD,South Glos Users in South Glos Homes,Permanent Nursing,Beech House,1284.70, 04-Jul-2017
891,Revenue,CAHD,South Glos Users in South Glos Homes,Permanent Nursing,Beech House,620.20, 04-Jul-2017
892,Revenue,CAHD,Bed Purchasing - North,Permanent Residential,Beech House,3444.20, 04-Jul-2017
893,Revenue,CAHD,Bed Purchasing - Southmead Hospital,Permanent Residential,Beech House,3680.00, 04-Jul-2017
894,Revenue,CAHD,Bed Purchasing - Southmead Hospital,Permanent Residential,Beech House,788.57, 04-Jul-2017
895,Revenue,CAHD,South Glos Users in South Glos Homes,Permanent Nursing,Beech House,620.20, 04-Jul-2017
896,Revenue,CAHD,South Glos Users in South Glos Homes,Permanent Nursing,Beech House,620.20, 04-Jul-2017
897,Revenue,CAHD,Bed Purchasing - North,Permanent Nursing,Beech House,3169.68, 04-Jul-2017
898,Revenue,CAHD,South Glos Users in South Glos Homes,Permanent Nursing,Beech House,620.20, 04-Jul-2017
899,Revenue,CAHD,South Glos Users in South Glos Homes,Permanent Nursing,Beech House,620.20, 04-Jul-2017
900,Revenue,CAHD,South Glos Users in South Glos Homes,Permanent Nursing,Beech House,620.20, 04-Jul-2017
901,Revenue,CAHD,South Glos Users in South Glos Homes,Permanent Nursing,Beech House,620.20, 04-Jul-2017
902,Revenue,CAHD,South Glos Users in South Glos Homes,Permanent Nursing,Beech House,620.20, 04-Jul-2017
903,Revenue,CAHD,South Glos Users in South Glos Homes,Permanent Nursing,Beech House,620.20, 04-Jul-2017
904,Revenue,CAHD,South Glos Users in South Glos Homes,Permanent Nursing,Beech House,620.20, 04-Jul-2017
905,Revenue,CAHD,South Glos Users in South Glos Homes,Permanent Nursing,Beech House,620.20, 04-Jul-2017
906,Revenue,CAHD,Bed Purchasing - North,Adults - Family Support,Individual,1488.00, 10-Jul-2017
907,Revenue,CAHD,Home Care - Elderly - North,Other Small Contracts,Bibby Factors Bristol Limited,7861.54, 12-Jul-2017
908,Revenue,CAHD,Home Care - Elderly - North,Other Small Contracts,Bibby Factors Bristol Limited,7405.53, 12-Jul-2017
909,Revenue,CAHD,Home Care - Elderly - North,Other Small Contracts,Bibby Factors Bristol Limited,7146.66, 14-Jul-2017
910,Revenue,CAHD,Home Care - Elderly - North,Other Small Contracts,Bibby Factors Bristol Limited,7471.31, 27-Jul-2017
911,Revenue,CAHD,South Glos Users in South Glos Homes,Permanent Nursing,Blossom Field,730.95, 04-Jul-2017
912,Revenue,CAHD,South Glos Users in South Glos Homes,Permanent Nursing,Blossom Field,647.32, 04-Jul-2017
913,Revenue,CAHD,Bed Purchasing - North,Permanent Nursing,Blossom Field,3398.07, 04-Jul-2017
914,Revenue,CAHD,South Glos Users in South Glos Homes,Permanent Nursing,Blossom Field,620.20, 04-Jul-2017
915,Revenue,CAHD,Bed Purchasing - North,Permanent Nursing,Blossom Field,8809.80, 04-Jul-2017
916,Revenue,CAHD,Bed Purchasing - North,Fees & Charges Income - General,Blossom Field,2670.00, 04-Jul-2017
917,Revenue,CAHD,Bed Purchasing - Elderly S117- North,Permanent Nursing,Blossom Field,3539.76, 04-Jul-2017
918,Revenue,CAHD,South Glos Users in South Glos Homes,Permanent Nursing,Blossom Field,620.20, 04-Jul-2017
919,Revenue,CAHD,South Glos Users in South Glos Homes,Permanent Nursing,Blossom Field,620.20, 04-Jul-2017
920,Revenue,CAHD,Bed Purchasing - Southmead Hospital,Permanent Nursing,Blossom Field,4862.40, 04-Jul-2017
921,Revenue,CAHD,South Glos Users in South Glos Homes,Permanent Nursing,Blossom Field,620.20, 04-Jul-2017
922,Revenue,CAHD,South Glos Users in South Glos Homes,Permanent Nursing,Blossom Field,620.20, 04-Jul-2017
923,Revenue,CAHD,Bed Purchasing - North,Permanent Nursing,Blossom Field,3811.40, 04-Jul-2017
924,Revenue,CAHD,South Glos Users in South Glos Homes,Permanent Nursing,Blossom Field,620.20, 04-Jul-2017
925,Revenue,CAHD,South Glos Users in South Glos Homes,Permanent Nursing,Blossom Field,620.20, 04-Jul-2017
926,Revenue,CAHD,South Glos Users in South Glos Homes,Permanent Nursing,Blossom Field,620.20, 04-Jul-2017
927,Revenue,CAHD,South Glos Users in South Glos Homes,Permanent Nursing,Blossom Field,620.20, 04-Jul-2017
928,Revenue,CAHD,South Glos Users in South Glos Homes,Permanent Nursing,Blossom Field,620.20, 04-Jul-2017
929,Revenue,CAHD,South Glos Users in South Glos Homes,Permanent Nursing,Blossom Field,620.20, 04-Jul-2017
930,Revenue,CAHD,South Glos Users in South Glos Homes,Permanent Nursing,Blossom Field,620.20, 04-Jul-2017
931,Revenue,CAHD,South Glos Users in South Glos Homes,Permanent Nursing,Blossom Field,620.20, 04-Jul-2017
932,Revenue,CAHD,South Glos Users in South Glos Homes,Permanent Nursing,Blossom Field,620.20, 04-Jul-2017
933,Revenue,CAHD,Bed purchasing - Elderly S117 - South,Permanent Nursing,Blossom Field,4468.56, 04-Jul-2017
934,Revenue,CAHD,South Glos Users in South Glos Homes,Permanent Nursing,Blossom Field,620.20, 04-Jul-2017
935,Revenue,CAHD,South Glos Users in South Glos Homes,Permanent Nursing,Blossom Field,620.20, 04-Jul-2017
936,Revenue,CAHD,Bed Purchasing - South,Permanent Nursing,Blossom Field,4229.28, 04-Jul-2017
937,Revenue,CAHD,South Glos Users in South Glos Homes,Permanent Nursing,Blossom Field,1749.85, 04-Jul-2017
938,Revenue,CAHD,South Glos Users in South Glos Homes,Permanent Nursing,Blossom Field,1049.11, 04-Jul-2017
939,Revenue,CAHD,South Glos Users in South Glos Homes,Permanent Nursing,Blossom Field,620.20, 04-Jul-2017
940,Revenue,CAHD,South Glos Users in South Glos Homes,Permanent Nursing,Blossom Field,620.20, 04-Jul-2017
941,Revenue,CAHD,South Glos Users in South Glos Homes,Permanent Nursing,Blossom Field,620.20, 04-Jul-2017
942,Revenue,CAHD,Bed Purchasing - Southmead Hospital,Permanent Nursing,Blossom Field,3824.08, 04-Jul-2017
943,Revenue,CAHD,South Glos Users in South Glos Homes,Permanent Nursing,Blossom Field,620.20, 04-Jul-2017
944,Revenue,CAHD,South Glos Users in South Glos Homes,Permanent Nursing,Blossom Field,620.20, 04-Jul-2017
945,Revenue,CAHD,South Glos Users in South Glos Homes,Permanent Nursing,Blossom Field,620.20, 04-Jul-2017
946,Revenue,CAHD,South Glos Users in South Glos Homes,Permanent Nursing,Blossom Field,620.20, 04-Jul-2017
947,Revenue,CAHD,South Glos Users in South Glos Homes,Permanent Nursing,Blossom Field,620.20, 04-Jul-2017
948,Revenue,CAHD,South Glos Users in South Glos Homes,Permanent Nursing,Blossom Field,620.20, 04-Jul-2017
949,Revenue,CAHD,South Glos Users in South Glos Homes,Permanent Nursing,Blossom Field,620.20, 04-Jul-2017
950,Revenue,CAHD,South Glos Users in South Glos Homes,Permanent Nursing,Blossom Field,1018.90, 04-Jul-2017
951,Revenue,CAHD,South Glos Users in South Glos Homes,Permanent Nursing,Blossom Field,620.20, 04-Jul-2017
952,Revenue,CAHD,Bed Purchasing - North,Permanent Nursing,Blossom Field,3824.08, 04-Jul-2017
953,Revenue,CAHD,South Glos Users in South Glos Homes,Permanent Nursing,Blossom Field,1749.85, 04-Jul-2017
954,Revenue,CAHD,South Glos Users in South Glos Homes,Permanent Nursing,Blossom Field,1250.00, 04-Jul-2017
955,Revenue,CAHD,South Glos Users in South Glos Homes,Permanent Nursing,Blossom Field,620.20, 04-Jul-2017
956,Revenue,CAHD,Bed Purchasing - North,Permanent Nursing,Blossom Field,3483.56, 04-Jul-2017
957,Revenue,CAHD,South Glos Users in South Glos Homes,Permanent Nursing,Blossom Field,620.20, 04-Jul-2017
958,Revenue,CAHD,South Glos Users in South Glos Homes,Permanent Nursing,Blossom Field,620.20, 04-Jul-2017
959,Revenue,CAHD,South Glos Users in South Glos Homes,Permanent Nursing,Blossom Fields,620.20, 27-Jul-2017
960,Revenue,CAHD,South Glos Users in South Glos Homes,Permanent Nursing,Blossom Fields,620.20, 27-Jul-2017
961,Revenue,CAHD,Bed Purchasing - North,Permanent Nursing,Blossom Fields,1880.20, 27-Jul-2017
962,Revenue,CAHD,Bed Purchasing - Southmead Hospital,Permanent Nursing,Blossom Fields,1305.48, 27-Jul-2017
963,Revenue,CAHD,Bed Purchasing - Southmead Hospital,Permanent Nursing,Blossom Fields,1299.65, 27-Jul-2017
964,Revenue,CAHD,Bed Purchasing - North,Permanent Nursing,Blossom Fields,2688.00, 27-Jul-2017
965,Revenue,CAHD,Home Care - Elderly - South,Other Small Contracts,Bluebird Care (South Gloucestershire),288.96, 17-Jul-2017
966,Revenue,CAHD,Home Care - Elderly - North,Other Small Contracts,Bluebird Care (South Gloucestershire),396.72, 17-Jul-2017
967,Revenue,CAHD,Home Care - Elderly - South,Other Small Contracts,Bluebird Care (South Gloucestershire),283.80, 20-Jul-2017
968,Revenue,CAHD,Home Care - Elderly - North,Other Small Contracts,Bluebird Care (South Gloucestershire),416.58, 20-Jul-2017
969,Revenue,CAHD,Home Care - Elderly - South,Other Small Contracts,Bluebird Care (South Gloucestershire),196.08, 27-Jul-2017
970,Revenue,CAHD,Home Care - Elderly - North,Other Small Contracts,Bluebird Care (South Gloucestershire),309.15, 27-Jul-2017
971,Revenue,CAHD,Home Care - Elderly - South,Other Small Contracts,Bluebird Care (South Gloucestershire),288.96, 27-Jul-2017
972,Revenue,CAHD,Home Care - Elderly - North,Other Small Contracts,Bluebird Care (South Gloucestershire),404.07, 27-Jul-2017
973,Revenue,CAHD,Training - Adult Services,Training Expenses,Bob Dawson,675.00, 19-Jul-2017
974,Revenue,CAHD,Bed purchasing - S28A Under 65 - South,Permanent Residential,Bradbury House,4854.16, 04-Jul-2017
975,Revenue,CAHD,Bed Purchasing - South,Permanent Residential,Bradbury House,8375.20, 04-Jul-2017
976,Revenue,CAHD,Bed purchasing - S28A Under 65 - South,Permanent Residential,Bradbury House,7152.84, 04-Jul-2017
977,Revenue,CAHD,18-25 Year Olds,Permanent Residential,Bradbury House,9504.08, 04-Jul-2017
978,Revenue,CAHD,Bed purchasing - Elderly S117 - South,Permanent Residential,Bradbury House,8572.56, 04-Jul-2017
979,Revenue,CAHD,Jointly Funded H&SC Packages,Permanent Residential,Bradbury House,3184.96, 04-Jul-2017
980,Revenue,CAHD,Bed Purchasing - North,Permanent Residential,Bradbury House,5952.84, 04-Jul-2017
981,Revenue,CAHD,Jointly Funded H&SC Packages,Permanent Residential,Bradbury House,8223.16, 04-Jul-2017
982,Revenue,CAHD,Home Care - Elderly - North,Other Small Contracts,Bramble Home Care Limited,1140.00, 05-Jul-2017
983,Revenue,CAHD,Home Care - Elderly - North,Other Small Contracts,Bramble Home Care Limited,885.08, 05-Jul-2017
984,Revenue,CAHD,Home Care - Elderly - North,Other Small Contracts,Bramble Home Care Limited,528.64, 12-Jul-2017
985,Revenue,CAHD,Home Care - Elderly - North,Other Small Contracts,Bramble Home Care Limited,1112.64, 12-Jul-2017
986,Revenue,CAHD,Home Care - Elderly - North,Other Small Contracts,Bramble Home Care Limited,994.56, 18-Jul-2017
987,Revenue,CAHD,Home Care - Elderly - North,Other Small Contracts,Bramble Home Care Limited,752.64, 07-Jul-2017
988,Revenue,CAHD,Home Care - Elderly - North,Other Small Contracts,Bramble Home Care Limited,573.44, 12-Jul-2017
989,Revenue,CAHD,Social Lettings Agency,Fees - General,Individual,11.41, 03-Jul-2017
990,Revenue,CAHD,Social Lettings Agency,Other Supplies & Services,Individual,746.54, 03-Jul-2017
991,Revenue,CAHD,Bed Purchasing - Southmead Hospital,Permanent Residential,Bridge House Care Home,2423.08, 04-Jul-2017
992,Revenue,CAHD,Bed Purchasing - North,Permanent Residential,Bridge House Care Home,2382.12, 04-Jul-2017
993,Revenue,CAHD,Home Care - Elderly - North,Day Care / Social Activities,Bridge House Care Home,526.72, 04-Jul-2017
994,Revenue,CAHD,Bed Purchasing - North,Permanent Residential,Bridge House Care Home,2496.04, 04-Jul-2017
995,Revenue,CAHD,Bed Purchasing - North,Permanent Residential,Bridge House Care Home,2191.80, 04-Jul-2017
996,Revenue,CAHD,Bed Purchasing - North,Permanent Residential,Bridgwater Court,10324.96, 04-Jul-2017
997,Revenue,CAHD,Home Care - Elderly - North,Day Care / Social Activities,Bristol Community Links North,996.32, 04-Jul-2017
998,Revenue,CAHD,Home Care - Elderly - North,Day Care / Social Activities,Bristol Community Links North,2490.80, 04-Jul-2017
999,Revenue,CAHD,Home Care - Elderly - South,Supported Living,Bristol Houses UK Limited,710.40, 28-Jul-2017
1000,Revenue,CAHD,Home Care - Elderly - South,Day Care / Social Activities,Bristol Houses UK Limited,1349.76, 28-Jul-2017
1001,Revenue,CAHD,18-25 Year Olds,SU Employment Support,Britannia House,712.08, 04-Jul-2017
1002,Revenue,CAHD,Home Care - Elderly - North,Day Care / Social Activities,Britannia House,949.44, 04-Jul-2017
1003,Revenue,CAHD,18-25 Year Olds,Day Care / Social Activities,Britannia House,712.08, 04-Jul-2017
1004,Revenue,CAHD,Home Care - Elderly - South,Supported Living,Britannia House,2209.12, 04-Jul-2017
1005,Revenue,CAHD,Home Care - Elderly - North,Day Care / Social Activities,Britannia House,712.08, 04-Jul-2017
1006,Revenue,CAHD,Home Care - Elderly - North,Day Care / Social Activities,Britannia House,949.44, 04-Jul-2017
1007,Revenue,CAHD,Home Care - Elderly - South,Day Care / Social Activities,Britannia House,949.44, 04-Jul-2017
1008,Revenue,CAHD,Home Care - Elderly - South,Day Care / Social Activities,Britannia House,712.08, 04-Jul-2017
1009,Revenue,CAHD,Home Care - Elderly - South,Day Care / Social Activities,Britannia House,712.08, 04-Jul-2017
1010,Revenue,CAHD,South Glos Users in South Glos Homes,Permanent Nursing,Britannia House,620.20, 04-Jul-2017
1011,Revenue,CAHD,South Glos Users in South Glos Homes,Permanent Nursing,Britannia House,620.20, 04-Jul-2017
1012,Revenue,CAHD,South Glos Users in South Glos Homes,Permanent Nursing,Britannia House,620.20, 04-Jul-2017
1013,Revenue,CAHD,Bed Purchasing - South,Permanent Nursing,Britannia House,5609.76, 04-Jul-2017
1014,Revenue,CAHD,South Glos Users in South Glos Homes,Permanent Nursing,Britannia House,620.20, 04-Jul-2017
1015,Revenue,CAHD,Bed Purchasing - South,Permanent Residential,Britannia House,10988.80, 04-Jul-2017
1016,Revenue,CAHD,Bed Purchasing - South,Permanent Nursing,Britannia House,5559.08, 04-Jul-2017
1017,Revenue,CAHD,South Glos Users in South Glos Homes,Permanent Nursing,Britannia House,620.20, 04-Jul-2017
1018,Revenue,CAHD,Bed purchasing - S28A Under 65 - South,Permanent Nursing,Britannia House,5893.56, 04-Jul-2017
1019,Revenue,CAHD,South Glos Users in South Glos Homes,Permanent Nursing,Britannia House,620.20, 04-Jul-2017
1020,Revenue,CAHD,Bed purchasing - S28A Under 65 - South,Permanent Residential,Britannia House,5789.24, 04-Jul-2017
1021,Revenue,CAHD,Bed Purchasing - LD S28A- Over 65- South,Permanent Nursing,Britannia House,5893.56, 04-Jul-2017
1022,Revenue,CAHD,South Glos Users in South Glos Homes,Permanent Nursing,Britannia House,620.20, 04-Jul-2017
1023,Revenue,CAHD,Bed Purchasing - LD S28A- Over 65- South,Permanent Nursing,Britannia House,5559.08, 04-Jul-2017
1024,Revenue,CAHD,South Glos Users in South Glos Homes,Permanent Nursing,Britannia House,620.20, 04-Jul-2017
1025,Revenue,CAHD,Bed Purchasing - South,Permanent Residential,Britannia House,3756.88, 04-Jul-2017
1026,Revenue,CAHD,Bed purchasing - S28A Under 65 - South,Permanent Residential,Britannia House,5670.48, 04-Jul-2017
1027,Revenue,CAHD,Bed purchasing - S28A Under 65 - South,Permanent Residential,Britannia House,5789.04, 04-Jul-2017
1028,Revenue,CAHD,Bed Purchasing - North,Permanent Nursing,Britannia House,5553.32, 04-Jul-2017
1029,Revenue,CAHD,South Glos Users in South Glos Homes,Permanent Nursing,Britannia House,620.20, 04-Jul-2017
1030,Revenue,CAHD,Bed purchasing - S28A Under 65 - South,Permanent Nursing,Britannia House,5893.56, 04-Jul-2017
1031,Revenue,CAHD,South Glos Users in South Glos Homes,Permanent Nursing,Britannia House,620.20, 04-Jul-2017
1032,Revenue,CAHD,Bed purchasing -S28A  Under 65 - North,Permanent Nursing,Britannia House,5335.52, 04-Jul-2017
1033,Revenue,CAHD,Bed purchasing -S28A  Under 65 - North,Fees & Charges Income - General,Britannia House,862.14, 04-Jul-2017
1034,Revenue,CAHD,Bed purchasing - S28A Under 65 - South,Permanent Residential,Britannia House,5789.04, 04-Jul-2017
1035,Revenue,CAHD,Bed Purchasing - LD S28A- Over 65- South,Permanent Residential,Britannia House,5442.56, 04-Jul-2017
1036,Revenue,CAHD,Bed purchasing - S28A Under 65 - South,Permanent Residential,Britannia House,9567.24, 04-Jul-2017
1037,Revenue,CAHD,Pathway 1 - Re-Ablement Home Care,Private & Voluntary Home Care,Brunelcare,24132.35, 03-Jul-2017
1038,Revenue,CAHD,Pathway 1 - Re-Ablement Home Care,Private & Voluntary Home Care,Brunelcare,24132.35, 10-Jul-2017
1039,Revenue,CAHD,Pathway 1 - Re-Ablement Home Care,Private & Voluntary Home Care,Brunelcare,24132.35, 17-Jul-2017
1040,Revenue,CAHD,Pathway 1 - Re-Ablement Home Care,Private & Voluntary Home Care,Brunelcare,24132.35, 24-Jul-2017
1041,Revenue,CAHD,Pathway 1 - Re-Ablement Home Care,Private & Voluntary Home Care,Brunelcare,24132.35, 31-Jul-2017
1042,Revenue,CAHD,South Glos Users in South Glos Homes,Permanent Nursing,Brunelcare,664.50, 20-Jul-2017
1043,Revenue,CAHD,South Glos Users in South Glos Homes,Permanent Nursing,Brunelcare,664.50, 20-Jul-2017
1044,Revenue,CAHD,South Glos Users in South Glos Homes,Permanent Nursing,Brunelcare,664.50, 20-Jul-2017
1045,Revenue,CAHD,South Glos Users in South Glos Homes,Permanent Nursing,Brunelcare,664.50, 20-Jul-2017
1046,Revenue,CAHD,South Glos Users in South Glos Homes,Permanent Nursing,Brunelcare,664.50, 20-Jul-2017
1047,Revenue,CAHD,South Glos Users in South Glos Homes,Permanent Nursing,Brunelcare,664.50, 20-Jul-2017
1048,Revenue,CAHD,South Glos Users in South Glos Homes,Permanent Nursing,Brunelcare,664.50, 20-Jul-2017
1049,Revenue,CAHD,South Glos Users in South Glos Homes,Permanent Nursing,Brunelcare,664.50, 20-Jul-2017
1050,Revenue,CAHD,South Glos Users in South Glos Homes,Permanent Nursing,Brunelcare,664.50, 20-Jul-2017
1051,Revenue,CAHD,South Glos Users in South Glos Homes,Permanent Nursing,Brunelcare,664.50, 20-Jul-2017
1052,Revenue,CAHD,South Glos Users in South Glos Homes,Permanent Nursing,Brunelcare,664.50, 20-Jul-2017
1053,Revenue,CAHD,South Glos Users in South Glos Homes,Permanent Nursing,Brunelcare,664.50, 20-Jul-2017
1054,Revenue,CAHD,South Glos Users in South Glos Homes,Permanent Nursing,Brunelcare,664.50, 20-Jul-2017
1055,Revenue,CAHD,South Glos Users in South Glos Homes,Permanent Nursing,Brunelcare,664.50, 20-Jul-2017
1056,Revenue,CAHD,Bed purchasing - Elderly S117 - South,Permanent Nursing,Brunelcare,3402.86, 20-Jul-2017
1057,Revenue,CAHD,Bed Purchasing - Elderly S117- North,Permanent Nursing,Brunelcare,3402.86, 20-Jul-2017
1058,Revenue,CAHD,Bed Purchasing - Elderly S117- North,Permanent Nursing,Brunelcare,3402.86, 20-Jul-2017
1059,Revenue,CAHD,Bed Purchasing - Southmead Hospital,Permanent Nursing,Brunelcare,2761.07, 20-Jul-2017
1060,Revenue,CAHD,Bed Purchasing - Southmead Hospital,Permanent Nursing,Brunelcare,2661.13, 20-Jul-2017
1061,Revenue,CAHD,Bed Purchasing - Southmead Hospital,Permanent Nursing,Brunelcare,2826.64, 20-Jul-2017
1062,Revenue,CAHD,Bed Purchasing - Southmead Hospital,Permanent Nursing,Brunelcare,3402.86, 20-Jul-2017
1063,Revenue,CAHD,Bed Purchasing - South,Permanent Nursing,Brunelcare,2819.27, 20-Jul-2017
1064,Revenue,CAHD,Bed Purchasing - South,Permanent Nursing,Brunelcare,2704.50, 20-Jul-2017
1065,Revenue,CAHD,Bed Purchasing - South,Permanent Nursing,Brunelcare,2616.60, 20-Jul-2017
1066,Revenue,CAHD,Bed Purchasing - South,Permanent Nursing,Brunelcare,2641.11, 20-Jul-2017
1067,Revenue,CAHD,Bed Purchasing - South,Respite Planned - Nursing,Brunelcare,567.14, 20-Jul-2017
1068,Revenue,CAHD,Bed Purchasing - South,Respite Planned - Nursing,Brunelcare,567.14, 20-Jul-2017
1069,Revenue,CAHD,Bed Purchasing - South,Respite Planned - Nursing,Brunelcare,567.14, 20-Jul-2017
1070,Revenue,CAHD,Bed Purchasing - South,Respite Planned - Nursing,Brunelcare,542.31, 20-Jul-2017
1071,Revenue,CAHD,Bed Purchasing - North,Permanent Nursing,Brunelcare,2789.61, 20-Jul-2017
1072,Revenue,CAHD,Bed Purchasing - North,Permanent Nursing,Brunelcare,2756.79, 20-Jul-2017
1073,Revenue,CAHD,Bed Purchasing - North,Permanent Nursing,Brunelcare,2787.30, 20-Jul-2017
1074,Revenue,CAHD,Bed Purchasing - North,Permanent Nursing,Brunelcare,2826.64, 20-Jul-2017
1075,Revenue,CAHD,Bed Purchasing - North,Respite Planned - Nursing,Brunelcare,3402.86, 20-Jul-2017
1076,Revenue,CAHD,Bed Purchasing - North,Respite Planned - Nursing,Brunelcare,1898.10, 20-Jul-2017
1077,Revenue,CAHD,Pathway 2 - (Interim Beds),Permanent Nursing,Brunelcare,53198.00, 31-Jul-2017
1078,Revenue,CAHD,Pathway 2 - (Interim Beds),Permanent Nursing,Brunelcare,46221.00, 19-Jul-2017
1079,Revenue,CAHD,Home Care - Elderly - South,Other Small Contracts,Brunelcare,2401.28, 27-Jul-2017
1080,Revenue,CAHD,Home Care - Elderly - North,Other Small Contracts,Brunelcare,1120.00, 27-Jul-2017
1081,Revenue,CAHD,Home Care - Elderly - South,Other Small Contracts,Brunelcare,2347.52, 17-Jul-2017
1082,Revenue,CAHD,Home Care - Elderly - North,Other Small Contracts,Brunelcare,1205.12, 17-Jul-2017
1083,Revenue,CAHD,Home Care - Elderly - South,Other Small Contracts,Brunelcare,2396.80, 19-Jul-2017
1084,Revenue,CAHD,Home Care - Elderly - North,Other Small Contracts,Brunelcare,1209.60, 19-Jul-2017
1085,Revenue,CAHD,Home Care - Elderly - South,Other Small Contracts,Brunelcare,2087.68, 24-Jul-2017
1086,Revenue,CAHD,Home Care - Elderly - North,Other Small Contracts,Brunelcare,949.76, 24-Jul-2017
1087,Revenue,CAHD,Home Care - Elderly - South,Other Small Contracts,Brunelcare,2029.44, 27-Jul-2017
1088,Revenue,CAHD,Home Care - Elderly - North,Other Small Contracts,Brunelcare,1137.92, 27-Jul-2017
1089,Revenue,CAHD,Tenancy Start Up Scheme,Other Supplies & Services,Brunt & Fussell,5625.00, 14-Jul-2017
1090,Revenue,CAHD,Bed Purchasing - North,Permanent Nursing,Bupa Care Services  Bridge House,1762.64, 04-Jul-2017
1091,Revenue,CAHD,Jointly Funded H&SC Packages,Permanent Nursing,Bupa Care Services  Bridge House,4400.48, 04-Jul-2017
1092,Revenue,CAHD,South Glos Users in all other LA Homes,Permanent Nursing,Bupa Care Services  Bridge House,853.28, 04-Jul-2017
1093,Revenue,CAHD,Tenancy Start Up Scheme,Other Supplies & Services,Butlers Property,1500.00, 26-Jul-2017
1094,Revenue,CAHD,Home Care - Elderly - South,Supported Living,Caegmoor SYI Bristol & Wiltshire Priory,887.04, 28-Jul-2017
1095,Revenue,CAHD,Home Care - Elderly - South,Supported Living,Caegmoor SYI Bristol & Wiltshire Priory,887.04, 28-Jul-2017
1096,Revenue,CAHD,Home Care - Elderly - South,Supported Living,Caegmoor SYI Bristol & Wiltshire Priory,887.04, 28-Jul-2017
1097,Revenue,CAHD,Home Care - Elderly - South,Supported Living,Caegmoor SYI Bristol & Wiltshire Priory,887.04, 28-Jul-2017
1098,Revenue,CAHD,Home Care - Elderly - South,Supported Living,Caegmoor SYI Bristol & Wiltshire Priory,887.04, 28-Jul-2017
1099,Revenue,CAHD,Home Care - Elderly - North,Day Care / Social Activities,Camphill Communities Thornbury Limited,1241.55, 07-Jul-2017
1100,Revenue,CAHD,Home Care - Elderly - North,Other Small Contracts,Camphill Communities Thornbury Limited,160.20, 07-Jul-2017
1101,Revenue,CAHD,Home Care - Elderly - North,Supported Living,Camphill Communities Thornbury Limited,640.80, 07-Jul-2017
1102,Revenue,CAHD,Home Care - Elderly - North,Day Care / Social Activities,Camphill Communities Thornbury Limited,1263.80, 14-Jul-2017
1103,Revenue,CAHD,Home Care - Elderly - North,Other Small Contracts,Camphill Communities Thornbury Limited,160.20, 14-Jul-2017
1104,Revenue,CAHD,Home Care - Elderly - North,Supported Living,Camphill Communities Thornbury Limited,832.15, 14-Jul-2017
1105,Revenue,CAHD,Home Care - Elderly - North,Day Care / Social Activities,Camphill Communities Thornbury Limited,996.80, 21-Jul-2017
1106,Revenue,CAHD,Home Care - Elderly - North,Other Small Contracts,Camphill Communities Thornbury Limited,160.20, 21-Jul-2017
1107,Revenue,CAHD,Home Care - Elderly - North,Supported Living,Camphill Communities Thornbury Limited,983.45, 21-Jul-2017
1108,Revenue,CAHD,Home Care - Elderly - North,Day Care / Social Activities,Camphill Communities Thornbury Limited,1068.00, 28-Jul-2017
1109,Revenue,CAHD,Home Care - Elderly - North,Other Small Contracts,Camphill Communities Thornbury Limited,164.65, 28-Jul-2017
1110,Revenue,CAHD,Home Care - Elderly - North,Supported Living,Camphill Communities Thornbury Limited,979.00, 28-Jul-2017
1111,Revenue,CAHD,Bed Purchasing - Elderly S117- North,Permanent Residential,Canjayor,2422.40, 04-Jul-2017
1112,Revenue,CAHD,Home Care - Elderly - South,Other Small Contracts,Care 1st Homecare,3750.24, 13-Jul-2017
1113,Revenue,CAHD,Home Care - Elderly - North,Other Small Contracts,Care 1st Homecare,4641.28, 13-Jul-2017
1114,Revenue,CAHD,Home Care - Elderly - South,Other Small Contracts,Care 1st Homecare,3715.60, 27-Jul-2017
1115,Revenue,CAHD,Home Care - Elderly - North,Other Small Contracts,Care 1st Homecare,4614.40, 27-Jul-2017
1116,Revenue,CAHD,Home Care - Elderly - South,Other Small Contracts,Care 1st Homecare,4654.96, 27-Jul-2017
1117,Revenue,CAHD,Home Care - Elderly - North,Other Small Contracts,Care 1st Homecare,4609.92, 27-Jul-2017
1118,Revenue,CAHD,Home Care - Elderly - South,Other Small Contracts,Care Horizons Limited,535.92, 07-Jul-2017
1119,Revenue,CAHD,Home Care - Elderly - North,Day Care / Social Activities,Care Horizons Limited,355.74, 07-Jul-2017
1120,Revenue,CAHD,Home Care - Elderly - North,Other Small Contracts,Care Horizons Limited,489.72, 07-Jul-2017
1121,Revenue,CAHD,Home care - Elderly MH - North,Other Small Contracts,Care Horizons Limited,194.04, 07-Jul-2017
1122,Revenue,CAHD,Home Care - Elderly - South,Other Small Contracts,Care Horizons Limited,857.96, 11-Jul-2017
1123,Revenue,CAHD,Home Care - Elderly - North,Day Care / Social Activities,Care Horizons Limited,383.46, 11-Jul-2017
1124,Revenue,CAHD,Home Care - Elderly - North,Other Small Contracts,Care Horizons Limited,203.28, 11-Jul-2017
1125,Revenue,CAHD,Home care - Elderly MH - North,Other Small Contracts,Care Horizons Limited,83.16, 11-Jul-2017
1126,Revenue,CAHD,Home Care - Elderly - South,Other Small Contracts,Care Horizons Limited,876.44, 17-Jul-2017
1127,Revenue,CAHD,Home Care - Elderly - North,Day Care / Social Activities,Care Horizons Limited,378.84, 17-Jul-2017
1128,Revenue,CAHD,Home Care - Elderly - North,Other Small Contracts,Care Horizons Limited,221.76, 17-Jul-2017
1129,Revenue,CAHD,Home Care - Elderly - South,Other Small Contracts,Care Horizons Limited,867.20, 27-Jul-2017
1130,Revenue,CAHD,Home Care - Elderly - North,Day Care / Social Activities,Care Horizons Limited,388.08, 27-Jul-2017
1131,Revenue,CAHD,Home Care - Elderly - North,Other Small Contracts,Care Horizons Limited,198.66, 27-Jul-2017
1132,Revenue,CAHD,Home care - Elderly MH - North,Other Small Contracts,Care Horizons Limited,110.88, 27-Jul-2017
1133,Revenue,CAHD,Home Care - Elderly - South,Other Small Contracts,Carers R Us (Bristol) Limited,340.48, 11-Jul-2017
1134,Revenue,CAHD,Home Care - Elderly - North,Other Small Contracts,Carers R Us (Bristol) Limited,2226.34, 11-Jul-2017
1135,Revenue,CAHD,Home Care - Elderly - South,Other Small Contracts,Carers R Us (Bristol) Limited,340.48, 19-Jul-2017
1136,Revenue,CAHD,Home Care - Elderly - North,Other Small Contracts,Carers R Us (Bristol) Limited,2225.18, 19-Jul-2017
1137,Revenue,CAHD,Home Care - Elderly - South,Other Small Contracts,Carers R Us (Bristol) Limited,318.08, 24-Jul-2017
1138,Revenue,CAHD,Home Care - Elderly - North,Other Small Contracts,Carers R Us (Bristol) Limited,2191.44, 24-Jul-2017
1139,Revenue,CAHD,Home Care - Elderly - South,Other Small Contracts,Carers R Us (Bristol) Limited,340.48, 27-Jul-2017
1140,Revenue,CAHD,Home Care - Elderly - North,Other Small Contracts,Carers R Us (Bristol) Limited,2219.26, 27-Jul-2017
1141,Revenue,CAHD,SLA Grants - Support Serv,Grants to Voluntary Bodies,Carers Support Centre,1000.00, 12-Jul-2017
1142,Revenue,CAHD,Home Care - Elderly - South,Other Small Contracts,Caring Comes 1st Ltd,793.65, 18-Jul-2017
1143,Revenue,CAHD,Home Care - Elderly - South,Other Small Contracts,Caring Comes 1st Ltd,1041.55, 05-Jul-2017
1144,Revenue,CAHD,Home Care - Elderly - South,Other Small Contracts,Caring Comes 1st Ltd,505.05, 19-Jul-2017
1145,Revenue,CAHD,Home Care - Elderly - South,Other Small Contracts,Caring Comes 1st Ltd,777.00, 19-Jul-2017
1146,Revenue,CAHD,Home Care - Elderly - South,Other Small Contracts,Caring Comes 1st Ltd,2075.70, 25-Jul-2017
1147,Revenue,CAHD,Home Care - Elderly - South,Other Small Contracts,Caring Comes 1st Ltd,1110.00, 13-Jul-2017
1148,Revenue,CAHD,Home Care - Elderly - South,Other Small Contracts,Caring Comes 1st Ltd,704.85, 21-Jul-2017
1149,Revenue,CAHD,Home Care - Elderly - North,Other Small Contracts,Caring Comes 1st Ltd,910.20, 19-Jul-2017
1150,Revenue,CAHD,Home Care - Elderly - South,Other Small Contracts,Caring Comes 1st Ltd,738.15, 20-Jul-2017
1151,Revenue,CAHD,Home Care - Elderly - South,Other Small Contracts,Caring Comes 1st Ltd,921.30, 24-Jul-2017
1152,Revenue,CAHD,Home Care - Elderly - South,Other Small Contracts,Caring Comes 1st Ltd,932.40, 28-Jul-2017
1153,Revenue,CAHD,Home Care - Elderly - North,Day Care / Social Activities,Causeway House,2913.20, 04-Jul-2017
1154,Revenue,CAHD,Home Care - Elderly - South,Day Care / Social Activities,Causeway House,4970.40, 04-Jul-2017
1155,Revenue,CAHD,Home Care - Elderly - North,Day Care / Social Activities,Causeway House,4311.60, 04-Jul-2017
1156,Revenue,CAHD,Home Care - Elderly - North,Day Care / Social Activities,Causeway House,2151.36, 04-Jul-2017
1157,Revenue,CAHD,Turnberries,Day Care / Social Activities,Causeway House,3682.00, 04-Jul-2017
1158,Revenue,CAHD,Home Care - Elderly - North,Day Care / Social Activities,Causeway House,1965.84, 04-Jul-2017
1159,Revenue,CAHD,Home Care - Elderly - North,Day Care / Social Activities,Causeway House,3052.40, 04-Jul-2017
1160,Revenue,CAHD,Home Care - Elderly - North,Day Care / Social Activities,Causeway House,4547.56, 04-Jul-2017
1161,Revenue,CAHD,Home Care - Elderly - North,Day Care / Social Activities,Causeway House,1634.40, 04-Jul-2017
1162,Revenue,CAHD,Home Care - Elderly - North,Day Care / Social Activities,Causeway House,2939.60, 04-Jul-2017
1163,Revenue,CAHD,Bed Purchasing - Southmead Hospital,Respite Planned - Nursing,Cedar Care Homes Limited,1079.94, 04-Jul-2017
1164,Revenue,CAHD,Bed Purchasing - Elderly S117- North,Permanent Nursing,Cedar Care Homes Limited,4352.00, 04-Jul-2017
1165,Revenue,CAHD,Bed Purchasing - North,Permanent Residential,Charlton House,1886.24, 04-Jul-2017
1166,Revenue,CAHD,Home Care - Elderly - South,Other Small Contracts,Cherish Able Care Limited,8323.84, 06-Jul-2017
1167,Revenue,CAHD,Home Care - Elderly - North,Other Small Contracts,Cherish Able Care Limited,2314.08, 06-Jul-2017
1168,Revenue,CAHD,Home Care - Elderly - South,Other Small Contracts,Cherish Able Care Limited,7813.12, 13-Jul-2017
1169,Revenue,CAHD,Home Care - Elderly - North,Other Small Contracts,Cherish Able Care Limited,2429.36, 13-Jul-2017
1170,Revenue,CAHD,Home Care - Elderly - South,Other Small Contracts,Cherish Able Care Limited,7844.48, 20-Jul-2017
1171,Revenue,CAHD,Home Care - Elderly - North,Other Small Contracts,Cherish Able Care Limited,2404.41, 20-Jul-2017
1172,Revenue,CAHD,Home Care - Elderly - South,Other Small Contracts,Cherish Able Care Limited,8153.60, 27-Jul-2017
1173,Revenue,CAHD,Home Care - Elderly - North,Other Small Contracts,Cherish Able Care Limited,2793.77, 27-Jul-2017
1174,Revenue,CAHD,Bed purchasing -S28A  Under 65 - North,Permanent Residential,Chescombe Lodge,9357.80, 04-Jul-2017
1175,Revenue,CAHD,18-25 Year Olds,Permanent Residential,Chosen Care Ltd  Citibase Watford,7689.72, 04-Jul-2017
1176,Revenue,CAHD,Bed Purchasing - Elderly S117- North,Permanent Residential,Chosen Care Ltd  Citibase Watford,5060.64, 04-Jul-2017
1177,Revenue,CAHD,Jointly Funded H&SC Packages,Permanent Residential,Chosen Care Ltd  Citibase Watford,5060.64, 04-Jul-2017
1178,Revenue,CAHD,18-25 Year Olds,Permanent Residential,Chosen Care Ltd  Citibase Watford,6073.44, 04-Jul-2017
1179,Revenue,CAHD,Bed Purchasing - Southmead Hospital,Permanent Nursing,Churchill Property Services,2249.92, 04-Jul-2017
1180,Revenue,CAHD,Home Care - Elderly - South,Other Small Contracts,Cintre,224.16, 19-Jul-2017
1181,Revenue,CAHD,Home Care - Elderly - North,Day Care / Social Activities,Cintre,93.40, 19-Jul-2017
1182,Revenue,CAHD,Home Care - Elderly - North,Other Small Contracts,Cintre,392.28, 19-Jul-2017
1183,Revenue,CAHD,Home Care - Elderly - South,Other Small Contracts,Cintre,224.16, 19-Jul-2017
1184,Revenue,CAHD,Home Care - Elderly - North,Day Care / Social Activities,Cintre,102.74, 19-Jul-2017
1185,Revenue,CAHD,Home Care - Elderly - North,Other Small Contracts,Cintre,317.56, 19-Jul-2017
1186,Revenue,CAHD,Home Care - Elderly - South,Other Small Contracts,Cintre,168.12, 19-Jul-2017
1187,Revenue,CAHD,Home Care - Elderly - North,Day Care / Social Activities,Cintre,107.41, 19-Jul-2017
1188,Revenue,CAHD,Home Care - Elderly - North,Other Small Contracts,Cintre,401.62, 19-Jul-2017
1189,Revenue,CAHD,MH Purchasing - Younger,Permanent Residential,Claro Homes,2207.44, 04-Jul-2017
1190,Revenue,CAHD,Bed Purchasing - South,Permanent Residential,Cleeve Lodge,1232.16, 04-Jul-2017
1191,Revenue,CAHD,Bed Purchasing - South,Fees & Charges Income - General,Cleeve Lodge,7300.00, 04-Jul-2017
1192,Revenue,CAHD,Bed Purchasing - South,Permanent Residential,Cleeve Lodge,2957.96, 04-Jul-2017
1193,Revenue,CAHD,Bed Purchasing - South,Permanent Residential,Cleeve Lodge,4436.94, 04-Jul-2017
1194,Revenue,CAHD,Bed Purchasing - South,Fees & Charges Income - General,Cleeve Lodge,2055.84, 04-Jul-2017
1195,Revenue,CAHD,Bed Purchasing - South,Fees & Charges Income - General,Cleeve Lodge,2055.84, 04-Jul-2017
1196,Revenue,CAHD,Bed Purchasing - South,Permanent Residential,Cleeve Lodge,2957.96, 04-Jul-2017
1197,Revenue,CAHD,Bed Purchasing - South,Fees & Charges Income - General,Cleeve Lodge,1321.61, 04-Jul-2017
1198,Revenue,CAHD,Bed Purchasing - South,Permanent Residential,Cleeve Lodge,10741.43, 04-Jul-2017
1199,Revenue,CAHD,Bed Purchasing - South,Fees & Charges Income - General,Cleeve Lodge,1520.16, 04-Jul-2017
1200,Revenue,CAHD,Bed Purchasing - South,Permanent Residential,Cleeve Lodge,2361.60, 04-Jul-2017
1201,Revenue,CAHD,Bed Purchasing - South,Respite Planned - Residential,Cleeve Lodge,1000.00, 04-Jul-2017
1202,Revenue,CAHD,Bed Purchasing - Southmead Hospital,Respite Planned - Residential,Cleeve Lodge,2740.00, 04-Jul-2017
1203,Revenue,CAHD,Bed Purchasing - South,Permanent Residential,Cleeve Lodge,2735.12, 04-Jul-2017
1204,Revenue,CAHD,Bed Purchasing - South,Permanent Residential,Cleeve Lodge,2525.84, 04-Jul-2017
1205,Revenue,CAHD,Bed Purchasing - South,Permanent Residential,Cleeve Lodge,2486.76, 04-Jul-2017
1206,Revenue,CAHD,Bed Purchasing - South,Permanent Residential,Clerkenleap Barn,6079.80, 04-Jul-2017
1207,Revenue,CAHD,Bed Purchasing - South,Permanent Residential,Collingwood Residential Home,2147.96, 04-Jul-2017
1208,Revenue,CAHD,Bed Purchasing - Southmead Hospital,Permanent Residential,Collingwood Residential Home,2431.20, 04-Jul-2017
1209,Revenue,CAHD,Bed Purchasing - South,Permanent Residential,Collingwood Residential Home,2329.92, 04-Jul-2017
1210,Revenue,CAHD,Bed Purchasing - South,Permanent Residential,Collingwood Residential Home,3728.57, 04-Jul-2017
1211,Revenue,CAHD,Bed Purchasing - South,Permanent Residential,Collingwood Residential Home,2320.00, 04-Jul-2017
1212,Revenue,CAHD,Bed Purchasing - South,Fees & Charges Income - General,Collingwood Residential Home,524.07, 04-Jul-2017
1213,Revenue,CAHD,Bed Purchasing - South,Fees & Charges Income - General,Collingwood Residential Home,845.11, 04-Jul-2017
1214,Revenue,CAHD,Bed Purchasing - Southmead Hospital,Permanent Residential,Collingwood Residential Home,2350.16, 04-Jul-2017
1215,Revenue,CAHD,Bed Purchasing - South,Permanent Residential,Collingwood Residential Home,2390.68, 04-Jul-2017
1216,Revenue,CAHD,Bed Purchasing - South,Permanent Residential,Collingwood Residential Home,2016.16, 04-Jul-2017
1217,Revenue,CAHD,Bed Purchasing - South,Permanent Nursing,Community Integrated Care,1901.96, 04-Jul-2017
1218,Revenue,CAHD,Bed and Breakfast,Bed & Breakfast,Connolly & Callaghan Limited,616.00, 03-Jul-2017
1219,Revenue,CAHD,Bed and Breakfast,Bed & Breakfast,Connolly & Callaghan Limited,616.00, 04-Jul-2017
1220,Revenue,CAHD,Bed and Breakfast,Bed & Breakfast,Connolly & Callaghan Limited,455.00, 04-Jul-2017
1221,Revenue,CAHD,Bed and Breakfast,Bed & Breakfast,Connolly & Callaghan Limited,497.00, 04-Jul-2017
1222,Revenue,CAHD,Bed and Breakfast,Bed & Breakfast,Connolly & Callaghan Limited,616.00, 06-Jul-2017
1223,Revenue,CAHD,Bed and Breakfast,Bed & Breakfast,Connolly & Callaghan Limited,490.00, 04-Jul-2017
1224,Revenue,CAHD,Bed and Breakfast,Bed & Breakfast,Connolly & Callaghan Limited,455.00, 04-Jul-2017
1225,Revenue,CAHD,Bed and Breakfast,Bed & Breakfast,Connolly & Callaghan Limited,791.00, 04-Jul-2017
1226,Revenue,CAHD,Bed and Breakfast,Bed & Breakfast,Connolly & Callaghan Limited,616.00, 11-Jul-2017
1227,Revenue,CAHD,Bed and Breakfast,Bed & Breakfast,Connolly & Callaghan Limited,455.00, 11-Jul-2017
1228,Revenue,CAHD,Bed and Breakfast,Bed & Breakfast,Connolly & Callaghan Limited,455.00, 11-Jul-2017
1229,Revenue,CAHD,Bed and Breakfast,Bed & Breakfast,Connolly & Callaghan Limited,497.00, 11-Jul-2017
1230,Revenue,CAHD,Bed and Breakfast,Bed & Breakfast,Connolly & Callaghan Limited,616.00, 11-Jul-2017
1231,Revenue,CAHD,Bed and Breakfast,Bed & Breakfast,Connolly & Callaghan Limited,490.00, 11-Jul-2017
1232,Revenue,CAHD,Bed and Breakfast,Bed & Breakfast,Connolly & Callaghan Limited,455.00, 11-Jul-2017
1233,Revenue,CAHD,Bed and Breakfast,Bed & Breakfast,Connolly & Callaghan Limited,791.00, 20-Jul-2017
1234,Revenue,CAHD,Bed and Breakfast,Bed & Breakfast,Connolly & Callaghan Limited,721.00, 11-Jul-2017
1235,Revenue,CAHD,Bed and Breakfast,Bed & Breakfast,Connolly & Callaghan Limited,616.00, 19-Jul-2017
1236,Revenue,CAHD,Bed and Breakfast,Bed & Breakfast,Connolly & Callaghan Limited,455.00, 19-Jul-2017
1237,Revenue,CAHD,Bed and Breakfast,Bed & Breakfast,Connolly & Callaghan Limited,497.00, 19-Jul-2017
1238,Revenue,CAHD,Bed and Breakfast,Bed & Breakfast,Connolly & Callaghan Limited,616.00, 19-Jul-2017
1239,Revenue,CAHD,Bed and Breakfast,Bed & Breakfast,Connolly & Callaghan Limited,490.00, 19-Jul-2017
1240,Revenue,CAHD,Bed and Breakfast,Bed & Breakfast,Connolly & Callaghan Limited,455.00, 19-Jul-2017
1241,Revenue,CAHD,Bed and Breakfast,Bed & Breakfast,Connolly & Callaghan Limited,791.00, 24-Jul-2017
1242,Revenue,CAHD,Bed and Breakfast,Bed & Breakfast,Connolly & Callaghan Limited,721.00, 19-Jul-2017
1243,Revenue,CAHD,Bed and Breakfast,Bed & Breakfast,Connolly & Callaghan Limited,497.00, 25-Jul-2017
1244,Revenue,CAHD,Bed and Breakfast,Bed & Breakfast,Connolly & Callaghan Limited,616.00, 28-Jul-2017
1245,Revenue,CAHD,Bed and Breakfast,Bed & Breakfast,Connolly & Callaghan Limited,490.00, 25-Jul-2017
1246,Revenue,CAHD,Bed and Breakfast,Bed & Breakfast,Connolly & Callaghan Limited,455.00, 25-Jul-2017
1247,Revenue,CAHD,Bed and Breakfast,Bed & Breakfast,Connolly & Callaghan Limited,455.00, 27-Jul-2017
1248,Revenue,CAHD,Bed and Breakfast,Bed & Breakfast,Connolly & Callaghan Limited,791.00, 25-Jul-2017
1249,Revenue,CAHD,Bed and Breakfast,Bed & Breakfast,Connolly & Callaghan Limited,721.00, 25-Jul-2017
1250,Revenue,CAHD,Bed and Breakfast,Bed & Breakfast,Connolly & Callaghan Limited,616.00, 31-Jul-2017
1251,Revenue,CAHD,Bed and Breakfast,Bed & Breakfast,Connolly & Callaghan Limited,539.00, 31-Jul-2017
1252,Revenue,CAHD,Bed and Breakfast,Bed & Breakfast,Connolly & Callaghan Limited,490.00, 31-Jul-2017
1253,Revenue,CAHD,Bed and Breakfast,Bed & Breakfast,Connolly & Callaghan Limited,455.00, 31-Jul-2017
1254,Revenue,CAHD,Bed and Breakfast,Bed & Breakfast,Connolly & Callaghan Limited,791.00, 31-Jul-2017
1255,Revenue,CAHD,Bed purchasing -S28A  Under 65 - North,Permanent Residential,Creedy Court,25391.50, 04-Jul-2017
1256,Revenue,CAHD,Bed purchasing -S28A  Under 65 - North,Permanent Residential,Creedy Court,10156.60, 04-Jul-2017
1257,Revenue,CAHD,Bed purchasing -S28A  Under 65 - North,Fees & Charges Income - General,Creedy Court,1266.15, 04-Jul-2017
1258,Revenue,CAHD,Bed Purchasing - S28A - Over 65- North,Permanent Residential,Creedy Court,8534.04, 04-Jul-2017
1259,Revenue,CAHD,Bed Purchasing - North,Permanent Residential,Creedy Court,13468.68, 04-Jul-2017
1260,Revenue,CAHD,Bed Purchasing - South,Permanent Residential,Daneswood,11757.84, 04-Jul-2017
1261,Revenue,CAHD,Home Care - Elderly - South,Day Care / Social Activities,Daneswood,1354.56, 04-Jul-2017
1262,Revenue,CAHD,Bed Purchasing - North,Permanent Residential,Daneswood,9836.56, 04-Jul-2017
1263,Revenue,CAHD,Tenancy Start Up Scheme,Other Supplies & Services,Individual,1000.00, 14-Jul-2017
1264,Revenue,CAHD,Bed Purchasing - Elderly S117- North,Permanent Nursing,Danshell Healthcare Group,10419.44, 04-Jul-2017
1265,Revenue,CAHD,Jointly Funded H&SC Packages,Permanent Nursing,Danshell Healthcare Group,1546.12, 04-Jul-2017
1266,Revenue,CAHD,Learning Difficulties PSL,Other Supplies & Services,Individual,2105.50, 21-Jul-2017
1267,Revenue,CAHD,Bed and Breakfast,Storage & Removal,Individual,560.00, 25-Jul-2017
1268,Revenue,CAHD,Home Care - Elderly - South,Supported Living,Design House,2746.28, 04-Jul-2017
1269,Revenue,CAHD,Home Care - Elderly - South,Supported Living,Design House,2935.76, 04-Jul-2017
1270,Revenue,CAHD,Home Care - Elderly - South,Supported Living,Design House,3002.60, 04-Jul-2017
1271,Revenue,CAHD,Home Care - Elderly - South,Supported Living,Design House,2868.88, 04-Jul-2017
1272,Revenue,CAHD,18-25 Year Olds,Supported Living,Design House,1599.92, 04-Jul-2017
1273,Revenue,CAHD,Home Care - Elderly - South,Day Care / Social Activities,Design House,1471.60, 04-Jul-2017
1274,Revenue,CAHD,Home Care - Elderly - South,Supported Living,Design House,2528.96, 04-Jul-2017
1275,Revenue,CAHD,Home Care - Elderly - South,Supported Living,Design House,2528.96, 04-Jul-2017
1276,Revenue,CAHD,Home Care - Elderly - South,Supported Living,Design House,1648.36, 04-Jul-2017
1277,Revenue,CAHD,Home Care - Elderly - South,Supported Living,Design House,2060.00, 04-Jul-2017
1278,Revenue,CAHD,Home Care - Elderly - South,Supported Living,Design House,1817.72, 04-Jul-2017
1279,Revenue,CAHD,Home Care - Elderly - South,Supported Living,Design House,2412.00, 04-Jul-2017
1280,Revenue,CAHD,Home Care - Elderly - South,Supported Living,Design House,4128.16, 04-Jul-2017
1281,Revenue,CAHD,Home Care - Elderly - South,Supported Living,Design House,2927.36, 04-Jul-2017
1282,Revenue,CAHD,Home Care - Elderly - South,Day Care / Social Activities,Design House,1231.60, 04-Jul-2017
1283,Revenue,CAHD,Home Care - Elderly - South,Supported Living,Design House,2779.72, 04-Jul-2017
1284,Revenue,CAHD,Home Care - Elderly - South,Supported Living,Design House,2829.88, 04-Jul-2017
1285,Revenue,CAHD,Home Care - Elderly - South,Supported Living,Design House,2163.68, 04-Jul-2017
1286,Revenue,CAHD,Home Care - Elderly - South,Supported Living,Design House,1817.72, 04-Jul-2017
1287,Revenue,CAHD,Home Care - Elderly - South,Supported Living,Design House,2163.68, 04-Jul-2017
1288,Revenue,CAHD,Home Care - Elderly - South,Other Small Contracts,Dhek Bhal,601.15, 11-Jul-2017
1289,Revenue,CAHD,Home Care - Elderly - North,Other Small Contracts,Dhek Bhal,40.32, 11-Jul-2017
1290,Revenue,CAHD,Home Care - Elderly - South,Other Small Contracts,Dhek Bhal,559.44, 12-Jul-2017
1291,Revenue,CAHD,Home Care - Elderly - North,Other Small Contracts,Dhek Bhal,40.32, 12-Jul-2017
1292,Revenue,CAHD,Home Care - Elderly - South,Other Small Contracts,Dhek Bhal,559.44, 17-Jul-2017
1293,Revenue,CAHD,Home Care - Elderly - North,Other Small Contracts,Dhek Bhal,40.32, 17-Jul-2017
1294,Revenue,CAHD,Home Care - Elderly - South,Other Small Contracts,Dhek Bhal,519.12, 24-Jul-2017
1295,Revenue,CAHD,Home Care - Elderly - North,Other Small Contracts,Dhek Bhal,40.32, 24-Jul-2017
1296,Revenue,CAHD,Bed Purchasing - South,Permanent Residential,Dimensions  Suite 2,5396.28, 04-Jul-2017
1297,Revenue,CAHD,Home Care - Elderly - North,Supported Living,Dimensions Suite 2,1823.24, 04-Jul-2017
1298,Revenue,CAHD,Home Care - Elderly - South,Supported Living,Dimensions Suite 2,1823.24, 04-Jul-2017
1299,Revenue,CAHD,Home Care - Elderly - South,Supported Living,Dimensions Suite 2,1823.24, 04-Jul-2017
1300,Revenue,CAHD,Home Care - Elderly - South,Supported Living,Dimensions Suite 2,1823.24, 04-Jul-2017
1301,Revenue,CAHD,Home Care - Elderly - North,Supported Living,Dimensions Suite 2,1823.24, 04-Jul-2017
1302,Revenue,CAHD,Home Care - Elderly - South,Day Care / Social Activities,DoCare Ltd,67.21, 19-Jul-2017
1303,Revenue,CAHD,Home Care - Elderly - South,Other Small Contracts,DoCare Ltd,1139.37, 19-Jul-2017
1304,Revenue,CAHD,Home Care - Elderly - North,Other Small Contracts,DoCare Ltd,6325.99, 19-Jul-2017
1305,Revenue,CAHD,Home Care - Elderly - South,Day Care / Social Activities,DoCare Ltd,67.21, 19-Jul-2017
1306,Revenue,CAHD,Home Care - Elderly - South,Other Small Contracts,DoCare Ltd,1289.30, 19-Jul-2017
1307,Revenue,CAHD,Home Care - Elderly - North,Other Small Contracts,DoCare Ltd,6519.83, 19-Jul-2017
1308,Revenue,CAHD,Home Care - Elderly - South,Day Care / Social Activities,DoCare Ltd,67.21, 24-Jul-2017
1309,Revenue,CAHD,Home Care - Elderly - South,Other Small Contracts,DoCare Ltd,1382.36, 24-Jul-2017
1310,Revenue,CAHD,Home Care - Elderly - North,Other Small Contracts,DoCare Ltd,6424.73, 24-Jul-2017
1311,Revenue,CAHD,Home Care - Elderly - South,Day Care / Social Activities,DoCare Ltd,67.21, 27-Jul-2017
1312,Revenue,CAHD,Home Care - Elderly - South,Other Small Contracts,DoCare Ltd,1351.34, 27-Jul-2017
1313,Revenue,CAHD,Home Care - Elderly - North,Other Small Contracts,DoCare Ltd,6273.34, 27-Jul-2017
1314,Revenue,CAHD,Social Lettings Agency,Other Supplies & Services,Individual,605.64, 24-Jul-2017
1315,Revenue,CAHD,Bed Purchasing - North,Permanent Nursing,Drakes Court,2288.92, 04-Jul-2017
1316,Revenue,CAHD,South Glos Users in South Glos Homes,Permanent Nursing,Drakes Court,620.20, 04-Jul-2017
1317,Revenue,CAHD,Bed Purchasing - Southmead Hospital,Permanent Nursing,Drakes Court,2780.00, 04-Jul-2017
1318,Revenue,CAHD,Bed Purchasing - Southmead Hospital,Permanent Nursing,Drakes Court,695.00, 04-Jul-2017
1319,Revenue,CAHD,South Glos Users in South Glos Homes,Permanent Nursing,Drakes Court,620.20, 04-Jul-2017
1320,Revenue,CAHD,Bed Purchasing - North,Respite Emergency - Nursing,Drakes Court,675.00, 04-Jul-2017
1321,Revenue,CAHD,Bed Purchasing - Southmead Hospital,Permanent Nursing,Drakes Court,1945.28, 04-Jul-2017
1322,Revenue,CAHD,South Glos Users in South Glos Homes,Permanent Nursing,Drakes Court,620.20, 04-Jul-2017
1323,Revenue,CAHD,Bed Purchasing - South,Respite Planned - Residential,Drakes Court,992.86, 04-Jul-2017
1324,Revenue,CAHD,South Glos Users in South Glos Homes,Permanent Nursing,Drakes Court,620.20, 04-Jul-2017
1325,Revenue,CAHD,Bed Purchasing - North,Respite Planned - Nursing,Drakes Court,2735.12, 04-Jul-2017
1326,Revenue,CAHD,South Glos Users in South Glos Homes,Permanent Nursing,Drakes Court,620.20, 04-Jul-2017
1327,Revenue,CAHD,South Glos Users in South Glos Homes,Permanent Nursing,Drakes Court,620.20, 04-Jul-2017
1328,Revenue,CAHD,Bed Purchasing - North,Permanent Nursing,Drakes Court,3020.76, 04-Jul-2017
1329,Revenue,CAHD,South Glos Users in South Glos Homes,Permanent Nursing,Drakes Court,620.20, 04-Jul-2017
1330,Revenue,CAHD,Bed Purchasing - North,Permanent Nursing,Drakes Court,1945.28, 04-Jul-2017
1331,Revenue,CAHD,Bed Purchasing - Southmead Hospital,Permanent Nursing,Drakes Court,1945.28, 04-Jul-2017
1332,Revenue,CAHD,South Glos Users in South Glos Homes,Permanent Nursing,Drakes Court,620.20, 04-Jul-2017
1333,Revenue,CAHD,Bed Purchasing - North,Permanent Residential,Drakes Court,1886.24, 04-Jul-2017
1334,Revenue,CAHD,Bed Purchasing - North,Permanent Nursing,Drakes Court,2283.32, 04-Jul-2017
1335,Revenue,CAHD,South Glos Users in South Glos Homes,Permanent Nursing,Drakes Court,620.20, 04-Jul-2017
1336,Revenue,CAHD,Bed Purchasing - North,Permanent Nursing,Drakes Court,2633.80, 04-Jul-2017
1337,Revenue,CAHD,South Glos Users in South Glos Homes,Permanent Nursing,Drakes Court,620.20, 04-Jul-2017
1338,Revenue,CAHD,Bed Purchasing - North,Fees & Charges Income - General,Drakes Court,1477.00, 04-Jul-2017
1339,Revenue,CAHD,Bed Purchasing - North,Fees & Charges Income - General,Drakes Court,578.81, 04-Jul-2017
1340,Revenue,CAHD,Bed Purchasing - North,Fees & Charges Income - General,Drakes Court,1325.29, 04-Jul-2017
1341,Revenue,CAHD,South Glos Users in South Glos Homes,Permanent Nursing,Drakes Court,620.20, 04-Jul-2017
1342,Revenue,CAHD,South Glos Users in South Glos Homes,Permanent Nursing,Drakes Court,620.20, 04-Jul-2017
1343,Revenue,CAHD,South Glos Users in South Glos Homes,Permanent Nursing,Drakes Court,620.20, 04-Jul-2017
1344,Revenue,CAHD,MH Purchasing - Younger,Permanent Residential,Dunraven House,2272.96, 04-Jul-2017
1345,Revenue,CAHD,Bed and Breakfast,Bed & Breakfast,Individual,420.00, 04-Jul-2017
1346,Revenue,CAHD,Bed and Breakfast,Bed & Breakfast,Individual,504.00, 04-Jul-2017
1347,Revenue,CAHD,Bed and Breakfast,Bed & Breakfast,Individual,434.00, 04-Jul-2017
1348,Revenue,CAHD,Bed and Breakfast,Bed & Breakfast,Individual,420.00, 12-Jul-2017
1349,Revenue,CAHD,Bed and Breakfast,Bed & Breakfast,Individual,504.00, 12-Jul-2017
1350,Revenue,CAHD,Bed and Breakfast,Bed & Breakfast,Individual,434.00, 12-Jul-2017
1351,Revenue,CAHD,Bed and Breakfast,Bed & Breakfast,Individual,420.00, 19-Jul-2017
1352,Revenue,CAHD,Bed and Breakfast,Bed & Breakfast,Individual,504.00, 19-Jul-2017
1353,Revenue,CAHD,Bed and Breakfast,Bed & Breakfast,Individual,434.00, 19-Jul-2017
1354,Revenue,CAHD,Bed and Breakfast,Bed & Breakfast,Individual,420.00, 26-Jul-2017
1355,Revenue,CAHD,Bed and Breakfast,Bed & Breakfast,Individual,504.00, 26-Jul-2017
1356,Revenue,CAHD,Bed and Breakfast,Bed & Breakfast,Individual,434.00, 26-Jul-2017
1357,Revenue,CAHD,Bed Purchasing - North,Permanent Residential,East Court,2648.48, 04-Jul-2017
1358,Revenue,CAHD,Bed Purchasing - North,Permanent Residential,Edgecumbe Lodge,2289.40, 04-Jul-2017
1359,Revenue,CAHD,Bed Purchasing - Southmead Hospital,Permanent Residential,Edgecumbe Lodge,1886.64, 04-Jul-2017
1360,Revenue,CAHD,Bed Purchasing - South,Permanent Residential,Edgecumbe Lodge,2140.00, 04-Jul-2017
1361,Revenue,CAHD,Bed Purchasing - Southmead Hospital,Permanent Residential,Edgecumbe Lodge,2431.20, 04-Jul-2017
1362,Revenue,CAHD,Bed Purchasing - South,Permanent Residential,Edgecumbe Lodge,2156.24, 04-Jul-2017
1363,Revenue,CAHD,Bed Purchasing - North,Permanent Residential,Edgecumbe Lodge,2320.48, 04-Jul-2017
1364,Revenue,CAHD,Bed Purchasing - South,Permanent Residential,Edgecumbe Lodge,2156.24, 04-Jul-2017
1365,Revenue,CAHD,Bed Purchasing - South,Permanent Residential,Edgecumbe Lodge,2431.20, 04-Jul-2017
1366,Revenue,CAHD,Bed Purchasing - South,Permanent Residential,Edgecumbe Lodge,1779.80, 04-Jul-2017
1367,Revenue,CAHD,Bed Purchasing - Southmead Hospital,Permanent Residential,Edgecumbe Lodge,2431.20, 04-Jul-2017
1368,Revenue,CAHD,Bed Purchasing - North,Permanent Residential,Edgecumbe Lodge,2156.24, 04-Jul-2017
1369,Revenue,CAHD,Bed Purchasing - South,Permanent Residential,Edgemont House Ltd,2228.60, 04-Jul-2017
1370,Revenue,CAHD,Bed Purchasing - Southmead Hospital,Permanent Residential,Edgemont House Ltd,1879.20, 04-Jul-2017
1371,Revenue,CAHD,Bed Purchasing - South,Permanent Residential,Edgemont House Ltd,2188.08, 04-Jul-2017
1372,Revenue,CAHD,Bed Purchasing - South,Permanent Residential,Edgemont House Ltd,2200.00, 04-Jul-2017
1373,Revenue,CAHD,Bed Purchasing - South,Permanent Residential,Edgemont House Ltd,1335.71, 04-Jul-2017
1374,Revenue,CAHD,Bed Purchasing - South,Permanent Residential,Edgemont House Ltd,2013.32, 04-Jul-2017
1375,Revenue,CAHD,Bed Purchasing - South,Fees & Charges Income - General,Edgemont House Ltd,1567.29, 04-Jul-2017
1376,Revenue,CAHD,South Glos Users in South Glos Homes,Permanent Nursing,Edgemont View Nursing Home,620.20, 04-Jul-2017
1377,Revenue,CAHD,South Glos Users in South Glos Homes,Permanent Nursing,Edgemont View Nursing Home,620.20, 04-Jul-2017
1378,Revenue,CAHD,South Glos Users in South Glos Homes,Permanent Nursing,Edgemont View Nursing Home,620.20, 04-Jul-2017
1379,Revenue,CAHD,South Glos Users in South Glos Homes,Permanent Nursing,Edgemont View Nursing Home,620.20, 04-Jul-2017
1380,Revenue,CAHD,Bed Purchasing - South,Permanent Nursing,Edgemont View Nursing Home,2917.44, 04-Jul-2017
1381,Revenue,CAHD,South Glos Users in South Glos Homes,Permanent Nursing,Edgemont View Nursing Home,620.20, 04-Jul-2017
1382,Revenue,CAHD,South Glos Users in South Glos Homes,Permanent Nursing,Edgemont View Nursing Home,620.20, 04-Jul-2017
1383,Revenue,CAHD,South Glos Users in South Glos Homes,Permanent Nursing,Edgemont View Nursing Home,620.20, 04-Jul-2017
1384,Revenue,CAHD,South Glos Users in South Glos Homes,Permanent Nursing,Edgemont View Nursing Home,620.20, 04-Jul-2017
1385,Revenue,CAHD,South Glos Users in South Glos Homes,Permanent Nursing,Edgemont View Nursing Home,620.20, 04-Jul-2017
1386,Revenue,CAHD,South Glos Users in South Glos Homes,Permanent Nursing,Edgemont View Nursing Home,620.20, 04-Jul-2017
1387,Revenue,CAHD,South Glos Users in South Glos Homes,Permanent Nursing,Edgemont View Nursing Home,620.20, 04-Jul-2017
1388,Revenue,CAHD,Bed Purchasing - South,Permanent Nursing,Edgemont View Nursing Home,5348.57, 04-Jul-2017
1389,Revenue,CAHD,Bed Purchasing - South,Permanent Nursing,Edgemont View Nursing Home,2880.00, 04-Jul-2017
1390,Revenue,CAHD,Bed Purchasing - South,Fees & Charges Income - General,Edgemont View Nursing Home,899.10, 04-Jul-2017
1391,Revenue,CAHD,Bed Purchasing - South,Permanent Nursing,Edgemont View Nursing Home,2228.00, 04-Jul-2017
1392,Revenue,CAHD,South Glos Users in South Glos Homes,Permanent Nursing,Edgemont View Nursing Home,620.20, 04-Jul-2017
1393,Revenue,CAHD,South Glos Users in South Glos Homes,Permanent Nursing,Edgemont View Nursing Home,620.20, 04-Jul-2017
1394,Revenue,CAHD,South Glos Users in South Glos Homes,Permanent Nursing,Edgemont View Nursing Home,620.20, 04-Jul-2017
1395,Revenue,CAHD,South Glos Users in South Glos Homes,Permanent Nursing,Edgemont View Nursing Home,620.20, 04-Jul-2017
1396,Revenue,CAHD,South Glos Users in South Glos Homes,Permanent Nursing,Edgemont View Nursing Home,620.20, 04-Jul-2017
1397,Revenue,CAHD,Bed Purchasing - Southmead Hospital,Permanent Nursing,Edgemont View Nursing Home,2917.44, 04-Jul-2017
1398,Revenue,CAHD,South Glos Users in South Glos Homes,Permanent Nursing,Edgemont View Nursing Home,620.20, 04-Jul-2017
1399,Revenue,CAHD,Home Care - Elderly - South,Day Care / Social Activities,Elite Home Care Ltd,340.50, 07-Jul-2017
1400,Revenue,CAHD,Home Care - Elderly - South,Other Small Contracts,Elite Home Care Ltd,8570.54, 07-Jul-2017
1401,Revenue,CAHD,Home Care - Elderly - North,Other Small Contracts,Elite Home Care Ltd,522.10, 07-Jul-2017
1402,Revenue,CAHD,Home Care - Elderly - South,Day Care / Social Activities,Elite Home Care Ltd,444.92, 07-Jul-2017
1403,Revenue,CAHD,Home Care - Elderly - South,Other Small Contracts,Elite Home Care Ltd,8746.08, 07-Jul-2017
1404,Revenue,CAHD,Home Care - Elderly - North,Other Small Contracts,Elite Home Care Ltd,499.40, 07-Jul-2017
1405,Revenue,CAHD,Home Care - Elderly - South,Day Care / Social Activities,Elite Home Care Ltd,408.60, 12-Jul-2017
1406,Revenue,CAHD,Home Care - Elderly - South,Other Small Contracts,Elite Home Care Ltd,9112.32, 12-Jul-2017
1407,Revenue,CAHD,Home Care - Elderly - North,Other Small Contracts,Elite Home Care Ltd,513.02, 12-Jul-2017
1408,Revenue,CAHD,Home Care - Elderly - South,Day Care / Social Activities,Elite Home Care Ltd,431.30, 18-Jul-2017
1409,Revenue,CAHD,Home Care - Elderly - South,Other Small Contracts,Elite Home Care Ltd,8594.76, 18-Jul-2017
1410,Revenue,CAHD,Home Care - Elderly - North,Other Small Contracts,Elite Home Care Ltd,494.86, 18-Jul-2017
1411,Revenue,CAHD,Home Care - Elderly - South,Day Care / Social Activities,Elite Home Care Ltd,431.30, 27-Jul-2017
1412,Revenue,CAHD,Home Care - Elderly - South,Other Small Contracts,Elite Home Care Ltd,8454.02, 27-Jul-2017
1413,Revenue,CAHD,Home Care - Elderly - North,Other Small Contracts,Elite Home Care Ltd,490.32, 27-Jul-2017
1414,Revenue,CAHD,Bed Purchasing - North,Permanent Residential,Epworth House,2798.12, 04-Jul-2017
1415,Revenue,CAHD,Learning Difficulties Development Fund,Other Supplies & Services,FACE,1375.00, 07-Jul-2017
1416,Revenue,CAHD,South Glos Users in South Glos Homes,Permanent Nursing,Fairview Court,620.20, 04-Jul-2017
1417,Revenue,CAHD,South Glos Users in South Glos Homes,Permanent Nursing,Fairview Court,620.20, 04-Jul-2017
1418,Revenue,CAHD,South Glos Users in South Glos Homes,Permanent Nursing,Fairview Court,620.20, 04-Jul-2017
1419,Revenue,CAHD,South Glos Users in South Glos Homes,Permanent Nursing,Fairview Court,620.20, 04-Jul-2017
1420,Revenue,CAHD,Bed Purchasing - Southmead Hospital,Permanent Nursing,Fairview Court,3360.00, 04-Jul-2017
1421,Revenue,CAHD,Bed Purchasing - Southmead Hospital,Permanent Nursing,Fairview Court,3240.00, 04-Jul-2017
1422,Revenue,CAHD,Bed Purchasing - Southmead Hospital,Permanent Nursing,Fairview Court,3241.60, 04-Jul-2017
1423,Revenue,CAHD,South Glos Users in South Glos Homes,Permanent Nursing,Fairview Court,620.20, 04-Jul-2017
1424,Revenue,CAHD,South Glos Users in South Glos Homes,Permanent Nursing,Fairview Court,620.20, 04-Jul-2017
1425,Revenue,CAHD,Bed Purchasing - Southmead Hospital,Permanent Nursing,Fairview Court,3031.04, 04-Jul-2017
1426,Revenue,CAHD,South Glos Users in South Glos Homes,Permanent Nursing,Fairview Court,620.20, 04-Jul-2017
1427,Revenue,CAHD,Bed Purchasing - South,Permanent Nursing,Fairview Court,2449.12, 04-Jul-2017
1428,Revenue,CAHD,South Glos Users in South Glos Homes,Permanent Nursing,Fairview Court,620.20, 04-Jul-2017
1429,Revenue,CAHD,Bed purchasing - Elderly S117 - South,Permanent Nursing,Fairview Court,4000.00, 04-Jul-2017
1430,Revenue,CAHD,Bed purchasing - Elderly S117 - South,Permanent Nursing,Fairview Court,2985.40, 04-Jul-2017
1431,Revenue,CAHD,South Glos Users in South Glos Homes,Permanent Nursing,Fairview Court,620.20, 04-Jul-2017
1432,Revenue,CAHD,South Glos Users in South Glos Homes,Permanent Nursing,Fairview Court,620.20, 04-Jul-2017
1433,Revenue,CAHD,South Glos Users in South Glos Homes,Permanent Nursing,Fairview Court,620.20, 04-Jul-2017
1434,Revenue,CAHD,Bed Purchasing - South,Permanent Nursing,Fairview Court,3241.60, 04-Jul-2017
1435,Revenue,CAHD,South Glos Users in South Glos Homes,Permanent Nursing,Fairview Court,620.20, 04-Jul-2017
1436,Revenue,CAHD,South Glos Users in South Glos Homes,Permanent Nursing,Fairview Court,620.20, 04-Jul-2017
1437,Revenue,CAHD,South Glos Users in South Glos Homes,Permanent Nursing,Fairview Court,620.20, 04-Jul-2017
1438,Revenue,CAHD,Bed Purchasing - South,Permanent Nursing,Fairview Court,3031.04, 04-Jul-2017
1439,Revenue,CAHD,South Glos Users in South Glos Homes,Permanent Nursing,Fairview Court,620.20, 04-Jul-2017
1440,Revenue,CAHD,Bed Purchasing - Southmead Hospital,Permanent Nursing,Fairview Court,3241.60, 04-Jul-2017
1441,Revenue,CAHD,South Glos Users in South Glos Homes,Permanent Nursing,Fairview Court,620.20, 04-Jul-2017
1442,Revenue,CAHD,South Glos Users in South Glos Homes,Permanent Nursing,Fairview Court,620.20, 04-Jul-2017
1443,Revenue,CAHD,South Glos Users in South Glos Homes,Permanent Nursing,Fairview Court,620.20, 04-Jul-2017
1444,Revenue,CAHD,South Glos Users in South Glos Homes,Permanent Nursing,Fairview Court,620.20, 04-Jul-2017
1445,Revenue,CAHD,South Glos Users in South Glos Homes,Permanent Nursing,Fairview Court,620.20, 04-Jul-2017
1446,Revenue,CAHD,South Glos Users in South Glos Homes,Permanent Nursing,Fairview Court,620.20, 04-Jul-2017
1447,Revenue,CAHD,South Glos Users in South Glos Homes,Permanent Nursing,Fairview Court,620.20, 04-Jul-2017
1448,Revenue,CAHD,Bed Purchasing - South,Permanent Nursing,Fairview Court,2449.12, 04-Jul-2017
1449,Revenue,CAHD,South Glos Users in South Glos Homes,Permanent Nursing,Fairview Court,620.20, 04-Jul-2017
1450,Revenue,CAHD,Bed Purchasing - Southmead Hospital,Permanent Nursing,Fairview Court,3091.68, 04-Jul-2017
1451,Revenue,CAHD,South Glos Users in South Glos Homes,Permanent Nursing,Fairview Court,620.20, 04-Jul-2017
1452,Revenue,CAHD,Bed Purchasing - South,Permanent Nursing,Fairview Court,2607.80, 04-Jul-2017
1453,Revenue,CAHD,South Glos Users in South Glos Homes,Permanent Nursing,Fairview Court,620.20, 04-Jul-2017
1454,Revenue,CAHD,Bed Purchasing - Southmead Hospital,Permanent Nursing,Fairview Court,3360.00, 04-Jul-2017
1455,Revenue,CAHD,South Glos Users in South Glos Homes,Permanent Nursing,Fairview Court,1749.85, 04-Jul-2017
1456,Revenue,CAHD,South Glos Users in South Glos Homes,Permanent Nursing,Fairview Court,620.20, 04-Jul-2017
1457,Revenue,CAHD,Bed purchasing - Elderly S117 - South,Permanent Residential,Fairview House,2058.04, 04-Jul-2017
1458,Revenue,CAHD,Bed Purchasing - Southmead Hospital,Permanent Residential,Fairview House,1886.24, 04-Jul-2017
1459,Revenue,CAHD,Bed Purchasing - South,Permanent Residential,Fairview House,2094.64, 04-Jul-2017
1460,Revenue,CAHD,Bed Purchasing - South,Permanent Residential,Fairview House,1886.24, 04-Jul-2017
1461,Revenue,CAHD,Bed Purchasing - South,Permanent Residential,Fairview House,2127.32, 04-Jul-2017
1462,Revenue,CAHD,Bed Purchasing - South,Permanent Residential,Fairview House,1886.24, 04-Jul-2017
1463,Revenue,CAHD,Bed Purchasing - South,Permanent Residential,Fairview House,1886.24, 04-Jul-2017
1464,Revenue,CAHD,Bed Purchasing - South,Permanent Residential,Fairview House,1886.24, 04-Jul-2017
1465,Revenue,CAHD,Bed Purchasing - South,Permanent Residential,Fairview House,1917.36, 04-Jul-2017
1466,Revenue,CAHD,Bed Purchasing - South,Permanent Residential,Fairview House,2117.24, 04-Jul-2017
1467,Revenue,CAHD,Bed Purchasing - Southmead Hospital,Respite Planned - Residential,Faith House,2228.57, 04-Jul-2017
1468,Revenue,CAHD,Bed Purchasing - North,Permanent Residential,Faith House,2633.80, 04-Jul-2017
1469,Revenue,CAHD,18-25 Year Olds,Permanent Residential,Farleigh FEC-Frome Priory,8775.93, 31-Jul-2017
1470,Revenue,CAHD,South Glos Users in South Glos Homes,Permanent Nursing,Field House Care Home,1749.85, 04-Jul-2017
1471,Revenue,CAHD,South Glos Users in South Glos Homes,Permanent Nursing,Field House Care Home,620.20, 04-Jul-2017
1472,Revenue,CAHD,South Glos Users in South Glos Homes,Permanent Nursing,Field House Care Home,602.68, 04-Jul-2017
1473,Revenue,CAHD,Bed Purchasing - Southmead Hospital,Permanent Nursing,Field House Care Home,3261.88, 04-Jul-2017
1474,Revenue,CAHD,Bed Purchasing - Southmead Hospital,Permanent Nursing,Field House Care Home,3280.00, 04-Jul-2017
1475,Revenue,CAHD,Bed Purchasing - Southmead Hospital,Permanent Nursing,Field House Care Home,2928.57, 04-Jul-2017
1476,Revenue,CAHD,South Glos Users in South Glos Homes,Permanent Nursing,Field House Care Home,1749.85, 04-Jul-2017
1477,Revenue,CAHD,South Glos Users in South Glos Homes,Permanent Nursing,Field House Care Home,620.20, 04-Jul-2017
1478,Revenue,CAHD,South Glos Users in South Glos Homes,Permanent Nursing,Field House Care Home,513.39, 04-Jul-2017
1479,Revenue,CAHD,Bed Purchasing - North,Respite Emergency - Residential,Fieldview,3444.20, 04-Jul-2017
1480,Revenue,CAHD,Bed Purchasing - Elderly S117- North,Permanent Nursing,Fieldview,4052.00, 04-Jul-2017
1481,Revenue,CAHD,Bed Purchasing - South,Permanent Nursing,Fieldview,4246.66, 04-Jul-2017
1482,Revenue,CAHD,Bed Purchasing - North,Permanent Residential,Fieldview,2836.40, 04-Jul-2017
1483,Revenue,CAHD,Bed Purchasing - Elderly S117- North,Permanent Residential,Fieldview,4800.00, 04-Jul-2017
1484,Revenue,CAHD,MH Purchasing - Younger,Permanent Nursing,Fieldview,5267.60, 04-Jul-2017
1485,Revenue,CAHD,Bed Purchasing - South,Permanent Residential,Fig House,2836.40, 04-Jul-2017
1486,Revenue,CAHD,Home Care - Elderly - South,Other Small Contracts,Firstpoint Homecare Ltd,1289.20, 07-Jul-2017
1487,Revenue,CAHD,Home Care - Elderly - North,Day Care / Social Activities,Firstpoint Homecare Ltd,132.00, 07-Jul-2017
1488,Revenue,CAHD,Home Care - Elderly - North,Other Small Contracts,Firstpoint Homecare Ltd,52.80, 07-Jul-2017
1489,Revenue,CAHD,Home Care - Elderly - South,Other Small Contracts,Firstpoint Homecare Ltd,1232.00, 07-Jul-2017
1490,Revenue,CAHD,Home Care - Elderly - North,Day Care / Social Activities,Firstpoint Homecare Ltd,132.00, 07-Jul-2017
1491,Revenue,CAHD,Home Care - Elderly - North,Other Small Contracts,Firstpoint Homecare Ltd,48.40, 07-Jul-2017
1492,Revenue,CAHD,Home Care - Elderly - South,Other Small Contracts,Firstpoint Homecare Ltd,1240.80, 17-Jul-2017
1493,Revenue,CAHD,Home Care - Elderly - North,Day Care / Social Activities,Firstpoint Homecare Ltd,132.00, 17-Jul-2017
1494,Revenue,CAHD,Home Care - Elderly - North,Other Small Contracts,Firstpoint Homecare Ltd,52.80, 17-Jul-2017
1495,Revenue,CAHD,Home Care - Elderly - South,Other Small Contracts,Firstpoint Homecare Ltd,1298.00, 24-Jul-2017
1496,Revenue,CAHD,Home Care - Elderly - North,Day Care / Social Activities,Firstpoint Homecare Ltd,132.00, 24-Jul-2017
1497,Revenue,CAHD,Home Care - Elderly - North,Other Small Contracts,Firstpoint Homecare Ltd,52.80, 24-Jul-2017
1498,Revenue,CAHD,Mental Capacity Act / DOLS,Grants to Voluntary Bodies,Flynn Professional Ltd,1020.00, 14-Jul-2017
1499,Revenue,CAHD,Home Care - Elderly - South,Day Care / Social Activities,Fourways Care Limited,39.12, 07-Jul-2017
1500,Revenue,CAHD,Home Care - Elderly - South,Other Small Contracts,Fourways Care Limited,7201.57, 07-Jul-2017
1501,Revenue,CAHD,Home Care - Elderly - North,Other Small Contracts,Fourways Care Limited,5285.05, 07-Jul-2017
1502,Revenue,CAHD,Younger MH non-res purchasing,Other Small Contracts,Fourways Care Limited,733.50, 07-Jul-2017
1503,Revenue,CAHD,Home Care - Elderly - South,Day Care / Social Activities,Fourways Care Limited,39.12, 07-Jul-2017
1504,Revenue,CAHD,Home Care - Elderly - South,Other Small Contracts,Fourways Care Limited,7078.04, 07-Jul-2017
1505,Revenue,CAHD,Home Care - Elderly - North,Other Small Contracts,Fourways Care Limited,5283.01, 07-Jul-2017
1506,Revenue,CAHD,Younger MH non-res purchasing,Other Small Contracts,Fourways Care Limited,484.11, 07-Jul-2017
1507,Revenue,CAHD,Home Care - Elderly - South,Day Care / Social Activities,Fourways Care Limited,78.24, 18-Jul-2017
1508,Revenue,CAHD,Home Care - Elderly - South,Other Small Contracts,Fourways Care Limited,7182.01, 18-Jul-2017
1509,Revenue,CAHD,Home Care - Elderly - North,Other Small Contracts,Fourways Care Limited,5507.27, 18-Jul-2017
1510,Revenue,CAHD,Younger MH non-res purchasing,Other Small Contracts,Fourways Care Limited,767.73, 18-Jul-2017
1511,Revenue,CAHD,Home Care - Elderly - South,Day Care / Social Activities,Fourways Care Limited,39.12, 24-Jul-2017
1512,Revenue,CAHD,Home Care - Elderly - South,Other Small Contracts,Fourways Care Limited,7333.60, 24-Jul-2017
1513,Revenue,CAHD,Home Care - Elderly - North,Other Small Contracts,Fourways Care Limited,5553.45, 24-Jul-2017
1514,Revenue,CAHD,Younger MH non-res purchasing,Other Small Contracts,Fourways Care Limited,782.40, 24-Jul-2017
1515,Revenue,CAHD,Tenancy Start Up Scheme,Other Supplies & Services,Franklin Cole Limited,1450.00, 03-Jul-2017
1516,Revenue,CAHD,Freeways,Permanent Residential,Freeways Trust Limited,3677.48, 24-Jul-2017
1517,Revenue,CAHD,Freeways,Permanent Residential,Freeways Trust Limited,2364.64, 24-Jul-2017
1518,Revenue,CAHD,Freeways,Permanent Residential,Freeways Trust Limited,2364.64, 24-Jul-2017
1519,Revenue,CAHD,Freeways,Permanent Residential,Freeways Trust Limited,3441.12, 24-Jul-2017
1520,Revenue,CAHD,Freeways,Permanent Residential,Freeways Trust Limited,2364.64, 24-Jul-2017
1521,Revenue,CAHD,Freeways,Permanent Residential,Freeways Trust Limited,3491.60, 24-Jul-2017
1522,Revenue,CAHD,Freeways,Permanent Residential,Freeways Trust Limited,2629.12, 24-Jul-2017
1523,Revenue,CAHD,Freeways,Permanent Residential,Freeways Trust Limited,3649.08, 24-Jul-2017
1524,Revenue,CAHD,Freeways,Permanent Residential,Freeways Trust Limited,2229.44, 24-Jul-2017
1525,Revenue,CAHD,Freeways,Permanent Residential,Freeways Trust Limited,2788.16, 24-Jul-2017
1526,Revenue,CAHD,Freeways,Permanent Residential,Freeways Trust Limited,3557.68, 24-Jul-2017
1527,Revenue,CAHD,Freeways,Permanent Residential,Freeways Trust Limited,3122.76, 24-Jul-2017
1528,Revenue,CAHD,Freeways,Permanent Residential,Freeways Trust Limited,2364.64, 24-Jul-2017
1529,Revenue,CAHD,Freeways,Permanent Residential,Freeways Trust Limited,6742.93, 24-Jul-2017
1530,Revenue,CAHD,Freeways,Permanent Residential,Freeways Trust Limited,809.15, 24-Jul-2017
1531,Revenue,CAHD,Home Care - Elderly - South,Other Small Contracts,Freeways Trust Limited,1069.52, 21-Jul-2017
1532,Revenue,CAHD,Home Care - Elderly - North,Other Small Contracts,Freeways Trust Limited,590.08, 28-Jul-2017
1533,Revenue,CAHD,Home Care - Elderly - South,Other Small Contracts,Freeways Trust Limited,1032.64, 28-Jul-2017
1534,Revenue,CAHD,Home Care - Elderly - North,Supported Living,Freeways Trust Ltd,810.40, 04-Jul-2017
1535,Revenue,CAHD,Bed purchasing - S28A Under 65 - South,Permanent Residential,Freeways Trust Ltd,3592.40, 04-Jul-2017
1536,Revenue,CAHD,Bed Purchasing - North,Permanent Residential,Freeways Trust Ltd,3606.68, 04-Jul-2017
1537,Revenue,CAHD,Bed Purchasing - South,Permanent Residential,Freeways Trust Ltd,3825.16, 04-Jul-2017
1538,Revenue,CAHD,Bed Purchasing - North,Permanent Residential,Freeways Trust Ltd,2888.32, 04-Jul-2017
1539,Revenue,CAHD,Bed Purchasing - South,Permanent Residential,Freeways Trust Ltd,3043.64, 04-Jul-2017
1540,Revenue,CAHD,Bed Purchasing - North,Permanent Residential,Freeways Trust Ltd,3190.00, 04-Jul-2017
1541,Revenue,CAHD,Bed Purchasing - North,Permanent Residential,Freeways Trust Ltd,3818.20, 04-Jul-2017
1542,Revenue,CAHD,18-25 Year Olds,Permanent Residential,Freeways Trust Ltd,3527.20, 04-Jul-2017
1543,Revenue,CAHD,Pathway 3 - (Complex Beds),Permanent Nursing,Frenchay House,3312.00, 24-Jul-2017
1544,Revenue,CAHD,Bed Purchasing - Southmead Hospital,Permanent Nursing,Frenchay Park Nursing Home,3200.00, 04-Jul-2017
1545,Revenue,CAHD,South Glos Users in South Glos Homes,Permanent Nursing,Fshc  1St Floor,620.20, 04-Jul-2017
1546,Revenue,CAHD,Bed Purchasing - South,Permanent Nursing,Fshc  1St Floor,2621.16, 04-Jul-2017
1547,Revenue,CAHD,South Glos Users in South Glos Homes,Permanent Nursing,Fshc  1St Floor,620.20, 04-Jul-2017
1548,Revenue,CAHD,Bed Purchasing - South,Permanent Nursing,Fshc  1St Floor,2228.00, 04-Jul-2017
1549,Revenue,CAHD,Bed Purchasing - Southmead Hospital,Permanent Nursing,Fshc  1St Floor,2281.28, 04-Jul-2017
1550,Revenue,CAHD,Bed Purchasing - South,Permanent Nursing,Fshc  1St Floor,2228.00, 04-Jul-2017
1551,Revenue,CAHD,South Glos Users in South Glos Homes,Permanent Nursing,Fshc  1St Floor,620.20, 04-Jul-2017
1552,Revenue,CAHD,Bed Purchasing - Southmead Hospital,Permanent Nursing,Fshc  1St Floor,2390.68, 04-Jul-2017
1553,Revenue,CAHD,South Glos Users in South Glos Homes,Permanent Nursing,Fshc  1St Floor,620.20, 04-Jul-2017
1554,Revenue,CAHD,Bed Purchasing - Southmead Hospital,Permanent Nursing,Fshc  1St Floor,2228.00, 04-Jul-2017
1555,Revenue,CAHD,South Glos Users in South Glos Homes,Permanent Nursing,Fshc  1St Floor,620.20, 04-Jul-2017
1556,Revenue,CAHD,South Glos Users in South Glos Homes,Permanent Nursing,Fshc  1St Floor,620.20, 04-Jul-2017
1557,Revenue,CAHD,Bed Purchasing - Southmead Hospital,Permanent Nursing,Fshc  1St Floor,2281.28, 04-Jul-2017
1558,Revenue,CAHD,South Glos Users in South Glos Homes,Permanent Nursing,Fshc  1St Floor,620.20, 04-Jul-2017
1559,Revenue,CAHD,South Glos Users in South Glos Homes,Permanent Nursing,Fshc  1St Floor,620.20, 04-Jul-2017
1560,Revenue,CAHD,Bed Purchasing - Southmead Hospital,Permanent Nursing,Fshc  1St Floor,2228.00, 04-Jul-2017
1561,Revenue,CAHD,Bed Purchasing - Southmead Hospital,Permanent Nursing,Fshc  1St Floor,2390.68, 04-Jul-2017
1562,Revenue,CAHD,South Glos Users in South Glos Homes,Permanent Nursing,Fshc  1St Floor,620.20, 04-Jul-2017
1563,Revenue,CAHD,Bed Purchasing - Southmead Hospital,Fees & Charges Income - General,Fshc  1St Floor,1039.37, 04-Jul-2017
1564,Revenue,CAHD,Bed Purchasing - Southmead Hospital,Permanent Nursing,Fshc  1St Floor,3099.80, 04-Jul-2017
1565,Revenue,CAHD,South Glos Users in South Glos Homes,Permanent Nursing,Fshc  1St Floor,620.20, 04-Jul-2017
1566,Revenue,CAHD,Bed Purchasing - Southmead Hospital,Permanent Nursing,Fshc  1St Floor,2360.00, 04-Jul-2017
1567,Revenue,CAHD,South Glos Users in South Glos Homes,Permanent Nursing,Fshc  1St Floor,1151.80, 04-Jul-2017
1568,Revenue,CAHD,South Glos Users in South Glos Homes,Permanent Nursing,Fshc  1St Floor,620.20, 04-Jul-2017
1569,Revenue,CAHD,Bed Purchasing - Southmead Hospital,Fees & Charges Income - General,Fshc  1St Floor,548.00, 04-Jul-2017
1570,Revenue,CAHD,Bed Purchasing - Southmead Hospital,Fees & Charges Income - General,Fshc  1St Floor,979.56, 04-Jul-2017
1571,Revenue,CAHD,Bed Purchasing - South,Permanent Nursing,Fshc  1St Floor,2613.56, 04-Jul-2017
1572,Revenue,CAHD,South Glos Users in South Glos Homes,Permanent Nursing,Fshc  1St Floor,620.20, 04-Jul-2017
1573,Revenue,CAHD,Bed Purchasing - South,Permanent Nursing,Fshc  1St Floor,2312.32, 04-Jul-2017
1574,Revenue,CAHD,South Glos Users in South Glos Homes,Permanent Nursing,Fshc  1St Floor,620.20, 04-Jul-2017
1575,Revenue,CAHD,Bed Purchasing - Southmead Hospital,Permanent Nursing,Fshc  1St Floor,2228.00, 04-Jul-2017
1576,Revenue,CAHD,South Glos Users in South Glos Homes,Permanent Nursing,Fshc  1St Floor,620.20, 04-Jul-2017
1577,Revenue,CAHD,Bed Purchasing - Southmead Hospital,Permanent Nursing,Fshc  1St Floor,2281.28, 04-Jul-2017
1578,Revenue,CAHD,South Glos Users in South Glos Homes,Permanent Nursing,Fshc  1St Floor,620.20, 04-Jul-2017
1579,Revenue,CAHD,Bed Purchasing - South,Permanent Nursing,Fshc  1St Floor,2228.00, 04-Jul-2017
1580,Revenue,CAHD,South Glos Users in South Glos Homes,Permanent Nursing,Fshc  1St Floor,620.20, 04-Jul-2017
1581,Revenue,CAHD,Bed Purchasing - Southmead Hospital,Permanent Nursing,Fshc  1St Floor,2228.00, 04-Jul-2017
1582,Revenue,CAHD,South Glos Users in South Glos Homes,Permanent Nursing,Fshc  1St Floor,620.20, 04-Jul-2017
1583,Revenue,CAHD,Bed Purchasing - Southmead Hospital,Permanent Residential,Fshc  1St Floor,2072.00, 04-Jul-2017
1584,Revenue,CAHD,Bed Purchasing - North,Permanent Nursing,Fshc  1St Floor,2228.00, 04-Jul-2017
1585,Revenue,CAHD,Bed Purchasing - North,Permanent Nursing,Fshc  1St Floor,1574.91, 04-Jul-2017
1586,Revenue,CAHD,South Glos Users in South Glos Homes,Permanent Nursing,Fshc  1St Floor,620.20, 04-Jul-2017
1587,Revenue,CAHD,Bed Purchasing - South,Permanent Nursing,Fshc  1St Floor,2281.28, 04-Jul-2017
1588,Revenue,CAHD,South Glos Users in South Glos Homes,Permanent Nursing,Fshc  1St Floor,620.20, 04-Jul-2017
1589,Revenue,CAHD,South Glos Users in South Glos Homes,Permanent Nursing,Fshc  1St Floor,1063.20, 04-Jul-2017
1590,Revenue,CAHD,South Glos Users in South Glos Homes,Permanent Nursing,Fshc  1St Floor,620.20, 04-Jul-2017
1591,Revenue,CAHD,South Glos Users in South Glos Homes,Permanent Nursing,Fshc  1St Floor,620.20, 04-Jul-2017
1592,Revenue,CAHD,Bed Purchasing - North,Permanent Nursing,Fshc  1St Floor,2312.32, 04-Jul-2017
1593,Revenue,CAHD,South Glos Users in South Glos Homes,Permanent Nursing,Fshc  1St Floor,620.20, 04-Jul-2017
1594,Revenue,CAHD,Bed Purchasing - Southmead Hospital,Permanent Nursing,Fshc  1St Floor,2810.84, 04-Jul-2017
1595,Revenue,CAHD,South Glos Users in South Glos Homes,Permanent Nursing,Fshc  1St Floor,620.20, 04-Jul-2017
1596,Revenue,CAHD,South Glos Users in South Glos Homes,Permanent Nursing,Fshc  1St Floor,2700.89, 04-Jul-2017
1597,Revenue,CAHD,South Glos Users in South Glos Homes,Permanent Nursing,Fshc  1St Floor,2522.32, 04-Jul-2017
1598,Revenue,CAHD,Bed Purchasing - Southmead Hospital,Permanent Residential,Fshc  1St Floor,2256.96, 04-Jul-2017
1599,Revenue,CAHD,Bed Purchasing - Southmead Hospital,Permanent Nursing,Fshc  1St Floor,2228.00, 04-Jul-2017
1600,Revenue,CAHD,South Glos Users in South Glos Homes,Permanent Nursing,Fshc  1St Floor,620.20, 04-Jul-2017
1601,Revenue,CAHD,Bed Purchasing - North,Respite Emergency - Residential,Fshc  1St Floor,3580.71, 04-Jul-2017
1602,Revenue,CAHD,Bed Purchasing - North,Permanent Nursing,Fshc  1St Floor,2228.00, 04-Jul-2017
1603,Revenue,CAHD,South Glos Users in South Glos Homes,Permanent Nursing,Fshc  1St Floor,620.20, 04-Jul-2017
1604,Revenue,CAHD,South Glos Users in South Glos Homes,Permanent Nursing,Fshc  1St Floor,620.20, 04-Jul-2017
1605,Revenue,CAHD,Bed Purchasing - Southmead Hospital,Permanent Nursing,Fshc  1St Floor,2228.00, 04-Jul-2017
1606,Revenue,CAHD,South Glos Users in South Glos Homes,Permanent Nursing,Fshc  1St Floor,620.20, 04-Jul-2017
1607,Revenue,CAHD,Bed Purchasing - Southmead Hospital,Permanent Residential,Fshc  1St Floor,2072.00, 04-Jul-2017
1608,Revenue,CAHD,South Glos Users in South Glos Homes,Permanent Nursing,Fshc  1St Floor,620.20, 04-Jul-2017
1609,Revenue,CAHD,Bed Purchasing - Southmead Hospital,Permanent Nursing,Fshc  1St Floor,2228.00, 04-Jul-2017
1610,Revenue,CAHD,South Glos Users in South Glos Homes,Permanent Nursing,Fshc  1St Floor,908.15, 04-Jul-2017
1611,Revenue,CAHD,South Glos Users in South Glos Homes,Permanent Nursing,Fshc  1St Floor,620.20, 04-Jul-2017
1612,Revenue,CAHD,Bed Purchasing - Southmead Hospital,Fees & Charges Income - General,Fshc  1St Floor,768.29, 04-Jul-2017
1613,Revenue,CAHD,Bed Purchasing - South,Respite Planned - Residential,Fshc  1St Floor,574.00, 04-Jul-2017
1614,Revenue,CAHD,Bed Purchasing - South,Respite Planned - Nursing,Fshc  1St Floor,1082.00, 04-Jul-2017
1615,Revenue,CAHD,Bed Purchasing - Southmead Hospital,Permanent Nursing,Fshc  1St Floor,2228.00, 04-Jul-2017
1616,Revenue,CAHD,South Glos Users in South Glos Homes,Permanent Nursing,Fshc  1St Floor,620.20, 04-Jul-2017
1617,Revenue,CAHD,Bed Purchasing - Southmead Hospital,Permanent Nursing,Fshc  1St Floor,2256.96, 04-Jul-2017
1618,Revenue,CAHD,South Glos Users in South Glos Homes,Permanent Nursing,Fshc  1St Floor,620.20, 04-Jul-2017
1619,Revenue,CAHD,Bed Purchasing - Southmead Hospital,Permanent Nursing,Fshc  1St Floor,5561.79, 04-Jul-2017
1620,Revenue,CAHD,Bed Purchasing - Southmead Hospital,Fees & Charges Income - General,Fshc  1St Floor,1325.29, 04-Jul-2017
1621,Revenue,CAHD,Bed Purchasing - Southmead Hospital,Fees & Charges Income - General,Fshc  1St Floor,1454.42, 04-Jul-2017
1622,Revenue,CAHD,Bed Purchasing - Southmead Hospital,Fees & Charges Income - General,Fshc  1St Floor,1439.30, 04-Jul-2017
1623,Revenue,CAHD,Bed Purchasing - Southmead Hospital,Fees & Charges Income - General,Fshc  1St Floor,1026.93, 04-Jul-2017
1624,Revenue,CAHD,Bed Purchasing - Southmead Hospital,Permanent Nursing,Fshc  1St Floor,2228.00, 04-Jul-2017
1625,Revenue,CAHD,South Glos Users in South Glos Homes,Permanent Nursing,Fshc  1St Floor,620.20, 04-Jul-2017
1626,Revenue,CAHD,South Glos Users in South Glos Homes,Permanent Nursing,Fshc  1St Floor,620.20, 04-Jul-2017
1627,Revenue,CAHD,Bed Purchasing - North,Permanent Nursing,Fshc  1St Floor,2228.00, 04-Jul-2017
1628,Revenue,CAHD,South Glos Users in South Glos Homes,Permanent Nursing,Fshc  1St Floor,620.20, 04-Jul-2017
1629,Revenue,CAHD,Bed Purchasing - North,Permanent Nursing,Fshc  1St Floor,5249.70, 04-Jul-2017
1630,Revenue,CAHD,Bed Purchasing - North,Permanent Nursing,Fshc  1St Floor,2228.00, 04-Jul-2017
1631,Revenue,CAHD,South Glos Users in South Glos Homes,Permanent Nursing,Fshc  1St Floor,620.20, 04-Jul-2017
1632,Revenue,CAHD,Bed Purchasing - North,Fees & Charges Income - General,Fshc  1St Floor,1484.09, 04-Jul-2017
1633,Revenue,CAHD,South Glos Users in South Glos Homes,Permanent Nursing,Fshc  1St Floor,620.20, 04-Jul-2017
1634,Revenue,CAHD,South Glos Users in South Glos Homes,Permanent Nursing,Fshc  1St Floor,620.20, 04-Jul-2017
1635,Revenue,CAHD,Bed Purchasing - Southmead Hospital,Permanent Nursing,Fshc  1St Floor,2296.00, 04-Jul-2017
1636,Revenue,CAHD,South Glos Users in South Glos Homes,Permanent Nursing,Fshc  1St Floor,620.20, 04-Jul-2017
1637,Revenue,CAHD,South Glos Users in South Glos Homes,Permanent Nursing,Fshc  1St Floor,620.20, 04-Jul-2017
1638,Revenue,CAHD,Bed Purchasing - Southmead Hospital,Respite Planned - Nursing,Fshc  1St Floor,2788.00, 04-Jul-2017
1639,Revenue,CAHD,Bed Purchasing - Southmead Hospital,Respite Planned - Nursing,Fshc  1St Floor,1804.00, 04-Jul-2017
1640,Revenue,CAHD,South Glos Users in South Glos Homes,Permanent Nursing,Fshc  1St Floor,620.20, 04-Jul-2017
1641,Revenue,CAHD,South Glos Users in South Glos Homes,Permanent Nursing,Fshc  1St Floor,620.20, 04-Jul-2017
1642,Revenue,CAHD,South Glos Users in South Glos Homes,Permanent Nursing,Fshc  1St Floor,620.20, 04-Jul-2017
1643,Revenue,CAHD,South Glos Users in South Glos Homes,Permanent Nursing,Fshc  1St Floor,620.20, 04-Jul-2017
1644,Revenue,CAHD,Bed Purchasing - North,Respite Planned - Nursing,Fshc  1St Floor,1148.00, 04-Jul-2017
1645,Revenue,CAHD,Bed Purchasing - North,Permanent Nursing,Fshc  1St Floor,2228.00, 04-Jul-2017
1646,Revenue,CAHD,South Glos Users in South Glos Homes,Permanent Nursing,Fshc  1St Floor,620.20, 04-Jul-2017
1647,Revenue,CAHD,Bed Purchasing - Southmead Hospital,Permanent Nursing,Fshc  1St Floor,7651.29, 04-Jul-2017
1648,Revenue,CAHD,Bed Purchasing - Southmead Hospital,Permanent Nursing,Fshc  1St Floor,6105.57, 04-Jul-2017
1649,Revenue,CAHD,Bed Purchasing - Southmead Hospital,Permanent Nursing,Fshc  1St Floor,5480.30, 04-Jul-2017
1650,Revenue,CAHD,Bed Purchasing - Southmead Hospital,Permanent Nursing,Fshc  1St Floor,2192.12, 04-Jul-2017
1651,Revenue,CAHD,South Glos Users in South Glos Homes,Permanent Nursing,Fshc  1St Floor,620.20, 04-Jul-2017
1652,Revenue,CAHD,Bed Purchasing - Southmead Hospital,Fees & Charges Income - General,Fshc  1St Floor,1371.20, 04-Jul-2017
1653,Revenue,CAHD,Bed Purchasing - Southmead Hospital,Fees & Charges Income - General,Fshc  1St Floor,3397.26, 04-Jul-2017
1654,Revenue,CAHD,Bed Purchasing - North,Permanent Nursing,Fshc  1St Floor,2228.00, 04-Jul-2017
1655,Revenue,CAHD,South Glos Users in South Glos Homes,Permanent Nursing,Fshc  1St Floor,620.20, 04-Jul-2017
1656,Revenue,CAHD,Bed Purchasing - North,Permanent Nursing,Fshc  1St Floor,2228.00, 04-Jul-2017
1657,Revenue,CAHD,South Glos Users in South Glos Homes,Permanent Nursing,Fshc  1St Floor,620.20, 04-Jul-2017
1658,Revenue,CAHD,South Glos Users in South Glos Homes,Permanent Nursing,Fshc  1St Floor,620.20, 04-Jul-2017
1659,Revenue,CAHD,Bed Purchasing - North,Permanent Nursing,Fshc  1St Floor,2228.00, 04-Jul-2017
1660,Revenue,CAHD,South Glos Users in South Glos Homes,Permanent Nursing,Fshc  1St Floor,620.20, 04-Jul-2017
1661,Revenue,CAHD,Bed Purchasing - North,Permanent Nursing,Fshc  1St Floor,2228.00, 04-Jul-2017
1662,Revenue,CAHD,South Glos Users in South Glos Homes,Permanent Nursing,Fshc  1St Floor,620.20, 04-Jul-2017
1663,Revenue,CAHD,Bed Purchasing - North,Permanent Nursing,Fshc  1St Floor,2256.96, 04-Jul-2017
1664,Revenue,CAHD,South Glos Users in South Glos Homes,Permanent Nursing,Fshc  1St Floor,620.20, 04-Jul-2017
1665,Revenue,CAHD,Bed Purchasing - North,Permanent Nursing,Fshc  1St Floor,2228.00, 04-Jul-2017
1666,Revenue,CAHD,South Glos Users in South Glos Homes,Permanent Nursing,Fshc  1St Floor,620.20, 04-Jul-2017
1667,Revenue,CAHD,Bed Purchasing - Southmead Hospital,Permanent Nursing,Fshc  1St Floor,2228.00, 04-Jul-2017
1668,Revenue,CAHD,South Glos Users in South Glos Homes,Permanent Nursing,Fshc  1St Floor,620.20, 04-Jul-2017
1669,Revenue,CAHD,Bed Purchasing - North,Permanent Nursing,Fshc  1St Floor,5412.00, 04-Jul-2017
1670,Revenue,CAHD,Bed Purchasing - North,Permanent Nursing,Fshc  1St Floor,2296.00, 04-Jul-2017
1671,Revenue,CAHD,South Glos Users in South Glos Homes,Permanent Nursing,Fshc  1St Floor,620.20, 04-Jul-2017
1672,Revenue,CAHD,Bed Purchasing - North,Permanent Nursing,Fshc  1St Floor,2228.00, 04-Jul-2017
1673,Revenue,CAHD,South Glos Users in South Glos Homes,Permanent Nursing,Fshc  1St Floor,620.20, 04-Jul-2017
1674,Revenue,CAHD,Bed Purchasing - North,Permanent Nursing,Fshc  1St Floor,2228.00, 04-Jul-2017
1675,Revenue,CAHD,South Glos Users in South Glos Homes,Permanent Nursing,Fshc  1St Floor,620.20, 04-Jul-2017
1676,Revenue,CAHD,Bed Purchasing - North,Permanent Nursing,Fshc  1St Floor,2296.00, 04-Jul-2017
1677,Revenue,CAHD,South Glos Users in South Glos Homes,Permanent Nursing,Fshc  1St Floor,620.20, 04-Jul-2017
1678,Revenue,CAHD,Bed Purchasing - Southmead Hospital,Permanent Nursing,Fshc  1St Floor,2382.56, 04-Jul-2017
1679,Revenue,CAHD,South Glos Users in South Glos Homes,Permanent Nursing,Fshc  1St Floor,620.20, 04-Jul-2017
1680,Revenue,CAHD,South Glos Users in South Glos Homes,Permanent Nursing,Fshc  1St Floor,620.20, 04-Jul-2017
1681,Revenue,CAHD,Bed Purchasing - North,Permanent Nursing,Fshc  1St Floor,2228.00, 04-Jul-2017
1682,Revenue,CAHD,South Glos Users in South Glos Homes,Permanent Nursing,Fshc  1St Floor,620.20, 04-Jul-2017
1683,Revenue,CAHD,South Glos Users in South Glos Homes,Permanent Nursing,Fshc  1St Floor,7410.71, 04-Jul-2017
1684,Revenue,CAHD,South Glos Users in South Glos Homes,Permanent Nursing,Fshc  1St Floor,4704.00, 04-Jul-2017
1685,Revenue,CAHD,South Glos Users in South Glos Homes,Permanent Nursing,Fshc  1St Floor,1456.00, 04-Jul-2017
1686,Revenue,CAHD,South Glos Users in South Glos Homes,Permanent Nursing,Fshc  1St Floor,620.20, 04-Jul-2017
1687,Revenue,CAHD,South Glos Users in South Glos Homes,Permanent Nursing,Fshc  1St Floor,5612.36, 04-Jul-2017
1688,Revenue,CAHD,South Glos Users in South Glos Homes,Permanent Nursing,Fshc  1St Floor,620.20, 04-Jul-2017
1689,Revenue,CAHD,South Glos Users in South Glos Homes,Permanent Nursing,Fshc  1St Floor,620.20, 04-Jul-2017
1690,Revenue,CAHD,South Glos Users in South Glos Homes,Permanent Nursing,Fshc  1St Floor,1306.85, 04-Jul-2017
1691,Revenue,CAHD,South Glos Users in South Glos Homes,Permanent Nursing,Fshc  1St Floor,620.20, 04-Jul-2017
1692,Revenue,CAHD,South Glos Users in South Glos Homes,Permanent Nursing,Fshc  1St Floor,620.20, 04-Jul-2017
1693,Revenue,CAHD,Bed Purchasing - South,Permanent Nursing,Fshc  1St Floor,2507.16, 04-Jul-2017
1694,Revenue,CAHD,South Glos Users in South Glos Homes,Permanent Nursing,Fshc  1St Floor,620.20, 04-Jul-2017
1695,Revenue,CAHD,South Glos Users in South Glos Homes,Permanent Nursing,Fshc  1St Floor,620.20, 04-Jul-2017
1696,Revenue,CAHD,Bed Purchasing - North,Permanent Nursing,Fshc  1St Floor,2228.00, 04-Jul-2017
1697,Revenue,CAHD,Bed Purchasing - North,Respite Emergency - Nursing,Fshc  1St Floor,2279.80, 04-Jul-2017
1698,Revenue,CAHD,South Glos Users in South Glos Homes,Permanent Nursing,Fshc  1St Floor,1173.95, 04-Jul-2017
1699,Revenue,CAHD,South Glos Users in South Glos Homes,Permanent Nursing,Fshc  1St Floor,620.20, 04-Jul-2017
1700,Revenue,CAHD,South Glos Users in South Glos Homes,Permanent Nursing,Fshc  1St Floor,620.20, 04-Jul-2017
1701,Revenue,CAHD,Bed Purchasing - Southmead Hospital,Permanent Residential,Fshc  1St Floor,2072.00, 04-Jul-2017
1702,Revenue,CAHD,South Glos Users in South Glos Homes,Permanent Nursing,Fshc  1St Floor,1749.85, 04-Jul-2017
1703,Revenue,CAHD,Bed Purchasing - Southmead Hospital,Permanent Nursing,Fshc  1St Floor,2125.54, 04-Jul-2017
1704,Revenue,CAHD,South Glos Users in South Glos Homes,Permanent Nursing,Fshc  1St Floor,848.21, 04-Jul-2017
1705,Revenue,CAHD,South Glos Users in South Glos Homes,Permanent Nursing,Fshc  1St Floor,620.20, 04-Jul-2017
1706,Revenue,CAHD,South Glos Users in South Glos Homes,Permanent Nursing,Fshc  1St Floor,620.20, 04-Jul-2017
1707,Revenue,CAHD,Bed Purchasing - Southmead Hospital,Respite Planned - Nursing,Fshc  1St Floor,1859.85, 04-Jul-2017
1708,Revenue,CAHD,South Glos Users in South Glos Homes,Permanent Nursing,Fshc  1St Floor,620.20, 04-Jul-2017
1709,Revenue,CAHD,Bed Purchasing - Southmead Hospital,Respite Planned - Nursing,Fshc  1St Floor,619.95, 04-Jul-2017
1710,Revenue,CAHD,South Glos Users in South Glos Homes,Permanent Nursing,Fshc  1St Floor,620.20, 04-Jul-2017
1711,Revenue,CAHD,Bed Purchasing - Southmead Hospital,Permanent Nursing,Fshc  1St Floor,2405.88, 04-Jul-2017
1712,Revenue,CAHD,South Glos Users in South Glos Homes,Permanent Nursing,Fshc  1St Floor,620.20, 04-Jul-2017
1713,Revenue,CAHD,South Glos Users in South Glos Homes,Permanent Nursing,Fshc  1St Floor,620.20, 04-Jul-2017
1714,Revenue,CAHD,South Glos Users in South Glos Homes,Permanent Nursing,Fshc  1St Floor,620.20, 04-Jul-2017
1715,Revenue,CAHD,Bed Purchasing - North,Permanent Nursing,Fshc  1St Floor,2549.24, 04-Jul-2017
1716,Revenue,CAHD,Bed Purchasing - Southmead Hospital,Permanent Nursing,Fshc  1St Floor,2507.16, 04-Jul-2017
1717,Revenue,CAHD,South Glos Users in South Glos Homes,Permanent Nursing,Fshc  1St Floor,620.20, 04-Jul-2017
1718,Revenue,CAHD,South Glos Users in South Glos Homes,Permanent Nursing,Fshc  1St Floor,2471.26, 04-Jul-2017
1719,Revenue,CAHD,Bed Purchasing - North,Permanent Nursing,Fshc  1St Floor,2296.00, 04-Jul-2017
1720,Revenue,CAHD,South Glos Users in South Glos Homes,Permanent Nursing,Fshc  1St Floor,620.20, 04-Jul-2017
1721,Revenue,CAHD,South Glos Users in South Glos Homes,Permanent Nursing,Fshc  1St Floor,620.20, 04-Jul-2017
1722,Revenue,CAHD,Bed Purchasing - Southmead Hospital,Permanent Nursing,Fshc  1St Floor,2228.00, 04-Jul-2017
1723,Revenue,CAHD,South Glos Users in South Glos Homes,Permanent Nursing,Fshc  1St Floor,620.20, 04-Jul-2017
1724,Revenue,CAHD,Bed Purchasing - Southmead Hospital,Permanent Residential,Fshc  1St Floor,1439.29, 04-Jul-2017
1725,Revenue,CAHD,Bed Purchasing - Southmead Hospital,Permanent Residential,Fshc  1St Floor,1660.71, 04-Jul-2017
1726,Revenue,CAHD,Bed Purchasing - Southmead Hospital,Permanent Residential,Fshc  1St Floor,1550.00, 04-Jul-2017
1727,Revenue,CAHD,South Glos Users in South Glos Homes,Permanent Nursing,Fshc  1St Floor,620.20, 04-Jul-2017
1728,Revenue,CAHD,Bed Purchasing - North,Permanent Nursing,Fshc  1St Floor,2410.72, 04-Jul-2017
1729,Revenue,CAHD,South Glos Users in South Glos Homes,Permanent Nursing,Fshc  1St Floor,620.20, 04-Jul-2017
1730,Revenue,CAHD,Bed Purchasing - North,Permanent Nursing,Fshc  1St Floor,2228.00, 04-Jul-2017
1731,Revenue,CAHD,South Glos Users in South Glos Homes,Permanent Nursing,Fshc  1St Floor,620.20, 04-Jul-2017
1732,Revenue,CAHD,Bed Purchasing - South,Permanent Nursing,Fshc  1St Floor,2507.16, 04-Jul-2017
1733,Revenue,CAHD,South Glos Users in South Glos Homes,Permanent Nursing,Fshc  1St Floor,620.20, 04-Jul-2017
1734,Revenue,CAHD,Bed Purchasing - Southmead Hospital,Permanent Nursing,Fshc  1St Floor,2296.00, 04-Jul-2017
1735,Revenue,CAHD,South Glos Users in South Glos Homes,Permanent Nursing,Fshc  1St Floor,620.20, 04-Jul-2017
1736,Revenue,CAHD,Bed Purchasing - South,Permanent Nursing,Fshc  1St Floor,2431.20, 04-Jul-2017
1737,Revenue,CAHD,South Glos Users in South Glos Homes,Permanent Nursing,Fshc  1St Floor,620.20, 04-Jul-2017
1738,Revenue,CAHD,Bed Purchasing - South,Permanent Nursing,Fshc  1St Floor,2228.00, 04-Jul-2017
1739,Revenue,CAHD,South Glos Users in South Glos Homes,Permanent Nursing,Fshc  1St Floor,620.20, 04-Jul-2017
1740,Revenue,CAHD,Bed Purchasing - Southmead Hospital,Permanent Nursing,Fshc  1St Floor,2228.00, 04-Jul-2017
1741,Revenue,CAHD,South Glos Users in South Glos Homes,Permanent Nursing,Fshc  1St Floor,620.20, 04-Jul-2017
1742,Revenue,CAHD,Bed Purchasing - Southmead Hospital,Permanent Residential,Fshc  1St Floor,2140.00, 04-Jul-2017
1743,Revenue,CAHD,South Glos Users in South Glos Homes,Permanent Nursing,Fshc  1St Floor,620.20, 04-Jul-2017
1744,Revenue,CAHD,South Glos Users in South Glos Homes,Permanent Nursing,Fshc  1St Floor,620.20, 04-Jul-2017
1745,Revenue,CAHD,Bed Purchasing - South,Permanent Residential,Fshc  1St Floor,2182.36, 04-Jul-2017
1746,Revenue,CAHD,Bed Purchasing - North,Permanent Nursing,Fshc  1St Floor,2228.00, 04-Jul-2017
1747,Revenue,CAHD,South Glos Users in South Glos Homes,Permanent Nursing,Fshc  1St Floor,620.20, 04-Jul-2017
1748,Revenue,CAHD,Bed Purchasing - South,Permanent Nursing,Fshc  1St Floor,2228.00, 04-Jul-2017
1749,Revenue,CAHD,South Glos Users in South Glos Homes,Permanent Nursing,Fshc  1St Floor,620.20, 04-Jul-2017
1750,Revenue,CAHD,South Glos Users in South Glos Homes,Permanent Nursing,Fshc  1St Floor,620.20, 04-Jul-2017
1751,Revenue,CAHD,Bed Purchasing - Southmead Hospital,Permanent Nursing,Fshc  1St Floor,2228.00, 04-Jul-2017
1752,Revenue,CAHD,South Glos Users in South Glos Homes,Permanent Nursing,Fshc  1St Floor,620.20, 04-Jul-2017
1753,Revenue,CAHD,Bed Purchasing - Southmead Hospital,Permanent Nursing,Fshc  1St Floor,2258.92, 04-Jul-2017
1754,Revenue,CAHD,South Glos Users in South Glos Homes,Permanent Nursing,Fshc  1St Floor,620.20, 04-Jul-2017
1755,Revenue,CAHD,Bed Purchasing - South,Respite Emergency - Residential,Fshc  1St Floor,2828.57, 04-Jul-2017
1756,Revenue,CAHD,South Glos Users in South Glos Homes,Permanent Nursing,Fshc  1St Floor,620.20, 04-Jul-2017
1757,Revenue,CAHD,South Glos Users in South Glos Homes,Permanent Nursing,Fshc  1St Floor,620.20, 04-Jul-2017
1758,Revenue,CAHD,South Glos Users in South Glos Homes,Permanent Nursing,Fshc  1St Floor,575.90, 04-Jul-2017
1759,Revenue,CAHD,Bed Purchasing - South,Permanent Residential,Fshc  1St Floor,2140.00, 04-Jul-2017
1760,Revenue,CAHD,Bed Purchasing - Southmead Hospital,Permanent Nursing,Fshc  1St Floor,2296.00, 04-Jul-2017
1761,Revenue,CAHD,South Glos Users in South Glos Homes,Permanent Nursing,Fshc  1St Floor,620.20, 04-Jul-2017
1762,Revenue,CAHD,Bed Purchasing - South,Permanent Nursing,Fshc  1St Floor,2836.40, 04-Jul-2017
1763,Revenue,CAHD,South Glos Users in South Glos Homes,Permanent Nursing,Fshc  1St Floor,1919.64, 04-Jul-2017
1764,Revenue,CAHD,South Glos Users in South Glos Homes,Permanent Nursing,Fshc  1St Floor,620.20, 04-Jul-2017
1765,Revenue,CAHD,Bed Purchasing - Southmead Hospital,Permanent Nursing,Fshc  1St Floor,2228.00, 04-Jul-2017
1766,Revenue,CAHD,South Glos Users in South Glos Homes,Permanent Nursing,Fshc  1St Floor,620.20, 04-Jul-2017
1767,Revenue,CAHD,Home Care - Elderly - North,Respite Planned - Residential,Fshc  1St Floor,942.86, 04-Jul-2017
1768,Revenue,CAHD,South Glos Users in South Glos Homes,Permanent Nursing,Fshc  1St Floor,620.20, 04-Jul-2017
1769,Revenue,CAHD,Bed Purchasing - South,Permanent Nursing,Fshc  1St Floor,2633.80, 04-Jul-2017
1770,Revenue,CAHD,South Glos Users in South Glos Homes,Permanent Nursing,Fshc  1St Floor,620.20, 04-Jul-2017
1771,Revenue,CAHD,Bed Purchasing - South,Permanent Nursing,Fshc  1St Floor,2228.00, 04-Jul-2017
1772,Revenue,CAHD,Bed Purchasing - South,Permanent Nursing,Fshc  1St Floor,543.60, 04-Jul-2017
1773,Revenue,CAHD,Bed Purchasing - South,Permanent Nursing,Fshc  1St Floor,2228.00, 04-Jul-2017
1774,Revenue,CAHD,South Glos Users in South Glos Homes,Permanent Nursing,Fshc  1St Floor,620.20, 04-Jul-2017
1775,Revenue,CAHD,Bed Purchasing - South,Permanent Nursing,Fshc  1St Floor,2354.28, 04-Jul-2017
1776,Revenue,CAHD,South Glos Users in South Glos Homes,Permanent Nursing,Fshc  1St Floor,620.20, 04-Jul-2017
1777,Revenue,CAHD,Bed Purchasing - South,Permanent Nursing,Fshc  1St Floor,2228.00, 04-Jul-2017
1778,Revenue,CAHD,South Glos Users in South Glos Homes,Permanent Nursing,Fshc  1St Floor,620.20, 04-Jul-2017
1779,Revenue,CAHD,Bed Purchasing - South,Permanent Residential,Fshc  1St Floor,2182.36, 04-Jul-2017
1780,Revenue,CAHD,Bed Purchasing - South,Permanent Nursing,Fshc  1St Floor,2192.12, 04-Jul-2017
1781,Revenue,CAHD,Bed Purchasing - Southmead Hospital,Permanent Nursing,Fshc  1St Floor,2874.96, 04-Jul-2017
1782,Revenue,CAHD,Bed purchasing - Elderly S117 - South,Permanent Nursing,Fshc  1St Floor,2192.12, 04-Jul-2017
1783,Revenue,CAHD,Bed Purchasing - South,Permanent Nursing,Fshc  1St Floor,3444.20, 04-Jul-2017
1784,Revenue,CAHD,Bed Purchasing - South,Permanent Nursing,Fshc  1St Floor,2633.80, 04-Jul-2017
1785,Revenue,CAHD,Bed Purchasing - South,Permanent Nursing,Fshc  1St Floor,3849.40, 04-Jul-2017
1786,Revenue,CAHD,Bed Purchasing - Southmead Hospital,Permanent Nursing,Fshc  1St Floor,2192.12, 04-Jul-2017
1787,Revenue,CAHD,South Glos Users in South Glos Homes,Permanent Nursing,Fshc  1St Floor,912.00, 04-Jul-2017
1788,Revenue,CAHD,Bed Purchasing - Southmead Hospital,Permanent Nursing,Fshc  1St Floor,2192.12, 04-Jul-2017
1789,Revenue,CAHD,South Glos Users in South Glos Homes,Permanent Nursing,Fshc  1St Floor,620.20, 04-Jul-2017
1790,Revenue,CAHD,Bed Purchasing - Southmead Hospital,Permanent Nursing,Fshc  1St Floor,2192.12, 04-Jul-2017
1791,Revenue,CAHD,Bed Purchasing - South,Permanent Nursing,Fshc  1St Floor,2192.12, 04-Jul-2017
1792,Revenue,CAHD,Bed Purchasing - South,Permanent Residential,Fshc  1St Floor,3588.12, 04-Jul-2017
1793,Revenue,CAHD,Bed Purchasing - Southmead Hospital,Permanent Residential,Fshc  1St Floor,1971.36, 04-Jul-2017
1794,Revenue,CAHD,Bed Purchasing - North,Permanent Nursing,Fshc  1St Floor,2217.88, 04-Jul-2017
1795,Revenue,CAHD,Bed Purchasing - Southmead Hospital,Permanent Nursing,Fshc  1St Floor,1488.92, 04-Jul-2017
1796,Revenue,CAHD,Bed Purchasing - Southmead Hospital,Permanent Nursing,Fshc  1St Floor,705.28, 04-Jul-2017
1797,Revenue,CAHD,Bed Purchasing - North,Permanent Nursing,Fshc  1St Floor,4074.94, 04-Jul-2017
1798,Revenue,CAHD,Bed Purchasing - North,Permanent Nursing,Fshc  1St Floor,2194.20, 04-Jul-2017
1799,Revenue,CAHD,Bed Purchasing - North,Fees & Charges Income - General,Fshc  1St Floor,979.56, 04-Jul-2017
1800,Revenue,CAHD,Bed Purchasing - North,Permanent Nursing,Fshc  1St Floor,2014.28, 04-Jul-2017
1801,Revenue,CAHD,South Glos Users in South Glos Homes,Permanent Nursing,Fshc  1St Floor,620.20, 04-Jul-2017
1802,Revenue,CAHD,Bed Purchasing - North,Permanent Nursing,Fshc  1St Floor,2217.88, 04-Jul-2017
1803,Revenue,CAHD,Bed Purchasing - North,Permanent Nursing,Fshc  1St Floor,5556.80, 04-Jul-2017
1804,Revenue,CAHD,Bed Purchasing - North,Permanent Nursing,Fshc  1St Floor,2222.72, 04-Jul-2017
1805,Revenue,CAHD,Bed Purchasing - North,Fees & Charges Income - General,Fshc  1St Floor,3899.00, 04-Jul-2017
1806,Revenue,CAHD,Bed Purchasing - North,Fees & Charges Income - General,Fshc  1St Floor,4049.85, 04-Jul-2017
1807,Revenue,CAHD,Bed Purchasing - North,Permanent Nursing,Fshc  1St Floor,1959.11, 04-Jul-2017
1808,Revenue,CAHD,Bed Purchasing - North,Fees & Charges Income - General,Fshc  1St Floor,1452.75, 04-Jul-2017
1809,Revenue,CAHD,Bed Purchasing - North,Fees & Charges Income - General,Fshc  1St Floor,4077.20, 04-Jul-2017
1810,Revenue,CAHD,Bed Purchasing - North,Fees & Charges Income - General,Fshc  1St Floor,3216.85, 04-Jul-2017
1811,Revenue,CAHD,Bed Purchasing - North,Fees & Charges Income - General,Fshc  1St Floor,1325.29, 04-Jul-2017
1812,Revenue,CAHD,Bed Purchasing - North,Permanent Nursing,Fshc  1St Floor,1954.96, 04-Jul-2017
1813,Revenue,CAHD,Bed Purchasing - Southmead Hospital,Permanent Nursing,Fshc  1St Floor,2633.80, 04-Jul-2017
1814,Revenue,CAHD,Bed Purchasing - South,Permanent Residential,Fshc  1St Floor,2228.60, 04-Jul-2017
1815,Revenue,CAHD,Bed Purchasing - North,Permanent Residential,Fshc  1St Floor,1855.12, 04-Jul-2017
1816,Revenue,CAHD,Bed Purchasing - South,Permanent Residential,Gladstone House,5749.96, 04-Jul-2017
1817,Revenue,CAHD,Bed Purchasing - North,Permanent Residential,Glan Y Felin,6520.08, 04-Jul-2017
